{"text_format":"1","workbook":"xlsx","n_sheets":3,"sheets":["ABRIL 2020","PIC ABRIL ","Hoja1"],"not_rendered":{"charts":0,"images":0,"macros":1,"external_links":3,"defined_names":2,"comments":2,"pivot_tables":0},"unopened":[],"bounds":{"document_bytes":16777216,"sheet_cells":100000,"rows_first":2000,"rows_last":500,"rows_between":2000,"halvings":0,"cell_chars":16384,"cell_head_chars":4096},"cells_cut":0,"cells_raw":0,"read":"whole","date_system":"1900"}

{"sheet":"ABRIL 2020","index":0,"n_rows":446,"n_cols":15,"rows_kept":446,"cut":false,"hidden":false,"merged":[[0,0,1,4]]}
["LISTADO DE CONTRATACION  MES DE ABRIL 2020"]
[]
["CEDULA","NOMBRES APELLIDOS CONTRATISTA","# OPS","#OPS CON AÑO","OBJETO DEL CONTRATO","FECHA INICIO","FECHA TERMINACION ","VALOR MENSUAL","VALOR TOTAL ","SUPERVISOR ","CARGO","CDP","RP","FECHA DE LINK","LINKSECOOP "]
[1140874429,"ALBERTO DE LA OSSA DE AVILA",1324,"1324-2020","PROFESIONAL DE PRESUPUESTO ","01 de Abril de 2020","  30 de Abril de  2020",3000000,{"$f":"+H4*1","v":3000000},"ALFONSO NICOLAS OQUENDO","DIRECTOR FINANCIERO",1600,2521,{"$f":"VLOOKUP(A4:A444,'[2]ABRIL 2020'!$B$3:$M$584,12,0)","v":"2020-04-20"},"https://www.contratos.gov.co/consultas/detalleProceso.do?numConstancia=20-4-10688521"]
[1048204901,"ALEXANDER RAFAEL OTERO PADILLA",{"$f":"+C4+1","v":1325},"1325-2020","AUXILIAR DE PRSUPUESTO","01 de Abril de 2020","  30 de Abril de  2020",4000000,4000000,"ALFONSO NICOLAS OQUENDO","DIRECTOR FINANCIERO",1601,2522,{"$f":"VLOOKUP(A5:A443,'[2]ABRIL 2020'!$B$3:$M$584,12,0)","v":"2020-04-20"},"https://www.contratos.gov.co/consultas/detalleProceso.do?numConstancia=20-4-10688532"]
[1140881787,"ALEXANDRA GUZMAN QUINTERO",1326,"1326-2020","ASISTENTE OFICINA JURIDICA ","01 de Abril de 2020","  30 de Abril de  2020",3000000,3000000,"ORNELLA FIORENTINO ","JEFE DE JURIDICA",1602,2523,{"$f":"VLOOKUP(A6:A444,'[2]ABRIL 2020'!$B$3:$M$584,12,0)","v":"2020-04-20"},"https://www.contratos.gov.co/consultas/detalleProceso.do?numConstancia=20-4-10688559"]
[22739459,"ANA MILENA L´HOESTE ROA",1327,"1327-2020","COORDINADORA CONSULTA EXTERNA","01 de Abril de 2020","  30 de Abril de  2020",3700000,3700000,"BETTY PERTUZ ","SUBGERENCIA CIENTIFICA",1603,2524,{"$f":"VLOOKUP(A7:A445,'[2]ABRIL 2020'!$B$3:$M$584,12,0)","v":"2020-04-20"},"https://www.contratos.gov.co/consultas/detalleProceso.do?numConstancia=20-4-10688568"]
[22736159,"ARACELLY HERNANDEZ GARCIA ",1328,"1328-2020","DIGITADOR PAI WEB ","01 de Abril de 2020","  30 de Abril de  2020",2500000,2500000,"NILSA ARIZA MARQUEZ","COORDINADOR PYP",1604,2525,{"$f":"VLOOKUP(A8:A446,'[2]ABRIL 2020'!$B$3:$M$584,12,0)","v":"2020-04-20"},"https://www.contratos.gov.co/consultas/detalleProceso.do?numConstancia=20-4-10688585"]
[1140850083,"ARLINY YANNINY RAMIREZ FIGUEROA",1329,"1329-2020","ASESOR DE PRESUPUESTO","01 de Abril de 2020","  30 de Abril de  2020",4000000,4000000,"ALFONSO NICOLAS OQUENDO","DIRECTOR FINANCIERO",1605,2526,{"$f":"VLOOKUP(A9:A446,'[2]ABRIL 2020'!$B$3:$M$584,12,0)","v":"2020-04-20"},"https://www.contratos.gov.co/consultas/detalleProceso.do?numConstancia=20-4-10688600"]
[1042444527,"ARNOLD RINCON MARTINEZ",1330,"1330-2020","PROFESIONAL PLANEACION ESTRATEGICA","01 de Abril de 2020","  30 de Abril de  2020",4000000,4000000,"SANDRA SANMARTIN","SUBGENTE ADMINISTRATIVO",1606,2527,{"$f":"VLOOKUP(A10:A446,'[2]ABRIL 2020'!$B$3:$M$584,12,0)","v":"2020-04-20"},"https://www.contratos.gov.co/consultas/detalleProceso.do?numConstancia=20-4-10688614"]
[64580944,"BIBIANA MARIA DIAZ RUIZ ",1331,"1331-2020","ASISTENTE SUBGERENCIA CIENTIFICA ","01 de Abril de 2020","  30 de Abril de  2020",5800000,5800000,"BETTY PERTUZ ","SUBGERENCIA CIENTIFICA",1607,2528,{"$f":"VLOOKUP(A11:A446,'[2]ABRIL 2020'!$B$3:$M$584,12,0)","v":"2020-04-20"},"https://www.contratos.gov.co/consultas/detalleProceso.do?numConstancia=20-4-10688614"]
[5055447,"CARLOS ALBERTO CARBONELL ALVAREZ",{"$f":"+C11+1","v":1332},"1332-2020","AUDITOR MEDICO","01 de Abril de 2020","  30 de Abril de  2020",4500000,{"$f":"+H12*1","v":4500000},"BETTY PERTUZ ","SUBGERENCIA CIENTIFICA",1608,2529,{"$f":"VLOOKUP(A12:A446,'[2]ABRIL 2020'!$B$3:$M$584,12,0)","v":"2020-04-20"},"https://www.contratos.gov.co/consultas/detalleProceso.do?numConstancia=20-4-10688789"]
[22549719,"CARMEN MELINA BOLAÑO COTES ",1333,"1333-2020","AUXILIAR ADMINISTRATIVO- ESTADISTICA","01 de Abril de 2020","  30 de Abril de  2020",1900000,1900000,"SANDRA SANMARTIN","SUBGENTE ADMINISTRATIVO",1609,2530,{"$f":"VLOOKUP(A13:A446,'[2]ABRIL 2020'!$B$3:$M$584,12,0)","v":"2020-04-20"},"https://www.contratos.gov.co/consultas/detalleProceso.do?numConstancia=20-4-10688802"]
[8762035,"CESAR AUGUSTO MERIÑO ESCORCIA ",1334,"1334-2020","ORIENTADOR","01 de Abril de 2020","  30 de Abril de  2020",1270000,1270000,"SANDRA SANMARTIN","SUBGENTE ADMINISTRATIVO",1610,2531,{"$f":"VLOOKUP(A14:A446,'[2]ABRIL 2020'!$B$3:$M$584,12,0)","v":"2020-04-20"},"https://www.contratos.gov.co/consultas/detalleProceso.do?numConstancia=20-4-10688834"]
[1001798325,"CINDY MILENA SARMIENTO MERIÑO",1335,"1335-2020","PROFESIONA RELACIONES INETRNACIONALES","01 de Abril de 2020","  30 de Abril de  2020",4000000,4000000,"FABIAN COLPAS","JEFE  TALENTO  HUMANO",1611,2532,{"$f":"VLOOKUP(A15:A446,'[2]ABRIL 2020'!$B$3:$M$584,12,0)","v":"2020-04-20"},"https://www.contratos.gov.co/consultas/detalleProceso.do?numConstancia=20-4-10688848"]
[32769708,"CLAUDIA ARENAS ALVAREZ",1336,"1336-2020","APOYO GESTION CONTROL INTERNO","01 de Abril de 2020","  30 de Abril de  2020",3500000,3500000,"SANDRA SANMARTIN","SUBGENTE ADMINISTRATIVO",1612,2533,{"$f":"VLOOKUP(A16:A446,'[2]ABRIL 2020'!$B$3:$M$584,12,0)","v":"2020-04-20"},"https://www.contratos.gov.co/consultas/detalleProceso.do?numConstancia=20-4-10688853"]
[1043611198,"CRISTIAN JESUS RODRIGUEZ QUIROZ",1337,"1337-2020","AUXILIAR PRESUPUESTO","01 de Abril de 2020","  30 de Abril de  2020",1900000,1900000,"ALFONSO NICOLAS OQUENDO","DIRECTOR FINANCIERO",1613,2534,{"$f":"VLOOKUP(A17:A446,'[2]ABRIL 2020'!$B$3:$M$584,12,0)","v":"2020-04-20"},"https://www.contratos.gov.co/consultas/detalleProceso.do?numConstancia=20-4-10688877"]
[1000149163,"DAVID RICARDO BOTERO ALONSO",1338,"1338-2020","APOYO GESTION DOCUMENTAL JURIDICA","01 de Abril de 2020","  30 de Abril de  2020",4000000,4000000,"ORNELLA FIORENTINO ","JEFE DE JURIDICA",1614,2535,{"$f":"VLOOKUP(A18:A446,'[2]ABRIL 2020'!$B$3:$M$584,12,0)","v":"2020-04-20"},"https://www.contratos.gov.co/consultas/detalleProceso.do?numConstancia=20-4-10688900"]
[44157462,"DAYAN MARTINEZ PACHECO",1339,"1339-2020","ABOGADO EXTERNO","01 de Abril de 2020","  30 de Abril de  2020",5000000,5000000,"ORNELLA FIORENTINO ","JEFE DE JURIDICA",1615,2536,{"$f":"VLOOKUP(A19:A446,'[2]ABRIL 2020'!$B$3:$M$584,12,0)","v":"2020-04-20"},"https://www.contratos.gov.co/consultas/detalleProceso.do?numConstancia=20-4-10688912"]
[19615791,"DIOMAR NAVARRO ANGARITA",1340,"1340-2020","RECUPERACION DE CARTERA ","01 de Abril de 2020","  30 de Abril de  2020",2000000,2000000,"ORNELLA FIORENTINO","JEFE JURIDICA",1616,2537,{"$f":"VLOOKUP(A20:A446,'[2]ABRIL 2020'!$B$3:$M$584,12,0)","v":"2020-04-20"},"https://www.contratos.gov.co/consultas/detalleProceso.do?numConstancia=20-4-10688934"]
[22704983,"EGUIS ODILA ROLONG LAGUNA",1341,"1341-2020","ABOGADO EXTERNO","01 de Abril de 2020","  30 de Abril de  2020",4000000,4000000,"FABIAN COLPAS","JEFE  TALENTO  HUMANO",1617,2538,{"$f":"VLOOKUP(A21:A446,'[2]ABRIL 2020'!$B$3:$M$584,12,0)","v":"2020-04-20"},"https://www.contratos.gov.co/consultas/detalleProceso.do?numConstancia=20-4-10688988"]
[32787164,"ELIANA CONSTANZA ARTETA HOYOS",1342,"1342-2020","CONTADOR","01 de Abril de 2020","  30 de Abril de  2020",4000000,4000000,"SANDRA SANMARTIN","SUBGENTE ADMINISTRATIVO",1618,2539,{"$f":"VLOOKUP(A22:A446,'[2]ABRIL 2020'!$B$3:$M$584,12,0)","v":"2020-04-20"},"https://www.contratos.gov.co/consultas/detalleProceso.do?numConstancia=20-4-10689037"]
[8633055,"ELIECER POLO CASTRO ",1343,"1343-2020","ABOGADO EXTERNO","01 de Abril de 2020","  30 de Abril de  2020",5800000,5800000,"ORNELLA FIORENTINO ","JEFE DE JURIDICA",1619,2540,{"$f":"VLOOKUP(A23:A446,'[2]ABRIL 2020'!$B$3:$M$584,12,0)","v":"2020-04-20"},"https://www.contratos.gov.co/consultas/detalleProceso.do?numConstancia=20-4-10689055"]
[1140831753,"ENNY CAROLINA ROCHA HERNANDEZ",1344,"1344-2020","ABOGADO EXTERNO","01 de Abril de 2020","  30 de Abril de  2020",5000000,5000000,"ORNELLA FIORENTINO ","JEFE DE JURIDICA",1620,2541,{"$f":"VLOOKUP(A24:A446,'[2]ABRIL 2020'!$B$3:$M$584,12,0)","v":"2020-04-20"},"https://www.contratos.gov.co/consultas/detalleProceso.do?numConstancia=20-4-10689083"]
[32866006,"ERIKA ASCENCIO MARQUEZ",1345,"1345-2020","PROFESIONAL -CONTRATACION ","01 de Abril de 2020","  30 de Abril de  2020",3500000,3500000,"ORNELLA FIORENTINO ","JEFE DE JURIDICA",1621,2542,{"$f":"VLOOKUP(A25:A446,'[2]ABRIL 2020'!$B$3:$M$584,12,0)","v":"2020-04-20"},"https://www.contratos.gov.co/consultas/detalleProceso.do?numConstancia=20-4-10689099"]
[32583911,"EVA ISABEL ROSALES NAVARRO",1346,"1346-2020","ASESOR GERENCIA","01 de Abril de 2020","  30 de Abril de  2020",5000000,5000000,"ROSA MADERA","GERENTE",1622,2543,{"$f":"VLOOKUP(A26:A446,'[2]ABRIL 2020'!$B$3:$M$584,12,0)","v":"2020-04-20"},"https://www.contratos.gov.co/consultas/detalleProceso.do?numConstancia=20-4-10689134"]
[22504109,"FLOR MILENA GOICOECHEA OROZCO",1347,"1347-2020","AUXILIAR DE FACTURACIÓN ","01 de Abril de 2020","  30 de Abril de  2020",2500000,2500000,"SANDRA SANMARTIN","SUBGENTE ADMINISTRATIVO",1623,2544,{"$f":"VLOOKUP(A27:A446,'[2]ABRIL 2020'!$B$3:$M$584,12,0)","v":"2020-04-20"},"https://www.contratos.gov.co/consultas/detalleProceso.do?numConstancia=20-4-10689146"]
[72328953,"FRANCISCO ALCIDES CARRANZA MENDOZA",1348,"1348-2020","AUXILIAR RECURSOS FISICOS ","01 de Abril de 2020","  30 de Abril de  2020",1900000,1900000,"SANDRA SANMARTIN","SUBGENTE ADMINISTRATIVO",1624,2545,{"$f":"VLOOKUP(A28:A446,'[2]ABRIL 2020'!$B$3:$M$584,12,0)","v":"2020-04-20"},"https://www.contratos.gov.co/consultas/detalleProceso.do?numConstancia=20-4-10689162"]
[1042416953,"GABRIEL JOSE MONTIEL CERVANTES",1349,"1349-2020","COORDINADOR DE HARDWARE","01 de Abril de 2020","  30 de Abril de  2020",3000000,3000000,"ZULI ROMERO","COORDINADORA  TIC",1625,2546,{"$f":"VLOOKUP(A29:A446,'[2]ABRIL 2020'!$B$3:$M$584,12,0)","v":"2020-04-20"},"https://www.contratos.gov.co/consultas/detalleProceso.do?numConstancia=20-4-10689169"]
[1143425564,"HECTOR JOSE BARRAZA GUTIERREZ",1350,"1350-2020","ASESOR DE PRESUPUESTO","01 de Abril de 2020","  30 de Abril de  2020",4000000,4000000,"ALFONSO NICOLAS OQUENDO ","DIRECTOR FINANCIERO",1626,2547,{"$f":"VLOOKUP(A30:A446,'[2]ABRIL 2020'!$B$3:$M$584,12,0)","v":"2020-04-20"},"https://www.contratos.gov.co/consultas/detalleProceso.do?numConstancia=20-4-10689176"]
[1045670289,"HOLMAN ALEXANDER AVILA FERNANDEZ",1351,"1351-2020","FACTURACION CENTRAL","01 de Abril de 2020","  30 de Abril de  2020",2500000,2500000,"SANDRA SANMARTIN","SUBGENTE ADMINISTRATIVO",1627,2548,{"$f":"VLOOKUP(A31:A446,'[2]ABRIL 2020'!$B$3:$M$584,12,0)","v":"2020-04-20"},"https://www.contratos.gov.co/consultas/detalleProceso.do?numConstancia=20-4-10689230"]
[72045976,"HUMBERTO ZACARIAS CADAVID ALDANA",1352,"1352-2020","ASESOR GERENCIA","01 de Abril de 2020","  30 de Abril de  2020",4000000,4000000,"ROSA MADERA","GERENTE",1628,2549,{"$f":"VLOOKUP(A32:A446,'[2]ABRIL 2020'!$B$3:$M$584,12,0)","v":"2020-04-20"},"https://www.contratos.gov.co/consultas/detalleProceso.do?numConstancia=20-4-10690109"]
[1129571476,"ILIANA MATOS RAMOS",1353,"1353-2020","ABOGADO EXTERNO","01 de Abril de 2020","  30 de Abril de  2020",4000000,4000000,"ORNELLA FIORENTINO ","JEFE DE JURIDICA",1629,2550,{"$f":"VLOOKUP(A33:A447,'[2]ABRIL 2020'!$B$3:$M$584,12,0)","v":"2020-04-20"},"https://www.contratos.gov.co/consultas/detalleProceso.do?numConstancia=20-4-10690143"]
[1003265428,"ISABEL CURIEL CORTINA",1354,"1354-2020","GESTION DOCUMENTAL JURIDICA","01 de Abril de 2020","  30 de Abril de  2020",1270000,1270000,"ORNELLA FIORENTINO ","JEFE DE JURIDICA",1630,2551,{"$f":"VLOOKUP(A34:A448,'[2]ABRIL 2020'!$B$3:$M$584,12,0)","v":"2020-04-20"},"https://www.contratos.gov.co/consultas/detalleProceso.do?numConstancia=20-4-10690151"]
[1042447104,"IVOR ANDRES SANJUAN PEREZ",1355,"1355-2020","AUXILIAR RECURSOS FISICOS ","01 de Abril de 2020","  30 de Abril de  2020",2500000,2500000,"SANDRA SANMARTIN","SUBGENTE ADMINISTRATIVO",1631,2552,{"$f":"VLOOKUP(A35:A449,'[2]ABRIL 2020'!$B$3:$M$584,12,0)","v":"2020-04-20"},"https://www.contratos.gov.co/consultas/detalleProceso.do?numConstancia=20-4-10690174"]
[8495176,"JAIME ALBERTO ALVAREZ NORIEGA",1356,"1356-2020","INGENIERO AMBIENTAL","01 de Abril de 2020","  30 de Abril de  2020",3000000,3000000,"SANDRA SANMARTIN","SUBGENTE ADMINISTRATIVO",1632,2553,{"$f":"VLOOKUP(A36:A450,'[2]ABRIL 2020'!$B$3:$M$584,12,0)","v":"2020-04-20"},"https://www.contratos.gov.co/consultas/detalleProceso.do?numConstancia=20-4-10690197"]
[32874188,"JALICSSA ARRIETA ORTEGA",1357,"1357-2020","PSICOLOGA","01 de Abril de 2020","  30 de Abril de  2020",3000000,3000000,"BETTY PERTUZ ","SUBGERENCIA CIENTIFICA",1633,2554,{"$f":"VLOOKUP(A37:A451,'[2]ABRIL 2020'!$B$3:$M$584,12,0)","v":"2020-04-20"},"https://www.contratos.gov.co/consultas/detalleProceso.do?numConstancia=20-4-10690300"]
[8566485,"JAVIER VLADIMIR CASTRO POVEA",1358,"1358-2020","ABOGADO - TALENTO HUMANO","01 de Abril de 2020","  30 de Abril de  2020",5000000,5000000,"FABIAN COLPAS","JEFE  TALENTO  HUMANO",1634,2555,{"$f":"VLOOKUP(A38:A452,'[2]ABRIL 2020'!$B$3:$M$584,12,0)","v":"2020-04-20"},"https://www.contratos.gov.co/consultas/detalleProceso.do?numConstancia=20-4-10690309"]
[1140871897,"JESICA FERNANDA DE CASTRO MANTILLA",1359,"1359-2020","INGENIERA QUIMICA","01 de Abril de 2020","  30 de Abril de  2020",4000000,4000000,"BETTY PERTUZ ","SUBGERENTE CIENTIFICO",1635,2556,{"$f":"VLOOKUP(A39:A453,'[2]ABRIL 2020'!$B$3:$M$584,12,0)","v":"2020-04-20"},"https://www.contratos.gov.co/consultas/detalleProceso.do?numConstancia=20-4-10690319"]
[73188364,"JORGE MAURICIO MONTOYA OCHOA",1360,"1360-2020","AUXILIAR DE RECURSOS FISICOS","01 de Abril de 2020","  30 de Abril de  2020",1900000,1900000,"SANDRA SANMARTIN","SUBGENTE ADMINISTRATIVO",1636,2557,{"$f":"VLOOKUP(A40:A454,'[2]ABRIL 2020'!$B$3:$M$584,12,0)","v":"2020-04-20"},{"$error":"#N/A"}]
[8776312,"JORGE RIVERA MEZA",1361,"1361-2020","AUXILIAR RECURSOS FISICOS ","01 de Abril de 2020","  30 de Abril de  2020",1900000,1900000,"SANDRA SANMARTIN","SUBGENTE ADMINISTRATIVO",1637,2558,{"$f":"VLOOKUP(A41:A455,'[2]ABRIL 2020'!$B$3:$M$584,12,0)","v":"2020-04-20"},"https://www.contratos.gov.co/consultas/detalleProceso.do?numConstancia=20-4-10690343"]
[1140855812,"JOSE DAVID NOGUERA SOTO",1362,"1362-2020","GESTIÓN DOCUMENTAL CONTRATACIÓN","01 de Abril de 2020","  30 de Abril de  2020",2300000,2300000,"ORNELLA FIORENTINO","JEFE DE JURIDICA",1638,2559,{"$f":"VLOOKUP(A42:A456,'[2]ABRIL 2020'!$B$3:$M$584,12,0)","v":"2020-04-20"},"https://www.contratos.gov.co/consultas/detalleProceso.do?numConstancia=20-4-10690352"]
[1045698343,"JOSE FRANCISCO INFANZON CASTRO",1363,"1363-2020","ASESOR","01 de Abril de 2020","  30 de Abril de  2020",5800000,5800000,"ROSA MADERA","GERENTE",1639,2560,{"$f":"VLOOKUP(A43:A457,'[2]ABRIL 2020'!$B$3:$M$584,12,0)","v":"2020-04-20"},"https://www.contratos.gov.co/consultas/detalleProceso.do?numConstancia=20-4-10690361"]
[72434909,"JOSE IGNACIO DE ALBA MARTINEZ",1364,"1364-2020","AUXILIAR DE ARCHIVO TALENTO HUMANO","01 de Abril de 2020","  30 de Abril de  2020",3000000,3000000,"FABIAN COLPAS","JEFE  TALENTO  HUMANO",1640,2561,{"$f":"VLOOKUP(A44:A458,'[2]ABRIL 2020'!$B$3:$M$584,12,0)","v":"2020-04-20"},"https://www.contratos.gov.co/consultas/detalleProceso.do?numConstancia=20-4-10690368"]
[72271514,"JOSE LUIS FLOREZ DIAZ",1365,"1365-2020","AUXILIAR ADMINISTRATIVO VENTANILLA","01 de Abril de 2020","  30 de Abril de  2020",1900000,1900000,"SANDRA SANMARTIN","SUBGENTE ADMINISTRATIVO",1641,2562,{"$f":"VLOOKUP(A45:A459,'[2]ABRIL 2020'!$B$3:$M$584,12,0)","v":"2020-04-20"},"https://www.contratos.gov.co/consultas/detalleProceso.do?numConstancia=20-4-10690375"]
[72095954,"JUAN CARLOS BARROS CARO",1366,"1366-2020","ASESOR GERENCIA","01 de Abril de 2020","  30 de Abril de  2020",4500000,4500000,"ROSA MADERA","GERENTE",1642,2563,{"$f":"VLOOKUP(A46:A460,'[2]ABRIL 2020'!$B$3:$M$584,12,0)","v":"2020-04-20"},"https://www.contratos.gov.co/consultas/detalleProceso.do?numConstancia=20-4-10690387"]
[72278234,"JUAN GABRIEL FRANCO PRENT",1367,"1367-2020","COORDINADOR DE FACTURACION","01 de Abril de 2020","  30 de Abril de  2020",4375000,4375000,"SANDRA SANMARTIN","SUBGENTE ADMINISTRATIVO",1643,2564,{"$f":"VLOOKUP(A47:A461,'[2]ABRIL 2020'!$B$3:$M$584,12,0)","v":"2020-04-20"},"https://www.contratos.gov.co/consultas/detalleProceso.do?numConstancia=20-4-10690444"]
[3731100,"JULIAN ENRIQUE ARTETA MOLINA ",1368,"1368-2020","AUDITOR DE FACTURACIÓN","01 de Abril de 2020","  30 de Abril de  2020",1900000,1900000,"SANDRA SANMARTIN","SUBGENTE ADMINISTRATIVO",1644,2565,{"$f":"VLOOKUP(A48:A462,'[2]ABRIL 2020'!$B$3:$M$584,12,0)","v":"2020-04-20"},"https://www.contratos.gov.co/consultas/detalleProceso.do?numConstancia=20-4-10690458"]
[1010137665,"KAROLINE JUDITH MORENO VARELO",1369,"1369-2020","AUXILIAR ADMINISTRATIVO - COORDINADOR  PYP","01 de Abril de 2020","  30 de Abril de  2020",1500000,1500000,"NILSA ARIZA MARQUEZ","COORDINADOR PYP",1645,2566,{"$f":"VLOOKUP(A49:A463,'[2]ABRIL 2020'!$B$3:$M$584,12,0)","v":"2020-04-20"},"https://www.contratos.gov.co/consultas/detalleProceso.do?numConstancia=20-4-10690458"]
[22804794,"KATHERINE GUERRERO SEPULVEDA",1370,"1370-2020","ABOGADO EXTERNO - CONTRATACION","01 de Abril de 2020","  30 de Abril de  2020",5800000,5800000,"ORNELLA FIORENTINO ","JEFE DE JURIDICA",1646,2567,{"$f":"VLOOKUP(A50:A464,'[2]ABRIL 2020'!$B$3:$M$584,12,0)","v":"2020-04-20"},"https://www.contratos.gov.co/consultas/detalleProceso.do?numConstancia=20-4-10690487"]
[1042439853,"KERVY DIYAN JINETTE BARRIOS",1371,"1371-2020","AUXILIAR ADMINISTRATIVODE LA RESOLUCIÓN 2463","01 de Abril de 2020","  30 de Abril de  2020",1900000,1900000,"BETTY PERTUZ ","SUBGERENCIA CIENTIFICA",1647,2568,{"$f":"VLOOKUP(A51:A465,'[2]ABRIL 2020'!$B$3:$M$584,12,0)","v":"2020-04-20"},"https://www.contratos.gov.co/consultas/detalleProceso.do?numConstancia=20-4-10690503"]
[1140847928,"LEIDY DANIELA WILSON PEZZOTI",1372,"1372-2020","AUXILIAR ADMINISTRATIVO VENTANILLA","01 de Abril de 2020","  30 de Abril de  2020",1900000,1900000,"SANDRA SANMARTIN","SUBGENTE ADMINISTRATIVO",1648,2569,{"$f":"VLOOKUP(A52:A466,'[2]ABRIL 2020'!$B$3:$M$584,12,0)","v":"2020-04-20"},"https://www.contratos.gov.co/consultas/detalleProceso.do?numConstancia=20-4-10690524"]
[72053529,"LEINER DARIO MEDINA HERRERA",1373,"1373-2020","CONTROL INTERNO","01 de Abril de 2020","  30 de Abril de  2020",2500000,2500000,"SANDRA SANMARTIN","SUBGENTE ADMINISTRATIVO",1649,2570,{"$f":"VLOOKUP(A53:A467,'[2]ABRIL 2020'!$B$3:$M$584,12,0)","v":"2020-04-20"},"https://www.contratos.gov.co/consultas/detalleProceso.do?numConstancia=20-4-10690541"]
[1140846298,"LENIN ALVAREZ PINEDA",1374,"1374-2020","INGENIERO DE SOPORTE ","01 de Abril de 2020","  30 de Abril de  2020",3000000,3000000,"NILSA ARIZA MARQUEZ","COORDINADOR PYP",1650,2571,{"$f":"VLOOKUP(A54:A468,'[2]ABRIL 2020'!$B$3:$M$584,12,0)","v":"2020-04-20"},"https://www.contratos.gov.co/consultas/detalleProceso.do?numConstancia=20-4-10690568"]
[40981378,"LIDYS CASTILLO TOVAR",1375,"1375-2020","PROFESIONAL OFICINA PAGADURIA  ","01 de Abril de 2020","  30 de Abril de  2020",4000000,4000000,"LISGLENIS BUENO BRICEÑO","JEFE TESORERIA",1651,2572,{"$f":"VLOOKUP(A55:A469,'[2]ABRIL 2020'!$B$3:$M$584,12,0)","v":"2020-04-20"},"https://www.contratos.gov.co/consultas/detalleProceso.do?numConstancia=20-4-10691104"]
[72336152,"LUIS EDUARDO LLANOS NAVARRO ",1376,"1376-2020","AUDITOR DE P Y P ","01 de Abril de 2020","  30 de Abril de  2020",4000000,4000000,"BETTY PERTUZ ","SUBGERENCIA CIENTIFICA",1652,2573,{"$f":"VLOOKUP(A56:A470,'[2]ABRIL 2020'!$B$3:$M$584,12,0)","v":"2020-04-20"},"https://www.contratos.gov.co/consultas/detalleProceso.do?numConstancia=20-4-10691111"]
[1140889557,"MARA PAOLA DE LEON NIEBLES ",1377,"1377-2020","AUXILIAR ADMINISTRATIVO-FINANCIERA","01 de Abril de 2020","  30 de Abril de  2020",1900000,1900000,"SANDRA SANMARTIN","SUBGENTE ADMINISTRATIVO",1653,2574,{"$f":"VLOOKUP(A57:A471,'[2]ABRIL 2020'!$B$3:$M$584,12,0)","v":"2020-04-20"},"https://www.contratos.gov.co/consultas/detalleProceso.do?numConstancia=20-4-10691118"]
[44160436,"MARCELA JOHANA DIAZ DE LA PUENTE",1378,"1378-2020"," JURIDICO TALENTO HUMANO","01 de Abril de 2020","  30 de Abril de  2020",3000000,3000000,"FABIAN COLPAS","JEFE  TALENTO  HUMANO",1654,2575,{"$f":"VLOOKUP(A58:A472,'[2]ABRIL 2020'!$B$3:$M$584,12,0)","v":"2020-04-20"},"https://www.contratos.gov.co/consultas/detalleProceso.do?numConstancia=20-4-10691127"]
[22610065,"MARIA ALEXANDRA VILLA SOLANO",1379,"1379-2020","ASESOR DE PRESUPUESTO","01 de Abril de 2020","  30 de Abril de  2020",5000000,5000000,"ALFONSO NICOLAS OQUENDO","DIRECTOR FINANCIERO",1655,2576,{"$f":"VLOOKUP(A59:A473,'[2]ABRIL 2020'!$B$3:$M$584,12,0)","v":"2020-04-20"},"https://www.contratos.gov.co/consultas/detalleProceso.do?numConstancia=20-4-10691136"]
[1140858071,"MARIA LUISA FERNANDA ARAGON NIGRINI",1380,"1380-2020","ABOGADO EXTERNO","01 de Abril de 2020","  30 de Abril de  2020",5800000,5800000,"ORNELLA FIORENTINO","JEFE DE JURIDICA",1656,2577,{"$f":"VLOOKUP(A60:A474,'[2]ABRIL 2020'!$B$3:$M$584,12,0)","v":"2020-04-20"},"https://www.contratos.gov.co/consultas/detalleProceso.do?numConstancia=20-4-10691147"]
[1042421404,"MARIAM DEL CARMEN CANTILLO MONTERO",1381,"1381-2020","AUDITOR DE ODONTOLOGIA","01 de Abril de 2020","  30 de Abril de  2020",3000000,3000000,"BETTY PERTUZ ","SUBGERENCIA CIENTIFICA",1657,2578,{"$f":"VLOOKUP(A61:A475,'[2]ABRIL 2020'!$B$3:$M$584,12,0)","v":"2020-04-20"},"https://www.contratos.gov.co/consultas/detalleProceso.do?numConstancia=20-4-10691217"]
[22732194,"MARLEY VASQUEZ VARGAS",1382,"1382-2020","AUXILIAR DE FACTURACION ","01 de Abril de 2020","  30 de Abril de  2020",1700000,1700000,"SANDRA SANMARTIN","SUBGENTE ADMINISTRATIVO",1658,2579,{"$f":"VLOOKUP(A62:A476,'[2]ABRIL 2020'!$B$3:$M$584,12,0)","v":"2020-04-20"},"https://www.contratos.gov.co/consultas/detalleProceso.do?numConstancia=20-4-10691222"]
[44205287,"MARTHA KATERINE MEJIA FRUTO",1383,"1383-2020","AUXILIAR ADMINISTRATIVO - RECEPCION ","01 de Abril de 2020","  30 de Abril de  2020",1900000,1900000,"SANDRA SANMARTIN","SUBGENTE ADMINISTRATIVO",1659,2580,{"$f":"VLOOKUP(A63:A477,'[2]ABRIL 2020'!$B$3:$M$584,12,0)","v":"2020-04-20"},"https://www.contratos.gov.co/consultas/detalleProceso.do?numConstancia=20-4-10691234"]
[1045721126,"MARYURIS JOANNA GALVAN NAVARRO",1384,"1384-2020","COORDINADOR DE LABORATORIO","01 de Abril de 2020","  30 de Abril de  2020",5000000,5000000,"BETTY PERTUZ ","SUBGERENCIA CIENTIFICA",1660,2581,{"$f":"VLOOKUP(A64:A478,'[2]ABRIL 2020'!$B$3:$M$584,12,0)","v":"2020-04-20"},"https://www.contratos.gov.co/consultas/detalleProceso.do?numConstancia=20-4-10691240"]
[1043876764,"MELANI ISABEL PERTUZ HERRERA",1385,"1385-2020","AUXILIAR ADMINISTRATIVO -  SUBGERENCIA ADMINISTRATIVA","01 de Abril de 2020","  30 de Abril de  2020",1900000,1900000,"SANDRA SANMARTIN","SUBGENTE ADMINISTRATIVO",1661,2582,{"$f":"VLOOKUP(A65:A479,'[2]ABRIL 2020'!$B$3:$M$584,12,0)","v":"2020-04-20"},"https://www.contratos.gov.co/consultas/detalleProceso.do?numConstancia=20-4-10691244"]
[1129532724,"MICHELLY SANDOVAL ACUÑA",1386,"1386-2020","AUDITOR DE CALIDAD ","01 de Abril de 2020","  30 de Abril de  2020",6044000,6044000,"BETTY PERTUZ ","SUBGERENCIA CIENTIFICA",1662,2583,{"$f":"VLOOKUP(A66:A480,'[2]ABRIL 2020'!$B$3:$M$584,12,0)","v":"2020-04-20"},"https://www.contratos.gov.co/consultas/detalleProceso.do?numConstancia=20-4-10691256"]
[22642515,"NOHEMI ESPERANZA CASTRO LOPEZ ",1387,"1396-2020","AUDITORA DE SERVICIOS DE SALUD ","01 de Abril de 2020","  30 de Abril de  2020",4000000,4000000,"BETTY PERTUZ ","SUBGERENCIA CIENTIFICA",1672,2593,{"$f":"VLOOKUP(A67:A481,'[2]ABRIL 2020'!$B$3:$M$584,12,0)","v":"2020-04-21"},"https://www.contratos.gov.co/consultas/detalleProceso.do?numConstancia=20-4-10691738"]
[55238408,"MILAGROS YANETH SIMANCA RODRIGUEZ",1388,"1388-2020","AUXILIAR AREA FINANCIERA","01 de Abril de 2020","  30 de Abril de  2020",3500000,3500000,"SANDRA SANMARTIN","SUBGENTE ADMINISTRATIVO",1664,2585,{"$f":"VLOOKUP(A68:A482,'[2]ABRIL 2020'!$B$3:$M$584,12,0)","v":"2020-04-20"},"https://www.contratos.gov.co/consultas/detalleProceso.do?numConstancia=20-4-10691270"]
[72268005,"MILTON SOLARTE RODRIGUEZ",1389,"1389-2020","TECNICO DE BASES DE DATOS","01 de Abril de 2020","  30 de Abril de  2020",3000000,3000000,"SANDRA SANMARTIN","SUBGENTE ADMINISTRATIVO",1665,2586,{"$f":"VLOOKUP(A69:A483,'[2]ABRIL 2020'!$B$3:$M$584,12,0)","v":"2020-04-20"},"https://www.contratos.gov.co/consultas/detalleProceso.do?numConstancia=20-4-10691273"]
[32872397,"MONICA PATRICIA DOVALE GALLEGO",1390,"1390-2020","COORDINADOR SEGURIDAD Y SALUD TRABAJO","01 de Abril de 2020","  30 de Abril de  2020",5800000,5800000,"FABIAN COLPAS","JEFE  TALENTO  HUMANO",1666,2587,{"$f":"VLOOKUP(A70:A484,'[2]ABRIL 2020'!$B$3:$M$584,12,0)","v":"2020-04-20"},"https://www.contratos.gov.co/consultas/detalleProceso.do?numConstancia=20-4-10691276"]
[55239101,"NATALI ANDREA NIEBLES JURADO",1391,"1391-2020","AUDITOR DE CALIDAD (JEFE DE UNIDAD)","01 de Abril de 2020","  30 de Abril de  2020",5800000,5800000,"BETTY PERTUZ ","SUBGERENCIA CIENTIFICA",1667,2588,{"$f":"VLOOKUP(A71:A485,'[2]ABRIL 2020'!$B$3:$M$584,12,0)","v":"2020-04-20"},"https://www.contratos.gov.co/consultas/detalleProceso.do?numConstancia=20-4-10691282"]
[52618443,"NATALIA ALONSO CARVAJAL",1392,"1392-2020","ASESOR GERENCIA","01 de Abril de 2020","  30 de Abril de  2020",5800000,5800000,"ROSA MADERA","GERENTE",1668,2589,{"$f":"VLOOKUP(A72:A486,'[2]ABRIL 2020'!$B$3:$M$584,12,0)","v":"2020-04-21"},"https://www.contratos.gov.co/consultas/detalleProceso.do?numConstancia=20-4-10691733"]
[1010179685,"NAYIVI OSPINA ARROYAVE",1393,"1393-2020","SALUD OCUPACIONAL SEGURIDAD TRABAJO","01 de Abril de 2020","  30 de Abril de  2020",3180000,3180000,"FABIAN COLPAS","JEFE  TALENTO  HUMANO",1669,2590,{"$f":"VLOOKUP(A73:A487,'[2]ABRIL 2020'!$B$3:$M$584,12,0)","v":"2020-04-21"},"https://www.contratos.gov.co/consultas/detalleProceso.do?numConstancia=20-4-10691734"]
[8498281,"NESTOR  HERRERA BOCANEGRA ",1394,"1394-2020","ASESOR FINANCIERO","01 de Abril de 2020","  30 de Abril de  2020",4500000,4500000,"ALFONSO NICOLAS OQUENDO","DIRECTOR FINANCIERO",1670,2591,{"$f":"VLOOKUP(A74:A488,'[2]ABRIL 2020'!$B$3:$M$584,12,0)","v":"2020-04-21"},"https://www.contratos.gov.co/consultas/detalleProceso.do?numConstancia=20-4-10691735"]
[8603175,"NILSON ORTEGA JIMENEZ",1395,"1395-2020","AUXILIAR CONTABLE","01 de Abril de 2020","  30 de Abril de  2020",1900000,1900000,"ALFONSO NICOLAS OQUENDO","DIRECTOR FINANCIERO",1671,2592,{"$f":"VLOOKUP(A75:A489,'[2]ABRIL 2020'!$B$3:$M$584,12,0)","v":"2020-04-21"},"https://www.contratos.gov.co/consultas/detalleProceso.do?numConstancia=20-4-10691736"]
[32607428,"TEMILDA MARIA PERTUZ PEREZ",{"$f":"+C75+1","v":1396},"1411-2020","AUDITOR DE HABILITACIONES","01 de Abril de 2020","  30 de Abril de  2020",3180000,{"$f":"+H76*1","v":3180000},"BETTY PERTUZ ","SUBGERENCIA CIENTIFICA",1687,2608,{"$f":"VLOOKUP(A76:A490,'[2]ABRIL 2020'!$B$3:$M$584,12,0)","v":"2020-04-21"},"https://www.contratos.gov.co/consultas/detalleProceso.do?numConstancia=20-4-10692563"]
[1047340446,"OSCAR MAURICIO MARENCO ROMERO",1397,"1397-2020","MENSAJERO ","01 de Abril de 2020","  30 de Abril de  2020",1800000,1800000,"BETTY PERTUZ ","SUBGERENCIA CIENTIFICA",1673,2594,{"$f":"VLOOKUP(A77:A491,'[2]ABRIL 2020'!$B$3:$M$584,12,0)","v":"2020-04-21"},"https://www.contratos.gov.co/consultas/detalleProceso.do?numConstancia=20-4-10691739"]
[72015109,"PEDRO CARLOS CANTILLO BOLIVAR",1398,"1398-2020","ASESOR DE PRESUPUESTO","01 de Abril de 2020","  30 de Abril de  2020",4000000,4000000,"ALFONSO NICOLAS OQUENDO","DIRECTOR FINANCIERO",1674,2595,{"$f":"VLOOKUP(A78:A492,'[2]ABRIL 2020'!$B$3:$M$584,12,0)","v":"2020-04-21"},"https://www.contratos.gov.co/consultas/detalleProceso.do?numConstancia=20-4-10691740"]
[72293492,"RODOLFO ENRIQUE NARVAEZ  GUTIERREZ ",1399,"1399-2020","ESTADISTICA","01 de Abril de 2020","  30 de Abril de  2020",3500000,3500000,"GENARO   GUTIERREZ DE PIÑERES","JEFE ESTADISTICA ",1675,2596,{"$f":"VLOOKUP(A79:A493,'[2]ABRIL 2020'!$B$3:$M$584,12,0)","v":"2020-04-21"},"https://www.contratos.gov.co/consultas/detalleProceso.do?numConstancia=20-4-10691741"]
[22446590,"ROSALBA CERPA MIRANDA ",1400,"1400-2020","AUXILIAR ADMINISTRATIVO -  SUBGERENCIA CIENTIFICA","01 de Abril de 2020","  30 de Abril de  2020",1900000,1900000,"BETTY PERTUZ ","SUBGERENCIA CIENTIFICA",1676,2597,{"$f":"VLOOKUP(A80:A494,'[2]ABRIL 2020'!$B$3:$M$584,12,0)","v":"2020-04-21"},"https://www.contratos.gov.co/consultas/detalleProceso.do?numConstancia=20-4-10691742"]
[72432594,"RUBEN  DARIO UCROS FABREGAS",1401,"1401-2020","AUXILIAR DE FACTURACION ","01 de Abril de 2020","  30 de Abril de  2020",2100000,2100000,"SANDRA SANMARTIN","SUBGENTE ADMINISTRATIVO",1677,2598,{"$f":"VLOOKUP(A81:A495,'[2]ABRIL 2020'!$B$3:$M$584,12,0)","v":"2020-04-21"},"https://www.contratos.gov.co/consultas/detalleProceso.do?numConstancia=20-4-10691743"]
[1140881027,"RUBEN DARIO GARZON GOMEZ",1402,"1402-2020","ABOGADO EXTERNO","01 de Abril de 2020","  30 de Abril de  2020",5500000,5500000,"ORNELLA FIORENTINO ","JEFE DE JURIDICA",1678,2599,{"$f":"VLOOKUP(A82:A496,'[2]ABRIL 2020'!$B$3:$M$584,12,0)","v":"2020-04-21"},"https://www.contratos.gov.co/consultas/detalleProceso.do?numConstancia=20-4-10691745"]
[1140818354,"SAEN DAVID TAJAN NIEBLES",1403,"1403-2020","AUXILIAR ADMINISTRATIVO - DE  PROMOCION Y PREVENCION","01 de Abril de 2020","  30 de Abril de  2020",2000000,2000000,"NILSA ARIZA MARQUEZ","COORDINADOR PYP",1679,2600,{"$f":"VLOOKUP(A83:A497,'[2]ABRIL 2020'!$B$3:$M$584,12,0)","v":"2020-04-21"},"https://www.contratos.gov.co/consultas/detalleProceso.do?numConstancia=20-4-10691747"]
[27895505,"SANDRA MILENA GARCIA PEÑA",1404,"1404-2020","APOYO GESTION DOCUMENTAL JURIDICA","01 de Abril de 2020","  30 de Abril de  2020",1500000,1500000,"ORNELLA FIORENTINO ","JEFE DE JURIDICA",1680,2601,{"$f":"VLOOKUP(A84:A498,'[2]ABRIL 2020'!$B$3:$M$584,12,0)","v":"2020-04-21"},"https://www.contratos.gov.co/consultas/detalleProceso.do?numConstancia=20-4-10691748"]
[1045751778,"SERGIO ANDRES INFANZON CASTRO ",1405,"1405-2020","ASESOR","01 de Abril de 2020","  30 de Abril de  2020",5800000,5800000,"ROSA MADERA","GERENTE",1681,2602,{"$f":"VLOOKUP(A85:A499,'[2]ABRIL 2020'!$B$3:$M$584,12,0)","v":"2020-04-21"},"https://www.contratos.gov.co/consultas/detalleProceso.do?numConstancia=20-4-10691749"]
[1045691613,"SERGIO ANDRES MANJARRES MAESTRE",1406,"1406-2020","PLANEACION ","01 de Abril de 2020","  30 de Abril de  2020",4000000,4000000,"SANDRA SANMARTIN","SUBGENTE ADMINISTRATIVO",1682,2603,{"$f":"VLOOKUP(A86:A500,'[2]ABRIL 2020'!$B$3:$M$584,12,0)","v":"2020-04-21"},"https://www.contratos.gov.co/consultas/detalleProceso.do?numConstancia=20-4-10691750"]
[1043121395,"SHEYLA DEL CARMEN ESTRADA ARIZA",1407,"1407-2020","TECNICO DE SISTEMAS ","01 de Abril de 2020","  30 de Abril de  2020",1270000,1270000,"ZULI ROMERO ","COORDINADORA  TIC",1683,2604,{"$f":"VLOOKUP(A87:A501,'[2]ABRIL 2020'!$B$3:$M$584,12,0)","v":"2020-04-21"},"https://www.contratos.gov.co/consultas/detalleProceso.do?numConstancia=20-4-10691753"]
[32870174,"SIRLEY PAOLA PEREZ CARMONA",1408,"1408-2020","CALIDAD","01 de Abril de 2020","  30 de Abril de  2020",5800000,5800000,"BETTY PERTUZ ","SUBGERENCIA CIENTIFICA",1684,2605,{"$f":"VLOOKUP(A88:A502,'[2]ABRIL 2020'!$B$3:$M$584,12,0)","v":"2020-04-21"},"https://www.contratos.gov.co/consultas/detalleProceso.do?numConstancia=20-4-10691755"]
[1045667618,"SONIA MARY BALLESTAS VERGARA",1409,"1409-2020","ABOGADA EXTERNA","01 de Abril de 2020","  30 de Abril de  2020",4000000,4000000,"ORNELLA FIORENTINO","JEFE JURIDICA",1685,2606,{"$f":"VLOOKUP(A89:A503,'[2]ABRIL 2020'!$B$3:$M$584,12,0)","v":"2020-04-21"},"https://www.contratos.gov.co/consultas/detalleProceso.do?numConstancia=20-4-10691756"]
[1140814033,"STEFANY RINCON TORRES",1410,"1410-2020","ASISTENTE COORDINACION EMERGENCIA COVIC -19","01 de Abril de 2020","  30 de Abril de  2020",3600000,3600000,"SANDRA SANMARTIN","SUBGENTE ADMINISTRATIVO",1686,2607,{"$f":"VLOOKUP(A90:A504,'[2]ABRIL 2020'!$B$3:$M$584,12,0)","v":"2020-04-21"},"https://www.contratos.gov.co/consultas/detalleProceso.do?numConstancia=20-4-10692543"]
[1129572439,"SHIRLEY CONSUEGRA OLAYA",1411,"1506-2020","REFERENCIA Y CONTRAREFERENCIA","01 de Abril de 2020","  30 de Abril de  2020",1524000,1524000,"SERGIO BOVEA MARIN","COORD CENTRO DE SALUD",1782,2703,{"$f":"VLOOKUP(A91:A505,'[2]ABRIL 2020'!$B$3:$M$584,12,0)","v":{"$error":"#N/A"}},{"$error":"#N/A"}]
[44151551,"VANESSA NUÑEZ JIMENEZ",1412,"1412-2020","ASESOR GERENCIA","01 de Abril de 2020","  30 de Abril de  2020",5000000,5000000,"ROSA MADERA","GERENTE",1688,2609,{"$f":"VLOOKUP(A92:A506,'[2]ABRIL 2020'!$B$3:$M$584,12,0)","v":"2020-04-21"},"https://www.contratos.gov.co/consultas/detalleProceso.do?numConstancia=20-4-10692580"]
[72202548,"WILBER CASTRO RIOS",1413,"1413-2020","MENSAJERO ","01 de Abril de 2020","  30 de Abril de  2020",2000000,2000000,"SANDRA SANMARTIN","SUBGENTE ADMINISTRATIVO",1689,2610,{"$f":"VLOOKUP(A93:A507,'[2]ABRIL 2020'!$B$3:$M$584,12,0)","v":"2020-04-21"},"https://www.contratos.gov.co/consultas/detalleProceso.do?numConstancia=20-4-10692600"]
[1045717737,"YAIR YEZID MELO VALENCIA",1414,"1414-2020","ASESOR DE PRESUPUESTO","01 de Abril de 2020","  30 de Abril de  2020",4000000,4000000,"ALFONSO NICOLAS OQUENDO","DIRECTOR FINANCIERO",1690,2611,{"$f":"VLOOKUP(A94:A508,'[2]ABRIL 2020'!$B$3:$M$584,12,0)","v":"2020-04-21"},"https://www.contratos.gov.co/consultas/detalleProceso.do?numConstancia=20-4-10692616"]
[77030162,"YECITH FELIPE MARTINEZ QUINTERO",1415,"1415-2020","MENSAJERO ","01 de Abril de 2020","  30 de Abril de  2020",1800000,1800000,"SANDRA SANMARTIN","SUBGENTE ADMINISTRATIVO",1691,2612,{"$f":"VLOOKUP(A95:A509,'[2]ABRIL 2020'!$B$3:$M$584,12,0)","v":"2020-04-21"},"https://www.contratos.gov.co/consultas/detalleProceso.do?numConstancia=20-4-10692624"]
[1045733253,"YELICSE LORENA ALFONSO DE LOS SANTOS",1416,"1416-2020","AUXILIAR ADMINISTRATIVO -CONTRATACION ","01 de Abril de 2020","  30 de Abril de  2020",1500000,1500000,"ORNELLA FIORENTINO ","JEFE DE JURIDICA",1692,2613,{"$f":"VLOOKUP(A96:A510,'[2]ABRIL 2020'!$B$3:$M$584,12,0)","v":"2020-04-21"},"https://www.contratos.gov.co/consultas/detalleProceso.do?numConstancia=20-4-10692638"]
[1143132965,"YERLIS PAOLA GAMARRA BORJA",1417,"1417-2020","AUXILIAR ADMINISTRATIVO ","01 de Abril de 2020","  30 de Abril de  2020",4000000,4000000,"ROSA MADERA","GERENTE",1693,2614,{"$f":"VLOOKUP(A97:A511,'[2]ABRIL 2020'!$B$3:$M$584,12,0)","v":"2020-04-21"},"https://www.contratos.gov.co/consultas/detalleProceso.do?numConstancia=20-4-10692647"]
[57105527,"ZOILA PATRICIA PABON HERNANDEZ",1418,"1418-2020","ASISTENTE COORDINACIÓN MÉDICA","01 de Abril de 2020","  30 de Abril de  2020",3500000,3500000,"BETTY PERTUZ ","SUBGERENCIA CIENTIFICA",1694,2615,{"$f":"VLOOKUP(A98:A512,'[2]ABRIL 2020'!$B$3:$M$584,12,0)","v":"2020-04-21"},"https://www.contratos.gov.co/consultas/detalleProceso.do?numConstancia=20-4-10692655"]
[32825462,"ANAIS DE JESUS RODRIGUEZ DE  LAS AGUAS",1419,"1419-2020","AUXILIAR SERVICIOS GENERALES","01 de Abril de 2020","  30 de Abril de  2020",1215000,1215000,"SANDRA SANMARTIN","SUBGENTE ADMINISTRATIVO",1695,2616,{"$f":"VLOOKUP(A99:A513,'[2]ABRIL 2020'!$B$3:$M$584,12,0)","v":"2020-04-21"},"https://www.contratos.gov.co/consultas/detalleProceso.do?numConstancia=20-4-10692670"]
[22615419,"ALCIRA ROCIO RIVERA DONADO",1420,"1420-2020","AUXILIAR DE ARCHIVO","01 de Abril de 2020","  30 de Abril de  2020",1500000,1500000,"SANDRA SANMARTIN","SUBGENTE ADMINISTRATIVO",1696,2617,{"$f":"VLOOKUP(A100:A514,'[2]ABRIL 2020'!$B$3:$M$584,12,0)","v":"2020-04-21"},"https://www.contratos.gov.co/consultas/detalleProceso.do?numConstancia=20-4-10692688"]
[8566775,"ALEJANDRO LIBARDO ALEMAN MARQUEZ",1421,"1421-2020","AUXILIAR DE ARCHIVO ","01 de Abril de 2020","  30 de Abril de  2020",1500000,1500000,"SANDRA SANMARTIN","SUBGENTE ADMINISTRATIVO",1697,2618,{"$f":"VLOOKUP(A101:A515,'[2]ABRIL 2020'!$B$3:$M$584,12,0)","v":"2020-04-21"},"https://www.contratos.gov.co/consultas/detalleProceso.do?numConstancia=20-4-10692703"]
[8714709,"ALFONSO DOMINGUEZ MARENCO",1422,"1422-2020","AUXILIAR DE ARCHIVO ","01 de Abril de 2020","  30 de Abril de  2020",1500000,1500000,"SANDRA SANMARTIN","SUBGENTE ADMINISTRATIVO",1698,2619,{"$f":"VLOOKUP(A102:A516,'[2]ABRIL 2020'!$B$3:$M$584,12,0)","v":"2020-04-21"},"https://www.contratos.gov.co/consultas/detalleProceso.do?numConstancia=20-4-10692710"]
[15666678,"ALFREDO ANTONIO RAMIREZ PEREIRA",1423,"1423-2020","COORDINADOR DE ARCHIVO ","01 de Abril de 2020","  30 de Abril de  2020",3000000,3000000,"SANDRA SANMARTIN","SUBGENTE ADMINISTRATIVO",1699,2620,{"$f":"VLOOKUP(A103:A517,'[2]ABRIL 2020'!$B$3:$M$584,12,0)","v":"2020-04-21"},"https://www.contratos.gov.co/consultas/detalleProceso.do?numConstancia=20-4-10692723"]
[32813366,"ANA GONZALEZ ZAMBRANO",1424,"1424-2020","AUXILIAR DE ARCHIVO ","01 de Abril de 2020","  30 de Abril de  2020",1500000,1500000,"SANDRA SANMARTIN","SUBGENTE ADMINISTRATIVO",1700,2621,{"$f":"VLOOKUP(A104:A518,'[2]ABRIL 2020'!$B$3:$M$584,12,0)","v":"2020-04-21"},"https://www.contratos.gov.co/consultas/detalleProceso.do?numConstancia=20-4-10692744"]
[32767778,"BEATRIZ ELENA GUTIERREZ AHUMADA",1425,"1425-2020","DIGITADOR PAI WEB ","01 de Abril de 2020","  30 de Abril de  2020",1378000,1378000,"NILSA ARIZA MARQUEZ","COORDINADOR PYP",1701,2622,{"$f":"VLOOKUP(A105:A519,'[2]ABRIL 2020'!$B$3:$M$584,12,0)","v":"2020-04-21"},"https://www.contratos.gov.co/consultas/detalleProceso.do?numConstancia=20-4-10692751"]
[45496113,"BEATRIZ HELENA JIMENO CARDENAS",1426,"1426-2020","AUXILIAR DE ARCHIVO ","01 de Abril de 2020","  30 de Abril de  2020",1500000,1500000,"SANDRA SANMARTIN","SUBGENTE ADMINISTRATIVO",1702,2623,{"$f":"VLOOKUP(A106:A520,'[2]ABRIL 2020'!$B$3:$M$584,12,0)","v":"2020-04-21"},"https://www.contratos.gov.co/consultas/detalleProceso.do?numConstancia=20-4-10692761"]
[33109830,"CARMEN ELISA LEONES CASTRO",1427,"1427-2020","AUXILIAR DE ARCHIVO ","01 de Abril de 2020","  30 de Abril de  2020",1800000,1800000,"SANDRA SANMARTIN","SUBGENTE ADMINISTRATIVO",1703,2624,{"$f":"VLOOKUP(A107:A521,'[2]ABRIL 2020'!$B$3:$M$584,12,0)","v":"2020-04-21"},"https://www.contratos.gov.co/consultas/detalleProceso.do?numConstancia=20-4-10692780"]
[1143439595,"DAYANA PAOLA OTALORA AMAYA",1428,"1428-2020","DIGITADOR PAI WEB ","01 de Abril de 2020","  30 de Abril de  2020",1400000,1400000,"NILSA ARIZA MARQUEZ","COORDINADOR PYP",1704,2625,{"$f":"VLOOKUP(A108:A522,'[2]ABRIL 2020'!$B$3:$M$584,12,0)","v":"2020-04-21"},"https://www.contratos.gov.co/consultas/detalleProceso.do?numConstancia=20-4-10692786"]
[1043142073,"DORALIZ ECHEVERRI PEREZ",1429,"1429-2020","GESTION DOCUMENTAL","01 de Abril de 2020","  30 de Abril de  2020",1500000,1500000,"FABIAN COLPAS","JEFE  TALENTO  HUMANO",1705,2626,{"$f":"VLOOKUP(A109:A523,'[2]ABRIL 2020'!$B$3:$M$584,12,0)","v":"2020-04-21"},"https://www.contratos.gov.co/consultas/detalleProceso.do?numConstancia=20-4-10692803"]
[32772038,"ELIANA BEATRIZ ABRIL DE LA ROSA ",1430,"1430-2020","AUXILIAR ADMINISTRATIVO - RECURSOS HUMANOS  ","01 de Abril de 2020","  30 de Abril de  2020",1900000,1900000,"FABIAN COLPAS","JEFE  TALENTO  HUMANO",1706,2627,{"$f":"VLOOKUP(A110:A524,'[2]ABRIL 2020'!$B$3:$M$584,12,0)","v":"2020-04-21"},"https://www.contratos.gov.co/consultas/detalleProceso.do?numConstancia=20-4-10692809"]
[1007045398,"ELIEZER VEGA ARAGON",1431,"1431-2020","AUXILIAR DE ARCHIVO ","01 de Abril de 2020","  30 de Abril de  2020",1500000,1500000,"SANDRA SANMARTIN","SUBGENTE ADMINISTRATIVO",1707,2628,{"$f":"VLOOKUP(A111:A525,'[2]ABRIL 2020'!$B$3:$M$584,12,0)","v":"2020-04-21"},"https://www.contratos.gov.co/consultas/detalleProceso.do?numConstancia=20-4-10692835"]
[72170268,"FABIAN FERNANDO MERCADO",1432,"1432-2020","DIGITADOR PAI WEB ","01 de Abril de 2020","  30 de Abril de  2020",1270000,1270000,"NILSA ARIZA MARQUEZ","COORDINADOR PYP",1708,2629,{"$f":"VLOOKUP(A112:A526,'[2]ABRIL 2020'!$B$3:$M$584,12,0)","v":"2020-04-21"},"https://www.contratos.gov.co/consultas/detalleProceso.do?numConstancia=20-4-10692877"]
[8750355,"FREDDY BARCELO DONADO",1433,"1433-2020","AUXILIAR DE ARCHIVO ","01 de Abril de 2020","  30 de Abril de  2020",1500000,1500000,"SANDRA SANMARTIN","SUBGENTE ADMINISTRATIVO",1709,2630,{"$f":"VLOOKUP(A113:A527,'[2]ABRIL 2020'!$B$3:$M$584,12,0)","v":"2020-04-21"},"https://www.contratos.gov.co/consultas/detalleProceso.do?numConstancia=20-4-10692907"]
[8756266,"GEOVANNY ESCORCIA JIMENEZ",1434,"1434-2020","AUXILIAR DE ARCHIVO ","01 de Abril de 2020","  30 de Abril de  2020",1500000,1500000,"SANDRA SANMARTIN","SUBGENTE ADMINISTRATIVO",1710,2631,{"$f":"VLOOKUP(A114:A528,'[2]ABRIL 2020'!$B$3:$M$584,12,0)","v":"2020-04-21"},"https://www.contratos.gov.co/consultas/detalleProceso.do?numConstancia=20-4-10692916"]
[1042448309,"GERALDINE ALEXANDRA MEDRANO IGLESIAS",1435,"1435-2020","AUXILIAR DE ARCHIVO ","01 de Abril de 2020","  30 de Abril de  2020",1500000,1500000,"SANDRA SANMARTIN","SUBGENTE ADMINISTRATIVO",1711,2632,{"$f":"VLOOKUP(A115:A529,'[2]ABRIL 2020'!$B$3:$M$584,12,0)","v":"2020-04-21"},"https://www.contratos.gov.co/consultas/detalleProceso.do?numConstancia=20-4-10694588"]
[72227312,"HUGO CHARRIS PEREZ",1436,"1436-2020","AUXILIAR DE ARCHIVO ","01 de Abril de 2020","  30 de Abril de  2020",1500000,1500000,"SANDRA SANMARTIN","SUBGENTE ADMINISTRATIVO",1712,2633,{"$f":"VLOOKUP(A116:A530,'[2]ABRIL 2020'!$B$3:$M$584,12,0)","v":"2020-04-21"},"https://www.contratos.gov.co/consultas/detalleProceso.do?numConstancia=20-4-10694635"]
[1010123461,"IVAN RAMIRO MORENO MENDOZA",1437,"1437-2020","DIGITADOR PAI WEB ","01 de Abril de 2020","  30 de Abril de  2020",1400000,1400000,"NILSA ARIZA MARQUEZ","COORDINADOR PYP",1713,2634,{"$f":"VLOOKUP(A117:A531,'[2]ABRIL 2020'!$B$3:$M$584,12,0)","v":"2020-04-21"},"https://www.contratos.gov.co/consultas/detalleProceso.do?numConstancia=20-4-10694637"]
[73140179,"JULIO CESAR LOPEZ ROMERO",1438,"1438-2020","DIGITADOR PAI WEB ","01 de Abril de 2020","  30 de Abril de  2020",2000000,2000000,"NILSA ARIZA MARQUEZ","COORDINADOR PYP",1714,2635,{"$f":"VLOOKUP(A118:A532,'[2]ABRIL 2020'!$B$3:$M$584,12,0)","v":"2020-04-21"},"https://www.contratos.gov.co/consultas/detalleProceso.do?numConstancia=20-4-10694643"]
[22468261,"KANYA MALLERLY BERNAL BECERRA ",1439,"1439-2020","DIGITADOR PAI WEB ","01 de Abril de 2020","  30 de Abril de  2020",2200000,2200000,"NILSA ARIZA MARQUEZ","COORDINADOR PYP",1715,2636,{"$f":"VLOOKUP(A119:A533,'[2]ABRIL 2020'!$B$3:$M$584,12,0)","v":"2020-04-21"},"https://www.contratos.gov.co/consultas/detalleProceso.do?numConstancia=20-4-10694655"]
[1042429330,"KATHERINE  BALZA SALAS",1440,"1440-2020","AUXILIAR DE ARCHIVO ","01 de Abril de 2020","  30 de Abril de  2020",1500000,1500000,"SANDRA SANMARTIN","SUBGENTE ADMINISTRATIVO",1716,2637,{"$f":"VLOOKUP(A120:A534,'[2]ABRIL 2020'!$B$3:$M$584,12,0)","v":"2020-04-21"},"https://www.contratos.gov.co/consultas/detalleProceso.do?numConstancia=20-4-10694665"]
[72271914,"LEONARDO DE JESUS ARIZA NIEBLES          ",1441,"1441-2020","AUXILIAR DE ARCHIVO ","01 de Abril de 2020","  30 de Abril de  2020",1800000,1800000,"SANDRA SANMARTIN","SUBGENTE ADMINISTRATIVO",1717,2638,{"$f":"VLOOKUP(A121:A535,'[2]ABRIL 2020'!$B$3:$M$584,12,0)","v":"2020-04-21"},"https://www.contratos.gov.co/consultas/detalleProceso.do?numConstancia=20-4-10694674"]
[1042440221,"MARIA DE LA HOZ DE LA HOZ",1442,"1442-2020","AUXILIAR DE ARCHIVO ","01 de Abril de 2020","  30 de Abril de  2020",1900000,1900000,"SANDRA SANMARTIN","SUBGENTE ADMINISTRATIVO",1718,2639,{"$f":"VLOOKUP(A122:A536,'[2]ABRIL 2020'!$B$3:$M$584,12,0)","v":"2020-04-21"},"https://www.contratos.gov.co/consultas/detalleProceso.do?numConstancia=20-4-10694678"]
[8774531,"MARIANO JOSE UCROS ROMERO",1443,"1443-2020","AUXILIAR DE ARCHIVO ","01 de Abril de 2020","  30 de Abril de  2020",1500000,1500000,"SANDRA SANMARTIN","SUBGENTE ADMINISTRATIVO",1719,2640,{"$f":"VLOOKUP(A123:A537,'[2]ABRIL 2020'!$B$3:$M$584,12,0)","v":"2020-04-21"},"https://www.contratos.gov.co/consultas/detalleProceso.do?numConstancia=20-4-10694740"]
[32817343,"MARIELA NIEBLES FREILE",1444,"1444-2020","AUXILIAR DE ARCHIVO ","01 de Abril de 2020","  30 de Abril de  2020",1800000,1800000,"SANDRA SANMARTIN","SUBGENTE ADMINISTRATIVO",1720,2641,{"$f":"VLOOKUP(A124:A538,'[2]ABRIL 2020'!$B$3:$M$584,12,0)","v":"2020-04-21"},"https://www.contratos.gov.co/consultas/detalleProceso.do?numConstancia=20-4-10694747"]
[1001798861,"MARTHA LAURA VIZCAINO PEREZ",1445,"1445-2020","DIGITADOR PAI WEB ","01 de Abril de 2020","  30 de Abril de  2020",1400000,1400000,"NILSA ARIZA MARQUEZ","COORDINADOR PYP",1721,2642,{"$f":"VLOOKUP(A125:A539,'[2]ABRIL 2020'!$B$3:$M$584,12,0)","v":"2020-04-21"},"https://www.contratos.gov.co/consultas/detalleProceso.do?numConstancia=20-4-10694763"]
[1047337864,"MARTHA MARÍA ARIZA FONTALVO",1446,"1446-2020","AUXILIAR DE ARCHIVO ","01 de Abril de 2020","  30 de Abril de  2020",1500000,1500000,"SANDRA SANMARTIN","SUBGENTE ADMINISTRATIVO",1722,2643,{"$f":"VLOOKUP(A126:A540,'[2]ABRIL 2020'!$B$3:$M$584,12,0)","v":"2020-04-21"},"https://www.contratos.gov.co/consultas/detalleProceso.do?numConstancia=20-4-10694766"]
[1001878251,"MAYRA ALEJANDRA ESCORCIA DE LA HOZ",1447,"1447-2020","AUXILIAR DE ARCHIVO ","01 de Abril de 2020","  30 de Abril de  2020",1500000,1500000,"SANDRA SANMARTIN","SUBGENTE ADMINISTRATIVO",1723,2644,{"$f":"VLOOKUP(A127:A541,'[2]ABRIL 2020'!$B$3:$M$584,12,0)","v":"2020-04-21"},"https://www.contratos.gov.co/consultas/detalleProceso.do?numConstancia=20-4-10694799"]
[32862644,"NURYS GARCIA DELGADO",1448,"1448-2020","AUXILIAR ARCHIVO","01 de Abril de 2020","  30 de Abril de  2020",1500000,1500000,"SANDRA SANMARTIN","SUBGENTE ADMINISTRATIVO",1724,2645,{"$f":"VLOOKUP(A128:A542,'[2]ABRIL 2020'!$B$3:$M$584,12,0)","v":"2020-04-21"},"https://www.contratos.gov.co/consultas/detalleProceso.do?numConstancia=20-4-10694802"]
[36594015,"PAOLA PEREZ SIERRA ",1449,"1449-2020","AUXILIAR DE ARCHIVO ","01 de Abril de 2020","  30 de Abril de  2020",1500000,1500000,"SANDRA SANMARTIN","SUBGENTE ADMINISTRATIVO",1725,2646,{"$f":"VLOOKUP(A129:A543,'[2]ABRIL 2020'!$B$3:$M$584,12,0)","v":"2020-04-21"},"https://www.contratos.gov.co/consultas/detalleProceso.do?numConstancia=20-4-10694808"]
[32788911,"PEGGY ESTHER CARRILLO MUÑOZ",1450,"1450-2020","DIGITADOR PAI WEB ","01 de Abril de 2020","  30 de Abril de  2020",1500000,1500000,"NILSA ARIZA MARQUEZ","COORDINADOR PYP",1726,2647,{"$f":"VLOOKUP(A130:A544,'[2]ABRIL 2020'!$B$3:$M$584,12,0)","v":"2020-04-21"},"https://www.contratos.gov.co/consultas/detalleProceso.do?numConstancia=20-4-10694811"]
[1042439971,"ROGER RAFAEL RAMBAO NIEBLES",1451,"1451-2020","DIGITADOR PAI WEB ","01 de Abril de 2020","  30 de Abril de  2020",1400000,1400000,"NILSA ARIZA MARQUEZ","COORDINADOR PYP",1727,2648,{"$f":"VLOOKUP(A131:A545,'[2]ABRIL 2020'!$B$3:$M$584,12,0)","v":"2020-04-21"},"https://www.contratos.gov.co/consultas/detalleProceso.do?numConstancia=20-4-10694814"]
[1143447904,"STEFFANY BRIGGITTE ALVAREZ LLERENA",1452,"1452-2020","DIGITADOR PAI WEB ","01 de Abril de 2020","  30 de Abril de  2020",1800000,1800000,"NILSA ARIZA MARQUEZ","COORDINADOR PYP",1728,2649,{"$f":"VLOOKUP(A132:A546,'[2]ABRIL 2020'!$B$3:$M$584,12,0)","v":"2020-04-21"},"https://www.contratos.gov.co/consultas/detalleProceso.do?numConstancia=20-4-10694817"]
[55250327,"YURANIS BONIFAS CAÑAS",1453,"1453-2020","COORDINADOR DE PAI WEB","01 de Abril de 2020","  30 de Abril de  2020",3000000,3000000,"NILSA ARIZA MARQUEZ","COORDINADOR PYP",1729,2650,{"$f":"VLOOKUP(A133:A547,'[2]ABRIL 2020'!$B$3:$M$584,12,0)","v":"2020-04-21"},"https://www.contratos.gov.co/consultas/detalleProceso.do?numConstancia=20-4-10694823"]
[55221348,"MERCEDES SUSANA ESTARITA GUTIERREZ DE PIÑERES",1454,"1454-2020","AUXILIAR DE ARCHIVO","01 de Abril de 2020","  30 de Abril de  2020",2000000,2000000,"SANDRA SANMARTIN","SUBGENTE ADMINISTRATIVO",1730,2651,{"$f":"VLOOKUP(A134:A548,'[2]ABRIL 2020'!$B$3:$M$584,12,0)","v":"2020-04-21"},"https://www.contratos.gov.co/consultas/detalleProceso.do?numConstancia=20-4-10694828"]
[22562553,"SILVANA BEATRIZ GONZALEZ MORENO ",1455,"1455-2020","TECNICO ALMACEN ","01 de Abril de 2020","  30 de Abril de  2020",1900000,1900000,"MARIA SANCHEZ AYALA","JEFE ALMACEN",1731,2652,{"$f":"VLOOKUP(A135:A549,'[2]ABRIL 2020'!$B$3:$M$584,12,0)","v":"2020-04-21"},"https://www.contratos.gov.co/consultas/detalleProceso.do?numConstancia=20-4-10694877"]
[8762665,"ELIECER DE JESUS CALLE QUINTERO",1456,"1456-2020","TECNICO ALMACEN ","01 de Abril de 2020","  30 de Abril de  2020",1900000,1900000,"MARIA SANCHEZ AYALA","JEFE DE ALMACEN",1732,2653,{"$f":"VLOOKUP(A136:A550,'[2]ABRIL 2020'!$B$3:$M$584,12,0)","v":"2020-04-21"},"https://www.contratos.gov.co/consultas/detalleProceso.do?numConstancia=20-4-10694887"]
[32826802,"ROCIO ISABEL FRIAS COLPAS",1457,"1457-2020","AUXILIAR SERVICIOS GENERALES","01 de Abril de 2020","  30 de Abril de  2020",1215000,1215000,"MARIA SANCHEZ AYALA","JEFE DE LAMACEN ",1733,2654,{"$f":"VLOOKUP(A137:A551,'[2]ABRIL 2020'!$B$3:$M$584,12,0)","v":"2020-04-21"},"https://www.contratos.gov.co/consultas/detalleProceso.do?numConstancia=20-4-10694892"]
[72238499,"CARLOS ANTONIO MATTOS MIRANDA",1458,"1458-2020","REFERENCIA Y CONTRAREFERENCIA","01 de Abril de 2020","  30 de Abril de  2020",1776000,1776000,"SERGIO BOVEA MARIN","COORD CENTRO DE SALUD",1734,2655,{"$f":"VLOOKUP(A138:A552,'[2]ABRIL 2020'!$B$3:$M$584,12,0)","v":"2020-04-21"},"https://www.contratos.gov.co/consultas/detalleProceso.do?numConstancia=20-4-10694899"]
[55309225,"ADRIANA BALLESTAS MARTINEZ",1459,"1459-2020","MEDICO DE URGENCIA","01 de Abril de 2020","  30 de Abril de  2020",3072000,3072000,"SERGIO BOVEA MARIN","COORD CENTRO DE SALUD",1735,2656,{"$f":"VLOOKUP(A139:A553,'[2]ABRIL 2020'!$B$3:$M$584,12,0)","v":"2020-04-21"},"https://www.contratos.gov.co/consultas/detalleProceso.do?numConstancia=20-4-10694901"]
[1042428171,"ALEX ENRIQUE VILLARREAL IBAÑEZ",{"$f":"+C139+1","v":1460},"1460-2020","ODONTOLOGO","01 de Abril de 2020","  30 de Abril de  2020",1900000,{"$f":"+H140*1","v":1900000},"SERGIO BOVEA MARIN","COORD CENTRO DE SALUD",1736,2657,{"$f":"VLOOKUP(A140:A554,'[2]ABRIL 2020'!$B$3:$M$584,12,0)","v":"2020-04-21"},"https://www.contratos.gov.co/consultas/detalleProceso.do?numConstancia=20-4-10694905"]
[22523223,"ALEXANDRA ESTHER MOLINA PEREZ",1461,"1461-2020","AUXILIAR SERVICIOS GENERALES URGENCIA","01 de Abril de 2020","  30 de Abril de  2020",1653600,1653600,"SERGIO BOVEA MARIN","COORD CENTRO DE SALUD",1737,2658,{"$f":"VLOOKUP(A141:A555,'[2]ABRIL 2020'!$B$3:$M$584,12,0)","v":"2020-04-21"},"https://www.contratos.gov.co/consultas/detalleProceso.do?numConstancia=20-4-10694912"]
[72000601,"ALEXIS JAVIER SUAREZ CABALLERO",1462,"1462-2020","AUXILIAR DE FACTURACION   URGENCIA","01 de Abril de 2020","  30 de Abril de  2020",1680000,1680000,"SANDRA SANMARTIN","SUBGENTE ADMINISTRATIVO",1738,2659,{"$f":"VLOOKUP(A142:A556,'[2]ABRIL 2020'!$B$3:$M$584,12,0)","v":"2020-04-21"},"https://www.contratos.gov.co/consultas/detalleProceso.do?numConstancia=20-4-10694918"]
[8697543,"ALVARO ARENAS GONZALEZ",1463,"1463-2020","MEDICO DE MATERNIDAD ","01 de Abril de 2020","  30 de Abril de  2020",5088000,5088000,"SERGIO BOVEA MARIN","COORD CENTRO DE SALUD",1739,2660,{"$f":"VLOOKUP(A143:A557,'[2]ABRIL 2020'!$B$3:$M$584,12,0)","v":"2020-04-21"},"https://www.contratos.gov.co/consultas/detalleProceso.do?numConstancia=20-4-10694921"]
[8501206,"AUGUSTO RAFAEL VALENCIA OCAMPO",1464,"1464-2020","AUXILIAR DE FACTURACIÓN  URGENCIA","01 de Abril de 2020","  30 de Abril de  2020",1780000,1780000,"SERGIO BOVEA MARIN","COORD CENTRO DE SALUD",1740,2661,{"$f":"VLOOKUP(A144:A558,'[2]ABRIL 2020'!$B$3:$M$584,12,0)","v":"2020-04-21"},"https://www.contratos.gov.co/consultas/detalleProceso.do?numConstancia=20-4-10694943"]
[1140872217,"BLEYDIS LORAINE PELAEZ LOBO",1465,"1465-2020","MEDICO DE URGENCIA","01 de Abril de 2020","  30 de Abril de  2020",3072000,3072000,"SERGIO BOVEA MARIN","COORD CENTRO DE SALUD",1741,2662,{"$f":"VLOOKUP(A145:A559,'[2]ABRIL 2020'!$B$3:$M$584,12,0)","v":"2020-04-21"},"https://www.contratos.gov.co/consultas/detalleProceso.do?numConstancia=20-4-10694955"]
[44158949,"CARMEN PACHECO VARELA",1466,"1466-2020","AUXILIAR SERVICIOS GENERALES URGENCIA","01 de Abril de 2020","  30 de Abril de  2020",1653600,1653600,"SERGIO BOVEA MARIN","COORD CENTRO DE SALUD",1742,2663,{"$f":"VLOOKUP(A146:A560,'[2]ABRIL 2020'!$B$3:$M$584,12,0)","v":"2020-04-21"},"https://www.contratos.gov.co/consultas/detalleProceso.do?numConstancia=20-4-10694962"]
[32712485,"CASILDA LARA SOLANO ",1467,"1467-2020","MEDICO MATERNIDAD SEGURA","01 de Abril de 2020","  30 de Abril de  2020",2120000,2120000,"SERGIO BOVEA MARIN","COORD CENTRO DE SALUD",1743,2664,{"$f":"VLOOKUP(A147:A561,'[2]ABRIL 2020'!$B$3:$M$584,12,0)","v":"2020-04-21"},"https://www.contratos.gov.co/consultas/detalleProceso.do?numConstancia=20-4-10694969"]
[1042442558,"DANISA PAOLA BARRIOS DE ALBA",1468,"1468-2020","NUTRICIONISTA","01 de Abril de 2020","  30 de Abril de  2020",2760000,2760000,"SERGIO BOVEA MARIN","COORD CENTRO DE SALUD",1744,2665,{"$f":"VLOOKUP(A148:A562,'[2]ABRIL 2020'!$B$3:$M$584,12,0)","v":"2020-04-21"},"https://www.contratos.gov.co/consultas/detalleProceso.do?numConstancia=20-4-10694975"]
[1082405551,"DESIRETH ESTRADA FERNANDEZ",1469,"1469-2020","ENFERMERA JEFE P Y P ","01 de Abril de 2020","  30 de Abril de  2020",2300000,2300000,"NILSA ARIZA MARQUEZ","COORDINADOR PYP",1745,2666,{"$f":"VLOOKUP(A149:A563,'[2]ABRIL 2020'!$B$3:$M$584,12,0)","v":"2020-04-21"},"https://www.contratos.gov.co/consultas/detalleProceso.do?numConstancia=20-4-10694981"]
[32818082,"DIVINA LUZ NIETO ZAMBRANO",1470,"1470-2020","AUXILIAR SERVICIOS GENERALES URGENCIA","01 de Abril de 2020","  30 de Abril de  2020",1653600,1653600,"SERGIO BOVEA MARIN","COORD CENTRO DE SALUD",1746,2667,{"$f":"VLOOKUP(A150:A564,'[2]ABRIL 2020'!$B$3:$M$584,12,0)","v":"2020-04-21"},"https://www.contratos.gov.co/consultas/detalleProceso.do?numConstancia=20-4-10694985"]
[32741368,"DOLLYS YERAYS GOMEZ RODRIGUEZ ",1471,"1471-2020","ASISTENTE ADMINISTRATIVO- COORD MEDICA","01 de Abril de 2020","  30 de Abril de  2020",1900000,1900000,"SERGIO BOVEA MARIN","COORD CENTRO DE SALUD",1747,2668,{"$f":"VLOOKUP(A151:A565,'[2]ABRIL 2020'!$B$3:$M$584,12,0)","v":"2020-04-21"},"https://www.contratos.gov.co/consultas/detalleProceso.do?numConstancia=20-4-10694993"]
[8734956,"EFRAIN CANTILLO GUERRERO",1472,"1472-2020","CONDUCTOR DE AMBULANCIA","01 de Abril de 2020","  30 de Abril de  2020",2160000,2160000,"BETTY PERTUZ ","SUBGERENCIA CIENTIFICA",1748,2669,{"$f":"VLOOKUP(A152:A566,'[2]ABRIL 2020'!$B$3:$M$584,12,0)","v":"2020-04-21"},"https://www.contratos.gov.co/consultas/detalleProceso.do?numConstancia=20-4-10694991"]
[8750161,"EFRAIN DE LA HOZ ROCHEL",1473,"1473-2020","MEDICO DE URGENCIA","01 de Abril de 2020","  30 de Abril de  2020",3072000,3072000,"SERGIO BOVEA MARIN","COORD CENTRO DE SALUD",1749,2670,{"$f":"VLOOKUP(A153:A567,'[2]ABRIL 2020'!$B$3:$M$584,12,0)","v":"2020-04-21"},"https://www.contratos.gov.co/consultas/detalleProceso.do?numConstancia=20-4-10694998"]
[1042436156,"EMELY ESCORCIA MARTINEZ",1474,"1474-2020","ENFERMERA JEFE URGENCIAS ","01 de Abril de 2020","  30 de Abril de  2020",2280000,2280000,"SERGIO BOVEA MARIN","COORD CENTRO DE SALUD",1750,2671,{"$f":"VLOOKUP(A154:A568,'[2]ABRIL 2020'!$B$3:$M$584,12,0)","v":"2020-04-21"},"https://www.contratos.gov.co/consultas/detalleProceso.do?numConstancia=20-4-10695006"]
[22693401,"EMILIA ANTONIA BARCELO DE PARRA",1475,"1475-2020","AUXILIAR SERVICIOS GENERALES URGENCIA","01 de Abril de 2020","  30 de Abril de  2020",1653600,1653600,"SERGIO BOVEA MARIN","COORD CENTRO DE SALUD",1751,2672,{"$f":"VLOOKUP(A155:A569,'[2]ABRIL 2020'!$B$3:$M$584,12,0)","v":"2020-04-21"},"https://www.contratos.gov.co/consultas/detalleProceso.do?numConstancia=20-4-10695015"]
[8718276,"ENRIQUE PACHECO PACHECO ",1476,"1476-2020","MEDICO DE URGENCIA","01 de Abril de 2020","  30 de Abril de  2020",3072000,3072000,"SERGIO BOVEA MARIN","COORD CENTRO DE SALUD",1752,2673,{"$f":"VLOOKUP(A156:A570,'[2]ABRIL 2020'!$B$3:$M$584,12,0)","v":"2020-04-21"},"https://www.contratos.gov.co/consultas/detalleProceso.do?numConstancia=20-4-10695017"]
[32821813,"ESPERANZA OROZCO MORENO",1477,"1477-2020","AUXILIAR DE ENFERMERIA URGENCIAS","01 de Abril de 2020","  30 de Abril de  2020",1653600,1653600,"SERGIO BOVEA MARIN","COORD CENTRO DE SALUD",1753,2674,{"$f":"VLOOKUP(A157:A571,'[2]ABRIL 2020'!$B$3:$M$584,12,0)","v":"2020-04-21"},"https://www.contratos.gov.co/consultas/detalleProceso.do?numConstancia=20-4-10695029"]
[1042448518,"GIANINA ANDREA GRAVINI DE LA HOZ",1478,"1478-2020","MEDICO DE URGENCIA","01 de Abril de 2020","  30 de Abril de  2020",3072000,3072000,"SERGIO BOVEA MARIN","COORD CENTRO DE SALUD",1754,2675,{"$f":"VLOOKUP(A158:A572,'[2]ABRIL 2020'!$B$3:$M$584,12,0)","v":"2020-04-21"},"https://www.contratos.gov.co/consultas/detalleProceso.do?numConstancia=20-4-10695035"]
[49555306,"GLADYS DIAZ MARIN",1479,"1479-2020","AUXILIAR DE FACTURACION URGENCIA","01 de Abril de 2020","  30 de Abril de  2020",1680000,1680000,"SANDRA SANMARTIN","SUBGENTE ADMINISTRATIVO",1755,2676,{"$f":"VLOOKUP(A159:A573,'[2]ABRIL 2020'!$B$3:$M$584,12,0)","v":"2020-04-21"},"https://www.contratos.gov.co/consultas/detalleProceso.do?numConstancia=20-4-10695038"]
[1042440903,"HEIDY MARTINEZ GUTIERREZ",1480,"1480-2020","AUXILIAR DE FACTURACION URGENCIA","01 de Abril de 2020","  30 de Abril de  2020",1680000,1680000,"SANDRA SANMARTIN","SUBGENTE ADMINISTRATIVO",1756,2677,{"$f":"VLOOKUP(A160:A574,'[2]ABRIL 2020'!$B$3:$M$584,12,0)","v":"2020-04-21"},"https://www.contratos.gov.co/consultas/detalleProceso.do?numConstancia=20-4-10695051"]
[32861543,"INGRID NAVARRO CARRILLO",1481,"1481-2020","FISIOTERAPEUTA ","01 de Abril de 2020","  30 de Abril de  2020",6960000,6960000,"SERGIO BOVEA MARIN","COORD CENTRO DE SALUD",1757,2678,{"$f":"VLOOKUP(A161:A575,'[2]ABRIL 2020'!$B$3:$M$584,12,0)","v":"2020-04-21"},"https://www.contratos.gov.co/consultas/detalleProceso.do?numConstancia=20-4-10695058"]
[32822389,"ISABEL AMÉRICA DE ALBA RODRIGUEZ",1482,"1482-2020","AUXILIAR DE FACTURACION -CONSULTA EXTERNA ","01 de Abril de 2020","  30 de Abril de  2020",1400000,1400000,"SANDRA SANMARTIN","SUBGENTE ADMINISTRATIVO",1758,2679,{"$f":"VLOOKUP(A162:A576,'[2]ABRIL 2020'!$B$3:$M$584,12,0)","v":"2020-04-21"},"https://www.contratos.gov.co/consultas/detalleProceso.do?numConstancia=20-4-10695061"]
[72429926,"JAIRO ESCOBAR ROMERO",1483,"1483-2020","MEDICO DE URGENCIA","01 de Abril de 2020","  30 de Abril de  2020",3072000,3072000,"SERGIO BOVEA MARIN","COORD CENTRO DE SALUD",1759,2680,{"$f":"VLOOKUP(A163:A577,'[2]ABRIL 2020'!$B$3:$M$584,12,0)","v":"2020-04-21"},"https://www.contratos.gov.co/consultas/detalleProceso.do?numConstancia=20-4-10695069"]
[32869709,"JENECIS BARRERA MIRANDA",1484,"1484-2020","ENFERMERA MATERNIDAD SEGURA ","01 de Abril de 2020","  30 de Abril de  2020",2760000,2760000,"NILSA ARIZA MARQUEZ","COORDINADOR PYP",1760,2681,{"$f":"VLOOKUP(A164:A578,'[2]ABRIL 2020'!$B$3:$M$584,12,0)","v":"2020-04-21"},"https://www.contratos.gov.co/consultas/detalleProceso.do?numConstancia=20-4-10695076"]
[1042444925,"JESUS MORENO DE ALBA",1485,"1485-2020","AUXILIAR DE FACTURACION URGENCIA","01 de Abril de 2020","  30 de Abril de  2020",1680000,1680000,"SANDRA SANMARTIN","SUBGENTE ADMINISTRATIVO",1761,2682,{"$f":"VLOOKUP(A165:A579,'[2]ABRIL 2020'!$B$3:$M$584,12,0)","v":"2020-04-21"},"https://www.contratos.gov.co/consultas/detalleProceso.do?numConstancia=20-4-10695081"]
[44161544,"JHOANA CATALINA SANDOVAL ESCORCIA",1486,"1486-2020","ENFERMERA JEFE URGENCIAS ","01 de Abril de 2020","  30 de Abril de  2020",2280000,2280000,"SERGIO BOVEA MARIN","COORD CENTRO DE SALUD",1762,2683,{"$f":"VLOOKUP(A166:A580,'[2]ABRIL 2020'!$B$3:$M$584,12,0)","v":"2020-04-21"},"https://www.contratos.gov.co/consultas/detalleProceso.do?numConstancia=20-4-10695086"]
[32810582,"JOSEFINA CARO VITOLA",1487,"1487-2020","AUXILIAR DE ENFERMERIA URGENCIAS","01 de Abril de 2020","  30 de Abril de  2020",1653600,1653600,"SERGIO BOVEA MARIN","COORD CENTRO DE SALUD",1763,2684,{"$f":"VLOOKUP(A167:A581,'[2]ABRIL 2020'!$B$3:$M$584,12,0)","v":"2020-04-21"},"https://www.contratos.gov.co/consultas/detalleProceso.do?numConstancia=20-4-10695097"]
[32771594,"JUANA DIAZ CARABALLO",1488,"1488-2020","AUXILIAR DE ENFERMERIA URGENCIAS","01 de Abril de 2020","  30 de Abril de  2020",1653600,1653600,"SERGIO BOVEA MARIN","COORD CENTRO DE SALUD",1764,2685,{"$f":"VLOOKUP(A168:A582,'[2]ABRIL 2020'!$B$3:$M$584,12,0)","v":"2020-04-21"},"https://www.contratos.gov.co/consultas/detalleProceso.do?numConstancia=20-4-10695103"]
[1043841968,"KAREN DAYANA FONSECA MUÑOZ",1489,"1489-2020","MEDICO DE URGENCIA","01 de Abril de 2020","  30 de Abril de  2020",3072000,3072000,"SERGIO BOVEA MARIN","COORD CENTRO DE SALUD",1765,2686,{"$f":"VLOOKUP(A169:A583,'[2]ABRIL 2020'!$B$3:$M$584,12,0)","v":"2020-04-21"},"https://www.contratos.gov.co/consultas/detalleProceso.do?numConstancia=20-4-10695107"]
[55313269,"KAREN MARTINEZ BRANGO",1490,"1490-2020","AUXILIAR DE ENFERMERIA URGENCIAS","01 de Abril de 2020","  30 de Abril de  2020",1653600,1653600,"SERGIO BOVEA MARIN","COORD CENTRO DE SALUD",1766,2687,{"$f":"VLOOKUP(A170:A584,'[2]ABRIL 2020'!$B$3:$M$584,12,0)","v":"2020-04-21"},"https://www.contratos.gov.co/consultas/detalleProceso.do?numConstancia=20-4-10695112"]
[22534402,"KATERINE RUA SUAREZ",1491,"1491-2020","AUXILIAR DE FACTURACION URGENCIA","01 de Abril de 2020","  30 de Abril de  2020",1680000,1680000,"SANDRA SANMARTIN","SUBGENTE ADMINISTRATIVO",1767,2688,{"$f":"VLOOKUP(A171:A585,'[2]ABRIL 2020'!$B$3:$M$584,12,0)","v":"2020-04-21"},"https://www.contratos.gov.co/consultas/detalleProceso.do?numConstancia=20-4-10695114"]
[55301340,"KATYA LILIANA NORIEGA BARRIOS",1492,"1492-2020","AUXILIAR DE ENFERMERIA URGENCIAS","01 de Abril de 2020","  30 de Abril de  2020",1653600,1653600,"SERGIO BOVEA MARIN","COORD CENTRO DE SALUD",1768,2689,{"$f":"VLOOKUP(A172:A586,'[2]ABRIL 2020'!$B$3:$M$584,12,0)","v":"2020-04-21"},"https://www.contratos.gov.co/consultas/detalleProceso.do?numConstancia=20-4-10695119"]
[1045697885,"LAURA ALANDETE CASTRO",1493,"1493-2020","MEDICO DE URGENCIA","01 de Abril de 2020","  30 de Abril de  2020",3072000,3072000,"SERGIO BOVEA MARIN","COORD CENTRO DE SALUD",1769,2690,{"$f":"VLOOKUP(A173:A587,'[2]ABRIL 2020'!$B$3:$M$584,12,0)","v":"2020-04-21"},"https://www.contratos.gov.co/consultas/detalleProceso.do?numConstancia=20-4-10695126"]
[1045712889,"LEYDILLY ROJANO GOMEZ",1494,"1494-2020","ENFERMERA JEFE URGENCIAS ","01 de Abril de 2020","  30 de Abril de  2020",2280000,2280000,"SERGIO BOVEA MARIN","COORD CENTRO DE SALUD",1770,2691,{"$f":"VLOOKUP(A174:A588,'[2]ABRIL 2020'!$B$3:$M$584,12,0)","v":"2020-04-21"},"https://www.contratos.gov.co/consultas/detalleProceso.do?numConstancia=20-4-10695131"]
[22533893,"LILIANA VARGAS MONTERO",1495,"1495-2020","ENFERMERA JEFE P Y P","01 de Abril de 2020","  30 de Abril de  2020",2300000,2300000,"NILSA ARIZA MARQUEZ","COORDINADOR PYP",1771,2692,{"$f":"VLOOKUP(A175:A589,'[2]ABRIL 2020'!$B$3:$M$584,12,0)","v":"2020-04-21"},"https://www.contratos.gov.co/consultas/detalleProceso.do?numConstancia=20-4-10695134"]
[1042426533,"LIZ CATERINE ARROYO ROMERO",1496,"1496-2020","AUXILIAR DE FARMACIA ","01 de Abril de 2020","  30 de Abril de  2020",1524000,1524000,"BETTY PERTUZ ","SUBGERENCIA CIENTIFICA",1772,2693,{"$f":"VLOOKUP(A176:A590,'[2]ABRIL 2020'!$B$3:$M$584,12,0)","v":"2020-04-21"},"https://www.contratos.gov.co/consultas/detalleProceso.do?numConstancia=20-4-10695139"]
[32716780,"LORAINE PASION ARDILA ",1497,"1497-2020","TRABAJADORA SOCIAL","01 de Abril de 2020","  30 de Abril de  2020",2760000,2760000,"SERGIO BOVEA MARIN","COORD CENTRO DE SALUD",1773,2694,{"$f":"VLOOKUP(A177:A591,'[2]ABRIL 2020'!$B$3:$M$584,12,0)","v":"2020-04-21"},"https://www.contratos.gov.co/consultas/detalleProceso.do?numConstancia=20-4-10695141"]
[8672260,"LUIS MIGUEL REYES LANCE",1498,"1498-2020","ORIENTADOR","01 de Abril de 2020","  30 de Abril de  2020",1524000,1524000,"SERGIO BOVEA MARIN","COORD CENTRO DE SALUD",1774,2695,{"$f":"VLOOKUP(A178:A592,'[2]ABRIL 2020'!$B$3:$M$584,12,0)","v":"2020-04-21"},"https://www.contratos.gov.co/consultas/detalleProceso.do?numConstancia=20-4-10695145"]
[32825666,"LUZ STELLA RUIZ SUAREZ",1499,"1499-2020","AUXILIAR DE ENFERMERIA MATERNIDAD SEGURA ","01 de Abril de 2020","  30 de Abril de  2020",1399200,1399200,"SERGIO BOVEA MARIN","COORD CENTRO DE SALUD",1775,2696,{"$f":"VLOOKUP(A179:A593,'[2]ABRIL 2020'!$B$3:$M$584,12,0)","v":"2020-04-21"},"https://www.contratos.gov.co/consultas/detalleProceso.do?numConstancia=20-4-10695154"]
[32697306,"MAGALY POLO ARNEDO ",1500,"1500-2020","ODONTOLOGO","01 de Abril de 2020","  30 de Abril de  2020",1900000,1900000,"SERGIO BOVEA MARIN","COORD CENTRO DE SALUD",1776,2697,{"$f":"VLOOKUP(A180:A594,'[2]ABRIL 2020'!$B$3:$M$584,12,0)","v":"2020-04-21"},"https://www.contratos.gov.co/consultas/detalleProceso.do?numConstancia=20-4-10695160"]
[1140849940,"MAICOL JOSE MOLINA SOTO",1501,"1501-2020","MEDICO DE URGENCIA","01 de Abril de 2020","  30 de Abril de  2020",3072000,3072000,"SERGIO BOVEA MARIN","COORD CENTRO DE SALUD",1777,2698,{"$f":"VLOOKUP(A181:A595,'[2]ABRIL 2020'!$B$3:$M$584,12,0)","v":"2020-04-21"},"https://www.contratos.gov.co/consultas/detalleProceso.do?numConstancia=20-4-10695166"]
[22644933,"MARGARITA PACHECO GUTIERREZ",1502,"1502-2020","HIGIENISTA ORAL","01 de Abril de 2020","  30 de Abril de  2020",2332000,2332000,"SERGIO BOVEA MARIN","COORD CENTRO DE SALUD",1778,2699,{"$f":"VLOOKUP(A182:A596,'[2]ABRIL 2020'!$B$3:$M$584,12,0)","v":"2020-04-21"},"https://www.contratos.gov.co/consultas/detalleProceso.do?numConstancia=20-4-10695171"]
[1042450048,"MARIA ALEJANDRA DE LA HOZ TOSCANO",1503,"1503-2020","MEDICO DE URGENCIA","01 de Abril de 2020","  30 de Abril de  2020",3072000,3072000,"SERGIO BOVEA MARIN","COORD CENTRO DE SALUD",1779,2700,{"$f":"VLOOKUP(A183:A597,'[2]ABRIL 2020'!$B$3:$M$584,12,0)","v":"2020-04-21"},"https://www.contratos.gov.co/consultas/detalleProceso.do?numConstancia=20-4-10695175"]
[1004093696,"MARIA ALTAMAR OROZCO",1504,"1504-2020","AUXILIAR DE ENFERMERIA URGENCIAS","01 de Abril de 2020","  30 de Abril de  2020",1653600,1653600,"SERGIO BOVEA MARIN","COORD CENTRO DE SALUD",1780,2701,{"$f":"VLOOKUP(A184:A598,'[2]ABRIL 2020'!$B$3:$M$584,12,0)","v":"2020-04-21"},"https://www.contratos.gov.co/consultas/detalleProceso.do?numConstancia=20-4-10695180"]
[32789239,"MARIA DEL CARMEN GUERRERO OJEDA",1505,"1505-2020","ORIENTADOR","01 de Abril de 2020","  30 de Abril de  2020",1524000,1524000,"SERGIO BOVEA MARIN","COORD CENTRO DE SALUD",1781,2702,{"$f":"VLOOKUP(A185:A599,'[2]ABRIL 2020'!$B$3:$M$584,12,0)","v":"2020-04-21"},"https://www.contratos.gov.co/consultas/detalleProceso.do?numConstancia=20-4-10695182"]
[1045704276,"ANA MILENA HERRERA ALVIS ",1506,"1542-2020","ENFERMERA JEFE ","01 de Abril de 2020","  30 de Abril de  2020",3810000,3810000,"CARLOS VISBAL JIMENEZ","COORD CENTRO DE SALUD",1818,2739,{"$f":"VLOOKUP(A186:A600,'[2]ABRIL 2020'!$B$3:$M$584,12,0)","v":"2020-04-21"},"https://www.contratos.gov.co/consultas/detalleProceso.do?numConstancia=20-4-10698808"]
[32879250,"MARIA SEGURA MEJIA",1507,"1507-2020","AUXILIAR FACTURACION URGENCIA","01 de Abril de 2020","  30 de Abril de  2020",1680000,1680000,"SANDRA SANMARTIN","SUBGENTE ADMINISTRATIVO",1783,2704,{"$f":"VLOOKUP(A187:A601,'[2]ABRIL 2020'!$B$3:$M$584,12,0)","v":"2020-04-21"},"https://www.contratos.gov.co/consultas/detalleProceso.do?numConstancia=20-4-10695192"]
[32726703,"MARILYN ESTHER PEREZ LIÑAN",1508,"1508-2020","AUXILIAR DE ENFERMERIA URGENCIAS","01 de Abril de 2020","  30 de Abril de  2020",1653600,1653600,"SERGIO BOVEA MARIN","COORD CENTRO DE SALUD",1784,2705,{"$f":"VLOOKUP(A188:A602,'[2]ABRIL 2020'!$B$3:$M$584,12,0)","v":"2020-04-21"},"https://www.contratos.gov.co/consultas/detalleProceso.do?numConstancia=20-4-10695234"]
[72158729,"MARLON CAMILO JORDAN HERRERA",1509,"1509-2020","REFERENCIA Y CONTRAREFERENCIA","01 de Abril de 2020","  30 de Abril de  2020",1776000,1776000,"SERGIO BOVEA MARIN","COORD CENTRO DE SALUD",1785,2706,{"$f":"VLOOKUP(A189:A603,'[2]ABRIL 2020'!$B$3:$M$584,12,0)","v":"2020-04-21"},"https://www.contratos.gov.co/consultas/detalleProceso.do?numConstancia=20-4-10695238"]
[22457575,"MELBA MEZA PERDOMO",1510,"1510-2020","TRABAJADORA SOCIAL ","01 de Abril de 2020","  30 de Abril de  2020",2200000,2200000,"SERGIO BOVEA MARIN","COORD CENTRO DE SALUD",1786,2707,{"$f":"VLOOKUP(A190:A604,'[2]ABRIL 2020'!$B$3:$M$584,12,0)","v":"2020-04-21"},"https://www.contratos.gov.co/consultas/detalleProceso.do?numConstancia=20-4-10695247"]
[8507626,"MIGUEL ALVAREZ SALCEDO",1511,"1511-2020","CONDUCTOR DE AMBULANCIA","01 de Abril de 2020","  30 de Abril de  2020",2160000,2160000,"BETTY PERTUZ ","SUBGERENCIA CIENTIFICA",1787,2708,{"$f":"VLOOKUP(A191:A605,'[2]ABRIL 2020'!$B$3:$M$584,12,0)","v":"2020-04-21"},"https://www.contratos.gov.co/consultas/detalleProceso.do?numConstancia=20-4-10695249"]
[32829349,"NADIA BOVEA NIETO",1512,"1512-2020","AUXILIAR DE ENFERMERIA URGENCIAS","01 de Abril de 2020","  30 de Abril de  2020",1653600,1653600,"SERGIO BOVEA MARIN","COORD CENTRO DE SALUD",1788,2709,{"$f":"VLOOKUP(A192:A606,'[2]ABRIL 2020'!$B$3:$M$584,12,0)","v":"2020-04-21"},"https://www.contratos.gov.co/consultas/detalleProceso.do?numConstancia=20-4-10695261"]
[55307414,"NATALY DE LAS SALAS ORTEGA",1513,"1513-2020","PSICOLOGA","01 de Abril de 2020","  30 de Abril de  2020",3000000,3000000,"BETTY PERTUZ ","SUBGERENCIA CIENTIFICA",1789,2710,{"$f":"VLOOKUP(A193:A607,'[2]ABRIL 2020'!$B$3:$M$584,12,0)","v":"2020-04-21"},"https://www.contratos.gov.co/consultas/detalleProceso.do?numConstancia=20-4-10695266"]
[32783935,"NELBY CORRALES HOYOS",1514,"1514-2020","AUXILIAR DE ENFERMERIA URGENCIAS","01 de Abril de 2020","  30 de Abril de  2020",1653600,1653600,"SERGIO BOVEA MARIN","COORD CENTRO DE SALUD",1790,2711,{"$f":"VLOOKUP(A194:A608,'[2]ABRIL 2020'!$B$3:$M$584,12,0)","v":"2020-04-21"},"https://www.contratos.gov.co/consultas/detalleProceso.do?numConstancia=20-4-10695274"]
[32819548,"NELLY GALAN HEILBRON",1515,"1515-2020","AUXILIAR DE ENFERMERIA PROMOTORA EN SALUD","01 de Abril de 2020","  30 de Abril de  2020",1215000,1215000,"SERGIO BOVEA MARIN","COORD CENTRO DE SALUD",1791,2712,{"$f":"VLOOKUP(A195:A609,'[2]ABRIL 2020'!$B$3:$M$584,12,0)","v":"2020-04-21"},"https://www.contratos.gov.co/consultas/detalleProceso.do?numConstancia=20-4-10696139"]
[8770580,"NELSON JULIO SANDOVAL GONZALEZ",1516,"1516-2020","AUXILIAR ADMINISTRATIVO DE FINANCIERA","01 de Abril de 2020","  30 de Abril de  2020",3000000,3000000,"SANDRA SANMARTIN","SUBGENTE ADMINISTRATIVO",1792,2713,{"$f":"VLOOKUP(A196:A610,'[2]ABRIL 2020'!$B$3:$M$584,12,0)","v":"2020-04-21"},"https://www.contratos.gov.co/consultas/detalleProceso.do?numConstancia=20-4-10696142"]
[72222215,"NILSON ALMARALES GARIZABALO",1517,"1517-2020","MEDICO DE URGENCIA","01 de Abril de 2020","  30 de Abril de  2020",6212000,6212000,"SERGIO BOVEA MARIN","COORD CENTRO DE SALUD",1793,2714,{"$f":"VLOOKUP(A197:A611,'[2]ABRIL 2020'!$B$3:$M$584,12,0)","v":"2020-04-21"},"https://www.contratos.gov.co/consultas/detalleProceso.do?numConstancia=20-4-10698697"]
[22646712,"NINI JOHANA SOLANO MORENO",1518,"1518-2020","ENFERMERA JEFE URGENCIAS ","01 de Abril de 2020","  30 de Abril de  2020",2280000,2280000,"SERGIO BOVEA MARIN","COORD CENTRO DE SALUD",1794,2715,{"$f":"VLOOKUP(A198:A612,'[2]ABRIL 2020'!$B$3:$M$584,12,0)","v":"2020-04-21"},"https://www.contratos.gov.co/consultas/detalleProceso.do?numConstancia=20-4-10698706"]
[22564359,"NINI JOHANNA QUIROZ SANTOS",1519,"1519-2020","MEDICO DE URGENCIA","01 de Abril de 2020","  30 de Abril de  2020",3072000,3072000,"SERGIO BOVEA MARIN","COORD CENTRO DE SALUD",1795,2716,{"$f":"VLOOKUP(A199:A613,'[2]ABRIL 2020'!$B$3:$M$584,12,0)","v":"2020-04-21"},"https://www.contratos.gov.co/consultas/detalleProceso.do?numConstancia=20-4-10698710"]
[8737936,"NOE ANIBAL PELAEZ GONZALEZ",1520,"1520-2020","REGENTE DE FARMACIA ","01 de Abril de 2020","  30 de Abril de  2020",2280000,2280000,"BETTY PERTUZ ","SUBGERENCIA CIENTIFICA",1796,2717,{"$f":"VLOOKUP(A200:A614,'[2]ABRIL 2020'!$B$3:$M$584,12,0)","v":"2020-04-21"},"https://www.contratos.gov.co/consultas/detalleProceso.do?numConstancia=20-4-10698715"]
[39282489,"NORIS SOFIA BERTEL PEREZ",1521,"1521-2020","AUXILIAR SERVICIOS GENERALES URGENCIA","01 de Abril de 2020","  30 de Abril de  2020",1653600,1653600,"SERGIO BOVEA MARIN","COORD CENTRO DE SALUD",1797,2718,{"$f":"VLOOKUP(A201:A615,'[2]ABRIL 2020'!$B$3:$M$584,12,0)","v":"2020-04-21"},"https://www.contratos.gov.co/consultas/detalleProceso.do?numConstancia=20-4-10698719"]
[8772224,"OLAINER MONTERO CASTRO ",1522,"1522-2020","COORDINADOR DE FACTURACION","01 de Abril de 2020","  30 de Abril de  2020",2160000,2160000,"SERGIO BOVEA MARIN","COORD CENTRO DE SALUD",1798,2719,{"$f":"VLOOKUP(A202:A616,'[2]ABRIL 2020'!$B$3:$M$584,12,0)","v":"2020-04-21"},"https://www.contratos.gov.co/consultas/detalleProceso.do?numConstancia=20-4-10698723"]
[72144602,"RICARDO ISAAC OROZCO BARROS",1523,"1523-2020","CONDUCTOR DE AMBULANCIA ","01 de Abril de 2020","  30 de Abril de  2020",2160000,2160000,"SERGIO BOVEA MARIN","COORD CENTRO DE SALUD",1799,2720,{"$f":"VLOOKUP(A203:A617,'[2]ABRIL 2020'!$B$3:$M$584,12,0)","v":"2020-04-21"},"https://www.contratos.gov.co/consultas/detalleProceso.do?numConstancia=20-4-10698728"]
[22527122,"RUBY DEL CARMEN BOSSIO HERRERA",{"$f":"+C203+1","v":1524},"1524-2020","AUXILIAR DE ENFERMERIA URGENCIAS","01 de Abril de 2020","  30 de Abril de  2020",1653600,{"$f":"+H204*1","v":1653600},"SERGIO BOVEA MARIN","COORD CENTRO DE SALUD",1800,2721,{"$f":"VLOOKUP(A204:A618,'[2]ABRIL 2020'!$B$3:$M$584,12,0)","v":"2020-04-21"},"https://www.contratos.gov.co/consultas/detalleProceso.do?numConstancia=20-4-10698731"]
[1042426990,"SANDRA MARCELA PEREZ BERMEJO",1525,"1525-2020","MEDICO DE URGENCIA","01 de Abril de 2020","  30 de Abril de  2020",3072000,3072000,"SERGIO BOVEA MARIN","COORD CENTRO DE SALUD",1801,2722,{"$f":"VLOOKUP(A205:A619,'[2]ABRIL 2020'!$B$3:$M$584,12,0)","v":"2020-04-21"},"https://www.contratos.gov.co/consultas/detalleProceso.do?numConstancia=20-4-10698734"]
[1042430978,"TATIANA BARRIOSNUEVO CERA",1526,"1526-2020","AUXILIAR DE ENFERMERIA URGENCIAS","01 de Abril de 2020","  30 de Abril de  2020",1653600,1653600,"SERGIO BOVEA MARIN","COORD CENTRO DE SALUD",1802,2723,{"$f":"VLOOKUP(A206:A620,'[2]ABRIL 2020'!$B$3:$M$584,12,0)","v":"2020-04-21"},"https://www.contratos.gov.co/consultas/detalleProceso.do?numConstancia=20-4-10698741"]
[32874863,"TATIANA PAEZ DE LA CRUZ",1527,"1527-2020","AUXILIAR DE ENFERMERIA URGENCIAS","01 de Abril de 2020","  30 de Abril de  2020",1653600,1653600,"SERGIO BOVEA MARIN","COORD CENTRO DE SALUD",1803,2724,{"$f":"VLOOKUP(A207:A621,'[2]ABRIL 2020'!$B$3:$M$584,12,0)","v":"2020-04-21"},"https://www.contratos.gov.co/consultas/detalleProceso.do?numConstancia=20-4-10698746"]
[32884590,"TATIANA SUAREZ CABALLERO ",1528,"1528-2020","AUXILIAR ENFERMERIA MATERNIDAD SEGURA","01 de Abril de 2020","  30 de Abril de  2020",1399200,1399200,"SERGIO BOVEA MARIN","COORD CENTRO DE SALUD",1804,2725,{"$f":"VLOOKUP(A208:A622,'[2]ABRIL 2020'!$B$3:$M$584,12,0)","v":"2020-04-21"},"https://www.contratos.gov.co/consultas/detalleProceso.do?numConstancia=20-4-10698751"]
[1048271951,"WENDY OFELIA BARRAZA PUA",1529,"1529-2020","AUXILIAR DE ENFERMERIA URGENCIAS","01 de Abril de 2020","  30 de Abril de  2020",1653600,1653600,"SERGIO BOVEA MARIN","COORD CENTRO DE SALUD",1805,2726,{"$f":"VLOOKUP(A209:A623,'[2]ABRIL 2020'!$B$3:$M$584,12,0)","v":"2020-04-21"},"https://www.contratos.gov.co/consultas/detalleProceso.do?numConstancia=20-4-10698753"]
[1042456068,"XILENA PACHECO OSPINO ",1530,"1530-2020","AUXILIAR DE ENFERMERIA URGENCIAS","01 de Abril de 2020","  30 de Abril de  2020",1653600,1653600,"SERGIO BOVEA MARIN","COORD CENTRO DE SALUD",1806,2727,{"$f":"VLOOKUP(A210:A624,'[2]ABRIL 2020'!$B$3:$M$584,12,0)","v":"2020-04-21"},"https://www.contratos.gov.co/consultas/detalleProceso.do?numConstancia=20-4-10698757"]
[44153255,"XIMENA ESCORCIA CASTRO",1531,"1531-2020","MEDICO DE URGENCIA","01 de Abril de 2020","  30 de Abril de  2020",3072000,3072000,"SERGIO BOVEA MARIN","COORD CENTRO DE SALUD",1807,2728,{"$f":"VLOOKUP(A211:A625,'[2]ABRIL 2020'!$B$3:$M$584,12,0)","v":"2020-04-21"},"https://www.contratos.gov.co/consultas/detalleProceso.do?numConstancia=20-4-10698780"]
[1042437499,"XIOMARA ALEJANDRA MAURY PACHECO ",1532,"1532-2020","ENFERMERA JEFE URGENCIAS ","01 de Abril de 2020","  30 de Abril de  2020",2280000,2280000,"SERGIO BOVEA MARIN","COORD CENTRO DE SALUD",1808,2729,{"$f":"VLOOKUP(A212:A626,'[2]ABRIL 2020'!$B$3:$M$584,12,0)","v":"2020-04-21"},"https://www.contratos.gov.co/consultas/detalleProceso.do?numConstancia=20-4-10698785"]
[1042425681,"YESMITH ALEXI GARIZABALO RETAMOSO ",1533,"1533-2020","MEDICO DE URGENCIA","01 de Abril de 2020","  30 de Abril de  2020",3072000,3072000,"SERGIO BOVEA MARIN","COORD CENTRO DE SALUD",1809,2730,{"$f":"VLOOKUP(A213:A627,'[2]ABRIL 2020'!$B$3:$M$584,12,0)","v":"2020-04-21"},"https://www.contratos.gov.co/consultas/detalleProceso.do?numConstancia=20-4-10698786"]
[32739126,"YIRA DEL CARMEN PEÑALOZA AREVALO",1534,"1534-2020","AUXILIAR SERVICIOS GENERALES URGENCIA","01 de Abril de 2020","  30 de Abril de  2020",1653600,1653600,"SERGIO BOVEA MARIN","COORD CENTRO DE SALUD",1810,2731,{"$f":"VLOOKUP(A214:A628,'[2]ABRIL 2020'!$B$3:$M$584,12,0)","v":"2020-04-21"},"https://www.contratos.gov.co/consultas/detalleProceso.do?numConstancia=20-4-10698790"]
[32896400,"YISEL BEATRIZ ARROYO SUAREZ",1535,"1535-2020","AUXILIAR DE FACTURACION URGENCIA","01 de Abril de 2020","  30 de Abril de  2020",1680000,1680000,"SERGIO BOVEA MARIN","COORD CENTRO DE SALUD",1811,2732,{"$f":"VLOOKUP(A215:A629,'[2]ABRIL 2020'!$B$3:$M$584,12,0)","v":"2020-04-21"},"https://www.contratos.gov.co/consultas/detalleProceso.do?numConstancia=20-4-10698795"]
[55230396,"YORLETH MALENA FLOREZ ABRIL",1536,"1536-2020","MEDICO DE URGENCIA","01 de Abril de 2020","  30 de Abril de  2020",3072000,3072000,"SERGIO BOVEA MARIN","COORD CENTRO DE SALUD",1812,2733,{"$f":"VLOOKUP(A216:A630,'[2]ABRIL 2020'!$B$3:$M$584,12,0)","v":"2020-04-21"},"https://www.contratos.gov.co/consultas/detalleProceso.do?numConstancia=20-4-10698796"]
[44155518,"YURLEY FONTALVO RIVALDO ",1537,"1537-2020","MEDICO DE URGENCIA","01 de Abril de 2020","  30 de Abril de  2020",3072000,3072000,"SERGIO BOVEA MARIN","COORD CENTRO DE SALUD",1813,2734,{"$f":"VLOOKUP(A217:A631,'[2]ABRIL 2020'!$B$3:$M$584,12,0)","v":"2020-04-21"},"https://www.contratos.gov.co/consultas/detalleProceso.do?numConstancia=20-4-10698797"]
[32865503,"ZULAI DONADO PARODIS ",1538,"1538-2020","AUXILIAR DE ENFERMERIA P Y P ","01 de Abril de 2020","  30 de Abril de  2020",1166000,1166000,"SERGIO BOVEA MARIN","COORD CENTRO DE SALUD",1814,2735,{"$f":"VLOOKUP(A218:A632,'[2]ABRIL 2020'!$B$3:$M$584,12,0)","v":"2020-04-21"},"https://www.contratos.gov.co/consultas/detalleProceso.do?numConstancia=20-4-10698799"]
[32703436,"VILMA ZUÑIGA GONZALEZ",1539,"1539-2020","AUXILIAR DE ODONTOLOGIA","01 de Abril de 2020","  30 de Abril de  2020",1166000,1166000,"SERGIO BOVEA MARIN","COORD CENTRO DE SALUD",1815,2736,{"$f":"VLOOKUP(A219:A633,'[2]ABRIL 2020'!$B$3:$M$584,12,0)","v":"2020-04-21"},"https://www.contratos.gov.co/consultas/detalleProceso.do?numConstancia=20-4-10698800"]
[36555688,"ALBA SOLANO COCA",1540,"1540-2020","ODONTOLOGO","01 de Abril de 2020","  30 de Abril de  2020",1900000,1900000,"CARLOS VISBAL JIMENEZ","COORD CENTRO DE SALUD",1816,2737,{"$f":"VLOOKUP(A220:A634,'[2]ABRIL 2020'!$B$3:$M$584,12,0)","v":"2020-04-21"},"https://www.contratos.gov.co/consultas/detalleProceso.do?numConstancia=20-4-10698802"]
[8721508,"ALONSO JOSÉ RIQUETT DE LA HOZ",1541,"1541-2020","MEDICO P Y P ","01 de Abril de 2020","  30 de Abril de  2020",2120000,2120000,"CARLOS VISBAL JIMENEZ","COORD CENTRO DE SALUD",1817,2738,{"$f":"VLOOKUP(A221:A635,'[2]ABRIL 2020'!$B$3:$M$584,12,0)","v":"2020-04-21"},"https://www.contratos.gov.co/consultas/detalleProceso.do?numConstancia=20-4-10698804"]
[45757809,"MILADIS MARINA MARTINEZ MEDINA",1542,"1387-2020","COORDINADORA SIAU","01 de Abril de 2020","  30 de Abril de  2020",3000000,3000000,"BETTY PERTUZ ","SUBGERENCIA CIENTIFICA",1663,2584,{"$f":"VLOOKUP(A222:A636,'[2]ABRIL 2020'!$B$3:$M$584,12,0)","v":"2020-04-20"},"https://www.contratos.gov.co/consultas/detalleProceso.do?numConstancia=20-4-10691260"]
[22647051,"EDELMIRA DUQUE LAMADRID",{"$f":"+C222+1","v":1543},"1543-2020","FISIOTERAPEUTA ","01 de Abril de 2020","  30 de Abril de  2020",1900000,{"$f":"+H223*1","v":1900000},"CARLOS VISBAL JIMENEZ","COORD CENTRO DE SALUD",1819,2740,{"$f":"VLOOKUP(A223:A637,'[2]ABRIL 2020'!$B$3:$M$584,12,0)","v":"2020-04-21"},"https://www.contratos.gov.co/consultas/detalleProceso.do?numConstancia=20-4-10698811"]
[22644596,"GRACIELA BUSTOS RIVEROS",1544,"1544-2020","AUXILIAR ADMINISTRATIVO DE FACTURACIÒN","01 de Abril de 2020","  30 de Abril de  2020",1600000,1600000,"SANDRA SANMARTIN","SUBGENTE ADMINISTRATIVO",1820,2741,{"$f":"VLOOKUP(A224:A638,'[2]ABRIL 2020'!$B$3:$M$584,12,0)","v":"2020-04-21"},"https://www.contratos.gov.co/consultas/detalleProceso.do?numConstancia=20-4-10698815"]
[26900583,"JANETH JIMENEZ PEÑA",1545,"1545-2020","TRABAJADORA SOCIAL ","01 de Abril de 2020","  30 de Abril de  2020",2500000,2500000,"CARLOS VISBAL JIMENEZ","COORD CENTRO DE SALUD",1821,2742,{"$f":"VLOOKUP(A225:A639,'[2]ABRIL 2020'!$B$3:$M$584,12,0)","v":"2020-04-21"},"https://www.contratos.gov.co/consultas/detalleProceso.do?numConstancia=20-4-10698835"]
[1043001061,"JOCELIN PAOLA GOMEZ AGUIRRE ",1546,"1546-2020","AUXILIAR DE ENFERMERIA","01 de Abril de 2020","  30 de Abril de  2020",1166000,1166000,"BETTY PERTUZ ","SUBGERENCIA CIENTIFICA",1822,2743,{"$f":"VLOOKUP(A226:A640,'[2]ABRIL 2020'!$B$3:$M$584,12,0)","v":"2020-04-21"},"https://www.contratos.gov.co/consultas/detalleProceso.do?numConstancia=20-4-10698838"]
[72242552,"JUAN CAMILO CASTILLO ARIZA",1547,"1547-2020","MEDICO CONSULTA EXTERNA ","01 de Abril de 2020","  30 de Abril de  2020",5600000,5600000,"CARLOS VISBAL JIMENEZ","COORD CENTRO DE SALUD",1823,2744,{"$f":"VLOOKUP(A227:A641,'[2]ABRIL 2020'!$B$3:$M$584,12,0)","v":"2020-04-21"},"https://www.contratos.gov.co/consultas/detalleProceso.do?numConstancia=20-4-10698841"]
[1042443708,"JULIETH ANDREA CAMACHO CHACON",1548,"1548-2020","ENFERMERA JEFE","01 de Abril de 2020","  30 de Abril de  2020",3810000,3810000,"NILSA ARIZA MARQUEZ","COORDINADOR PYP",1824,2745,{"$f":"VLOOKUP(A228:A642,'[2]ABRIL 2020'!$B$3:$M$584,12,0)","v":"2020-04-21"},"https://www.contratos.gov.co/consultas/detalleProceso.do?numConstancia=20-4-10698843"]
[1140853943,"LEIDY VANESSA BUSTILLO FORMARIS",1549,"1549-2020","ODONTOLOGO","01 de Abril de 2020","  30 de Abril de  2020",2723333,2723333,"CARLOS VISBAL JIMENEZ","COORD CENTRO DE SALUD",1825,2746,{"$f":"VLOOKUP(A229:A643,'[2]ABRIL 2020'!$B$3:$M$584,12,0)","v":"2020-04-21"},"https://www.contratos.gov.co/consultas/detalleProceso.do?numConstancia=20-4-10698845"]
[1143133250,"LUIS EDUARDO NIEBLES SARMIENTO ",1550,"1550-2020","AUXILIAR DE FACTURACION","01 de Abril de 2020","  30 de Abril de  2020",1400000,1400000,"SANDRA SANMARTIN","SUBGENTE ADMINISTRATIVO",1826,2747,{"$f":"VLOOKUP(A230:A644,'[2]ABRIL 2020'!$B$3:$M$584,12,0)","v":"2020-04-21"},"https://www.contratos.gov.co/consultas/detalleProceso.do?numConstancia=20-4-10698849"]
[22646602,"MARTHA CECILIA PICO OROZCO",1551,"1551-2020","AUXILIAR DE AUTORIZACIONES ","01 de Abril de 2020","  30 de Abril de  2020",1653600,1653600,"BETTY PERTUZ ","SUBGERENCIA CIENTIFICA",1827,2748,{"$f":"VLOOKUP(A231:A645,'[2]ABRIL 2020'!$B$3:$M$584,12,0)","v":"2020-04-21"},"https://www.contratos.gov.co/consultas/detalleProceso.do?numConstancia=20-4-10698853"]
[1042422315,"MAYRA ALEJANDRA GARCIA CASTILLO",1552,"1552-2020","FISIOTERAPEUTA ","01 de Abril de 2020","  30 de Abril de  2020",1900000,1900000,"CARLOS VISBAL JIMENEZ","COORD CENTRO DE SALUD",1828,2749,{"$f":"VLOOKUP(A232:A646,'[2]ABRIL 2020'!$B$3:$M$584,12,0)","v":"2020-04-21"},"https://www.contratos.gov.co/consultas/detalleProceso.do?numConstancia=20-4-10698855"]
[22693871,"MIRIAM VILLAREAL DE ALBA",1553,"1553-2020","AUXILIAR SERVICIOS GENERALES ","01 de Abril de 2020","  30 de Abril de  2020",1215000,1215000,"CARLOS VISBAL JIMENEZ","COORD CENTRO DE SALUD",1829,2750,{"$f":"VLOOKUP(A233:A647,'[2]ABRIL 2020'!$B$3:$M$584,12,0)","v":"2020-04-21"},"https://www.contratos.gov.co/consultas/detalleProceso.do?numConstancia=20-4-10698858"]
[32740234,"NIDIA VEGA CORREA",1554,"1554-2020","AUXILIAR SERVICIOS GENERALES","01 de Abril de 2020","  30 de Abril de  2020",1215000,1215000,"CARLOS VISBAL JIMENEZ","COORD CENTRO DE SALUD",1830,2751,{"$f":"VLOOKUP(A234:A648,'[2]ABRIL 2020'!$B$3:$M$584,12,0)","v":"2020-04-21"},"https://www.contratos.gov.co/consultas/detalleProceso.do?numConstancia=20-4-10698859"]
[8683158,"SMELING ORTIZ CHARRIS",1555,"1555-2020","ORIENTADOR","01 de Abril de 2020","  30 de Abril de  2020",2540000,2540000,"CARLOS VISBAL JIMENEZ","COORD CENTRO DE SALUD",1831,2752,{"$f":"VLOOKUP(A235:A649,'[2]ABRIL 2020'!$B$3:$M$584,12,0)","v":"2020-04-21"},"https://www.contratos.gov.co/consultas/detalleProceso.do?numConstancia=20-4-10698862"]
[1045680952,"WILLIAM RAFAEL DAVIDSON URIETA",1556,"1556-2020","MEDICO CONSULTA EXTERNA ","01 de Abril de 2020","  30 de Abril de  2020",2120000,2120000,"CARLOS VISBAL JIMENEZ","COORD CENTRO DE SALUD",1832,2753,{"$f":"VLOOKUP(A236:A650,'[2]ABRIL 2020'!$B$3:$M$584,12,0)","v":"2020-04-21"},"https://www.contratos.gov.co/consultas/detalleProceso.do?numConstancia=20-4-10698865"]
[72130373,"WILLYS CARLOS PEREZ TRONCOSO",1557,"1557-2020","MEDICO CONSULTA EXTERNA ","01 de Abril de 2020","  30 de Abril de  2020",2120000,2120000,"CARLOS VISBAL JIMENEZ","COORD CENTRO DE SALUD",1833,2754,{"$f":"VLOOKUP(A237:A651,'[2]ABRIL 2020'!$B$3:$M$584,12,0)","v":"2020-04-21"},"https://www.contratos.gov.co/consultas/detalleProceso.do?numConstancia=20-4-10698866"]
[8777621,"ALEXANDER MIGUEL SALAZAR CABALLERO",1558,"1558-2020","AUXILIAR DE FACTURACION URGENCIA","01 de Abril de 2020","  30 de Abril de  2020",1680000,1680000,"SANDRA SANMARTIN","SUBGENTE ADMINISTRATIVO",1834,2755,{"$f":"VLOOKUP(A238:A652,'[2]ABRIL 2020'!$B$3:$M$584,12,0)","v":"2020-04-21"},"https://www.contratos.gov.co/consultas/detalleProceso.do?numConstancia=20-4-10698868"]
[32583401,"ELSY LIZETH CHARRIS CONTRERAS",1559,"1559-2020","MEDICO CONSULTA EXTERNA","01 de Abril de 2020","  30 de Abril de  2020",2120000,2120000,"VICTOR MIRANDA","COORD CENTRO DE SALUD",1835,2756,{"$f":"VLOOKUP(A239:A653,'[2]ABRIL 2020'!$B$3:$M$584,12,0)","v":"2020-04-21"},"https://www.contratos.gov.co/consultas/detalleProceso.do?numConstancia=20-4-10698871"]
[22551160,"GISELL MILENA HERRERA ZUÑIGA",1560,"1560-2020","MEDICO CONSULTA  EXTERNA","01 de Abril de 2020","  30 de Abril de  2020",2120000,2120000,"VICTOR MIRANDA","COORD CENTRO DE SALUD",1836,2757,{"$f":"VLOOKUP(A240:A654,'[2]ABRIL 2020'!$B$3:$M$584,12,0)","v":"2020-04-21"},"https://www.contratos.gov.co/consultas/detalleProceso.do?numConstancia=20-4-10698872"]
[1143449271,"HELEN YIRE MALDONADO MIRANDA",1561,"1561-2020","AUXILIAR DE ODONTOLOGIA","01 de Abril de 2020","  30 de Abril de  2020",1166000,1166000,"VICTOR MIRANDA","COORD CENTRO DE SALUD",1837,2758,{"$f":"VLOOKUP(A241:A655,'[2]ABRIL 2020'!$B$3:$M$584,12,0)","v":"2020-04-21"},"https://www.contratos.gov.co/consultas/detalleProceso.do?numConstancia=20-4-10699701"]
[1042444832,"JHONNATAN ALFONSO DE LA HOZ BARRIOS",1562,"1562-2020","MEDICO CONSULTA EXTERNA ","01 de Abril de 2020","  30 de Abril de  2020",4240000,4240000,"VICTOR MIRANDA","COORD CENTRO DE SALUD",1838,2759,{"$f":"VLOOKUP(A242:A656,'[2]ABRIL 2020'!$B$3:$M$584,12,0)","v":"2020-04-21"},"https://www.contratos.gov.co/consultas/detalleProceso.do?numConstancia=20-4-10699758"]
[8704073,"JOSE ALFREDO JIMENEZ CASTRO",1563,"1563-2020","ORIENTADOR","01 de Abril de 2020","  30 de Abril de  2020",1270000,1270000,"VICTOR MIRANDA","COORD CENTRO DE SALUD",1839,2760,{"$f":"VLOOKUP(A243:A657,'[2]ABRIL 2020'!$B$3:$M$584,12,0)","v":"2020-04-21"},"https://www.contratos.gov.co/consultas/detalleProceso.do?numConstancia=20-4-10699817"]
[32814077,"JUDITH TORRES CASTILLO",1564,"1564-2020","COORDINADOR DE FACTURACION","01 de Abril de 2020","  30 de Abril de  2020",1600000,1600000,"VICTOR MIRANDA","COORD CENTRO DE SALUD",1840,2761,{"$f":"VLOOKUP(A244:A658,'[2]ABRIL 2020'!$B$3:$M$584,12,0)","v":"2020-04-21"},"https://www.contratos.gov.co/consultas/detalleProceso.do?numConstancia=20-4-10699873"]
[39013975,"MARTHA MARMOL ARIAS",1565,"1565-2020","AUXILIAR  SERVICIOS GENERALES","01 de Abril de 2020","  30 de Abril de  2020",1215000,1215000,"VICTOR MIRANDA","COORD CENTRO DE SALUD",1841,2762,{"$f":"VLOOKUP(A245:A659,'[2]ABRIL 2020'!$B$3:$M$584,12,0)","v":"2020-04-21"},"https://www.contratos.gov.co/consultas/detalleProceso.do?numConstancia=20-4-10699880"]
[22443037,"OLGA RODRIGUEZ FIGUEROA",1566,"1566-2020","ENFERMERA JEFE CONSULTA EXTERNA ","01 de Abril de 2020","  30 de Abril de  2020",1900000,1900000,"VICTOR MIRANDA","COORD CENTRO DE SALUD",1842,2763,{"$f":"VLOOKUP(A246:A660,'[2]ABRIL 2020'!$B$3:$M$584,12,0)","v":"2020-04-21"},"https://www.contratos.gov.co/consultas/detalleProceso.do?numConstancia=20-4-10699887"]
[32742523,"OSIRIS MARIA SAMUDIO ESCOBAR ",1567,"1567-2020","ODONTOLOGO","01 de Abril de 2020","  30 de Abril de  2020",1900000,1900000,"VICTOR MIRANDA","COORD CENTRO DE SALUD",1843,2764,{"$f":"VLOOKUP(A247:A661,'[2]ABRIL 2020'!$B$3:$M$584,12,0)","v":"2020-04-22"},"https://www.contratos.gov.co/consultas/detalleProceso.do?numConstancia=20-4-10699893"]
[1045674051,"SHIRLY PAOLA GUZMAN GUZMAN ",1568,"1568-2020","ODONTOLOGO","01 de Abril de 2020","  30 de Abril de  2020",1900000,1900000,"VICTOR MIRANDA","COORD CENTRO DE SALUD",1844,2765,{"$f":"VLOOKUP(A248:A662,'[2]ABRIL 2020'!$B$3:$M$584,12,0)","v":"2020-04-22"},"https://www.contratos.gov.co/consultas/detalleProceso.do?numConstancia=20-4-10699896"]
[1140895535,"ADRIANA PAOLA GONZALEZ ROMERO ",1569,"1569-2020","ENFERMERA JEFE CONSULTA EXTERNA ","01 de Abril de 2020","  30 de Abril de  2020",2120000,2120000,"AIX PALACIO","COORD CENTRO DE SALUD",1845,2766,{"$f":"VLOOKUP(A249:A663,'[2]ABRIL 2020'!$B$3:$M$584,12,0)","v":"2020-04-22"},"https://www.contratos.gov.co/consultas/detalleProceso.do?numConstancia=20-4-10699910"]
[1139614174,"ALONSO MATEO LLANES ARIZA",1570,"1570-2020","MEDICO CONSULTA EXTERNA ","01 de Abril de 2020","  30 de Abril de  2020",2120000,2120000,"AIX PALACIO","COORD CENTRO DE SALUD",1846,2767,{"$f":"VLOOKUP(A250:A664,'[2]ABRIL 2020'!$B$3:$M$584,12,0)","v":"2020-04-22"},"https://www.contratos.gov.co/consultas/detalleProceso.do?numConstancia=20-4-10699915"]
[7407679,"AMEFI PACHECO CERA",1571,"1571-2020","ORIENTADOR","01 de Abril de 2020","  30 de Abril de  2020",1270000,1270000,"AIX PALACIO","COORD CENTRO DE SALUD",1847,2768,{"$f":"VLOOKUP(A251:A665,'[2]ABRIL 2020'!$B$3:$M$584,12,0)","v":"2020-04-22"},"https://www.contratos.gov.co/consultas/detalleProceso.do?numConstancia=20-4-10699923"]
[60311278,"EVA FLOREZ PARRA ",1572,"1572-2020","MÉDICO CONSULTA EXTERNA Y APOYO A LA COORDINACIÓN MÉDICA","01 de Abril de 2020","  30 de Abril de  2020",2500000,2500000,"AIX PALACIO","COORD CENTRO DE SALUD",1848,2769,{"$f":"VLOOKUP(A252:A666,'[2]ABRIL 2020'!$B$3:$M$584,12,0)","v":"2020-04-22"},"https://www.contratos.gov.co/consultas/detalleProceso.do?numConstancia=20-4-10699942"]
[32608240,"MARIA DE JESUS VELASQUEZ CAPERA",1573,"1573-2020","AUXILIAR SERVICIOS GENERALES","01 de Abril de 2020","  30 de Abril de  2020",1215000,1215000,"AIX PALACIO","SUBGENTE ADMINISTRATIVO",1849,2770,{"$f":"VLOOKUP(A253:A667,'[2]ABRIL 2020'!$B$3:$M$584,12,0)","v":"2020-04-22"},"https://www.contratos.gov.co/consultas/detalleProceso.do?numConstancia=20-4-10699947"]
[32828506,"NINOSKA CELESTE BARCELÓ OVIEDO",1574,"1574-2020","PSICOLOGA SIAU","01 de Abril de 2020","  30 de Abril de  2020",2200000,2200000,"AIX PALACIO","COORD CENTRO DE SALUD",1850,2771,{"$f":"VLOOKUP(A254:A668,'[2]ABRIL 2020'!$B$3:$M$584,12,0)","v":"2020-04-22"},"https://www.contratos.gov.co/consultas/detalleProceso.do?numConstancia=20-4-10699954"]
[44152277,"OLGA GARIZABALO PERTUZ",1575,"1575-2020","AUXILIAR DE ODONTOLOGIA","01 de Abril de 2020","  30 de Abril de  2020",1166000,1166000,"AIX PALACIO","COORD CENTRO DE SALUD",1851,2772,{"$f":"VLOOKUP(A255:A669,'[2]ABRIL 2020'!$B$3:$M$584,12,0)","v":"2020-04-22"},"https://www.contratos.gov.co/consultas/detalleProceso.do?numConstancia=20-4-10699960"]
[32878246,"SHIRLY ISABEL RECIO COLLANTE",1576,"1576-2020","AUXILIAR DE ENFERMERIA CONSULTA EXTERNA ","01 de Abril de 2020","  30 de Abril de  2020",1166000,1166000,"AIX PALACIO","COORD CENTRO DE SALUD",1852,2773,{"$f":"VLOOKUP(A256:A670,'[2]ABRIL 2020'!$B$3:$M$584,12,0)","v":"2020-04-22"},"https://www.contratos.gov.co/consultas/detalleProceso.do?numConstancia=20-4-10699966"]
[32866918,"ZULMA LEONOR MARTINEZ IGLESIAS",1577,"1577-2020","ODONTOLOGO","01 de Abril de 2020","  30 de Abril de  2020",1900000,1900000,"AIX PALACIO","COORD CENTRO DE SALUD",1853,2774,{"$f":"VLOOKUP(A257:A671,'[2]ABRIL 2020'!$B$3:$M$584,12,0)","v":"2020-04-22"},"https://www.contratos.gov.co/consultas/detalleProceso.do?numConstancia=20-4-10699970"]
[22465848,"ADRIANA OROZCO CANTILLO",1578,"1578-2020","AUXILIAR SERVICIOS GENERALES","01 de Abril de 2020","  30 de Abril de  2020",1215000,1215000,"LUIS CARLOS DE LEON BERNIER","COORD CENTRO DE SALUD",1854,2775,{"$f":"VLOOKUP(A258:A672,'[2]ABRIL 2020'!$B$3:$M$584,12,0)","v":"2020-04-22"},"https://www.contratos.gov.co/consultas/detalleProceso.do?numConstancia=20-4-10699987"]
[22524112,"DIANA SANDOVAL MANGA",1579,"1579-2020","ENFERMERA JEFE PROGRAMAS ESPECIALES","01 de Abril de 2020","  30 de Abril de  2020",1900000,1900000,"LUIS CARLOS DE LEON BERNIER","COORD CENTRO DE SALUD",1855,2776,{"$f":"VLOOKUP(A259:A673,'[2]ABRIL 2020'!$B$3:$M$584,12,0)","v":"2020-04-22"},"https://www.contratos.gov.co/consultas/detalleProceso.do?numConstancia=20-4-10700015"]
[1045747916,"LEIDY DIANA PAEZ OROZCO",1580,"1580-2020","ENFERMERA JEFE  CONSULTA EXTERNA ","01 de Abril de 2020","  30 de Abril de  2020",1900000,{"$f":"+H260*1","v":1900000},"LUIS CARLOS DE LEON BERNIER","COORD CENTRO DE SALUD",1856,2777,{"$f":"VLOOKUP(A260:A674,'[2]ABRIL 2020'!$B$3:$M$584,12,0)","v":"2020-04-22"},"https://www.contratos.gov.co/consultas/detalleProceso.do?numConstancia=20-4-10700023"]
[1143450666,"YERLIS PAOLA FONTALVO LAMBRAÑO",{"$f":"+C260+1","v":1581},"1581-2020","AUXILIAR DE FACTURACION URGENCIA","01 de Abril de 2020","  30 de Abril de  2020",1680000,1680000,"SANDRA SANMARTIN","SUBGENTE ADMINISTRATIVO",1857,2778,{"$f":"VLOOKUP(A261:A675,'[2]ABRIL 2020'!$B$3:$M$584,12,0)","v":"2020-04-22"},"https://www.contratos.gov.co/consultas/detalleProceso.do?numConstancia=20-4-10700034"]
[1143266403,"YUNERIZ PEREZ DE LA HOZ",1582,"1582-2020","AUXILIAR DE ENFERMERIA","01 de Abril de 2020","  30 de Abril de  2020",1166000,1166000,"LUIS CARLOS DE LEON BERNIER","COORD CENTRO DE SALUD",1858,2779,{"$f":"VLOOKUP(A262:A676,'[2]ABRIL 2020'!$B$3:$M$584,12,0)","v":"2020-04-22"},"https://www.contratos.gov.co/consultas/detalleProceso.do?numConstancia=20-4-10700038"]
[64543985,"ALCIRA GOMEZ ARRIETA ",1583,"1583-2020","ENFERMERA JEFE COORDINADORA PAI ","01 de Abril de 2020","  30 de Abril de  2020",4000000,4000000,"NILSA ARIZA MARQUEZ","COORDINADOR PYP",1859,2780,{"$f":"VLOOKUP(A263:A677,'[2]ABRIL 2020'!$B$3:$M$584,12,0)","v":"2020-04-22"},"https://www.contratos.gov.co/consultas/detalleProceso.do?numConstancia=20-4-10700043"]
[32869290,"ARGENEDITH YEPEZ ESCALANTE ",1584,"1584-2020","MEDICO P Y P","01 de Abril de 2020","  30 de Abril de  2020",2120000,2120000,"LUIS GRANADOS GOMEZ","COORD CENTRO DE SALUD",1860,2781,{"$f":"VLOOKUP(A264:A678,'[2]ABRIL 2020'!$B$3:$M$584,12,0)","v":"2020-04-22"},"https://www.contratos.gov.co/consultas/detalleProceso.do?numConstancia=20-4-10700049"]
[72153271,"BORIS ARROYO ESCOBAR",1585,"1585-2020","ORIENTADOR","01 de Abril de 2020","  30 de Abril de  2020",1270000,1270000,"LUIS GRANADOS GOMEZ","COORD CENTRO DE SALUD",1861,2782,{"$f":"VLOOKUP(A265:A679,'[2]ABRIL 2020'!$B$3:$M$584,12,0)","v":"2020-04-22"},"https://www.contratos.gov.co/consultas/detalleProceso.do?numConstancia=20-4-10700061"]
[1001875491,"CINDY MILENA VARELA ARIAS ",1586,"1586-2020","AUXILIAR SERVICIOS GENERALES","01 de Abril de 2020","  30 de Abril de  2020",1215000,1215000,"LUIS GRANADOS GOMEZ","COORD CENTRO DE SALUD",1862,2783,{"$f":"VLOOKUP(A266:A680,'[2]ABRIL 2020'!$B$3:$M$584,12,0)","v":"2020-04-22"},"https://www.contratos.gov.co/consultas/detalleProceso.do?numConstancia=20-4-10700070"]
[32896364,"DAILYS CAROLINA PEREZ GUETTE",1587,"1587-2020","ODONTOLOGO","01 de Abril de 2020","  30 de Abril de  2020",1900000,1900000,"LUIS GRANADOS GOMEZ","COORD CENTRO DE SALUD",1863,2784,{"$f":"VLOOKUP(A267:A681,'[2]ABRIL 2020'!$B$3:$M$584,12,0)","v":"2020-04-22"},"https://www.contratos.gov.co/consultas/detalleProceso.do?numConstancia=20-4-10700083"]
[22585192,"DIANA LUZ ACOSTA DEMARES",1588,"1588-2020","AUXILIAR ADMINISTRATIVO-COORDINACION MEDICA","01 de Abril de 2020","  30 de Abril de  2020",1900000,1900000,"LUIS GRANADOS GOMEZ","COORD CENTRO DE SALUD",1864,2785,{"$f":"VLOOKUP(A268:A682,'[2]ABRIL 2020'!$B$3:$M$584,12,0)","v":"2020-04-22"},"https://www.contratos.gov.co/consultas/detalleProceso.do?numConstancia=20-4-10700089"]
[32819600,"DOLIS PEDROZO TORRES",1589,"1589-2020","AUXILIAR SERVICIOS GENERALES","01 de Abril de 2020","  30 de Abril de  2020",1215000,1215000,"LUIS GRANADOS GOMEZ","COORD CENTRO DE SALUD",1865,2786,{"$f":"VLOOKUP(A269:A683,'[2]ABRIL 2020'!$B$3:$M$584,12,0)","v":"2020-04-22"},"https://www.contratos.gov.co/consultas/detalleProceso.do?numConstancia=20-4-10700099"]
[1074712390,"EVELIN CRISTINA ZULETA SANCHEZ ",1590,"1590-2020","ENFERMERA JEFE P Y P","01 de Abril de 2020","  30 de Abril de  2020",2300000,2300000,"NILSA ARIZA MARQUEZ","COORDINADOR PYP",1866,2787,{"$f":"VLOOKUP(A270:A684,'[2]ABRIL 2020'!$B$3:$M$584,12,0)","v":"2020-04-22"},"https://www.contratos.gov.co/consultas/detalleProceso.do?numConstancia=20-4-10700113"]
[8507198,"FRANCISCO PEÑALOZA PEREZ",1591,"1591-2020","MEDICO CONSULTA EXTERNA ","01 de Abril de 2020","  30 de Abril de  2020",2120000,2120000,"LUIS GRANADOS GOMEZ","COORD CENTRO DE SALUD",1867,2788,{"$f":"VLOOKUP(A271:A685,'[2]ABRIL 2020'!$B$3:$M$584,12,0)","v":"2020-04-22"},"https://www.contratos.gov.co/consultas/detalleProceso.do?numConstancia=20-4-10700120"]
[1042448135,"GISELLA CAMILA ACOSTA SEGURA",1592,"1592-2020","AUXILIAR SERVICIOS AMIGABLES ","01 de Abril de 2020","  30 de Abril de  2020",1500000,1500000,"LUIS GRANADOS GOMEZ","COORD CENTRO DE SALUD",1868,2789,{"$f":"VLOOKUP(A272:A686,'[2]ABRIL 2020'!$B$3:$M$584,12,0)","v":"2020-04-22"},"https://www.contratos.gov.co/consultas/detalleProceso.do?numConstancia=20-4-10700127"]
[44154490,"HEIDY LUZ CARRILLO DIAZ",1593,"1593-2020","AUXILIAR ADMINISTRATIVO DE FACTURACIÒN","01 de Abril de 2020","  30 de Abril de  2020",1900000,1900000,"LUIS GRANADOS GOMEZ","COORD CENTRO DE SALUD",1869,2790,{"$f":"VLOOKUP(A273:A687,'[2]ABRIL 2020'!$B$3:$M$584,12,0)","v":"2020-04-22"},"https://www.contratos.gov.co/consultas/detalleProceso.do?numConstancia=20-4-10700130"]
[8675558,"JESUS ALFREDO MALDONADO MEJIA ",1594,"1594-2020","ORIENTADOR","01 de Abril de 2020","  30 de Abril de  2020",1270000,1270000,"LUIS GRANADOS GOMEZ","COORD CENTRO DE SALUD",1870,2791,{"$f":"VLOOKUP(A274:A688,'[2]ABRIL 2020'!$B$3:$M$584,12,0)","v":"2020-04-22"},"https://www.contratos.gov.co/consultas/detalleProceso.do?numConstancia=20-4-10700135"]
[1042442139,"JOSHIKY ESTHER AHUMADA PACHECO",1595,"1595-2020","ENFERMERA JEFE  PYP","01 de Abril de 2020","  30 de Abril de  2020",2300000,2300000,"NILSA ARIZA MARQUEZ","COORDINADOR PYP",1871,2792,{"$f":"VLOOKUP(A275:A689,'[2]ABRIL 2020'!$B$3:$M$584,12,0)","v":"2020-04-22"},"https://www.contratos.gov.co/consultas/detalleProceso.do?numConstancia=20-4-10700146"]
[32646304,"LILIAN ESTHER ANTEQUERA MANTILLA",1596,"1596-2020","AUXILIAR DE ENFERMERIA","01 de Abril de 2020","  30 de Abril de  2020",1166000,1166000,"LUIS GRANADOS GOMEZ","COORD CENTRO DE SALUD",1872,2793,{"$f":"VLOOKUP(A276:A690,'[2]ABRIL 2020'!$B$3:$M$584,12,0)","v":"2020-04-22"},"https://www.contratos.gov.co/consultas/detalleProceso.do?numConstancia=20-4-10700152"]
[1044432609,"LUPE MAURY SANTIAGO",1597,"1597-2020","MEDICO CONSULTA EXTERNA","01 de Abril de 2020","  30 de Abril de  2020",2120000,2120000,"LUIS GRANADOS GOMEZ","COORD CENTRO DE SALUD",1873,2794,{"$f":"VLOOKUP(A277:A691,'[2]ABRIL 2020'!$B$3:$M$584,12,0)","v":"2020-04-22"},"https://www.contratos.gov.co/consultas/detalleProceso.do?numConstancia=20-4-10700161"]
[72142837,"MANUEL GUSTAVO PABA GUETE",1598,"1598-2020","PSICOLOGO EN PROMOCION Y PREVENCION","01 de Abril de 2020","  30 de Abril de  2020",3000000,3000000,"NILSA ARIZA MARQUEZ","COORDINADOR PYP",1874,2795,{"$f":"VLOOKUP(A278:A692,'[2]ABRIL 2020'!$B$3:$M$584,12,0)","v":"2020-04-22"},"https://www.contratos.gov.co/consultas/detalleProceso.do?numConstancia=20-4-10700170"]
[1140883085,"MARIA FATIMA HERNANDEZ ORTIZ",1599,"1599-2020","AUXILIAR SERVICIOS AMIGABLES ","01 de Abril de 2020","  30 de Abril de  2020",1270000,1270000,"LUIS GRANADOS GOMEZ",{"$f":"+K277","v":"COORD CENTRO DE SALUD"},1875,2796,{"$f":"VLOOKUP(A279:A693,'[2]ABRIL 2020'!$B$3:$M$584,12,0)","v":"2020-04-22"},"https://www.contratos.gov.co/consultas/detalleProceso.do?numConstancia=20-4-10700178"]
[32695840,"MARIA HERRERA CUADROS",1600,"1600-2020","HIGIENISTA ORAL","01 de Abril de 2020","  30 de Abril de  2020",2332000,2332000,"LUIS GRANADOS GOMEZ","COORD CENTRO DE SALUD",1876,2797,{"$f":"VLOOKUP(A280:A694,'[2]ABRIL 2020'!$B$3:$M$584,12,0)","v":"2020-04-22"},"https://www.contratos.gov.co/consultas/detalleProceso.do?numConstancia=20-4-10700184"]
[32819834,"MARIBEL NIEBLES ESCORCIA",1601,"1601-2020","AUXILIAR DE ODONTOLOGIA","01 de Abril de 2020","  30 de Abril de  2020",1166000,1166000,"LUIS GRANADOS GOMEZ","COORD CENTRO DE SALUD",1877,2798,{"$f":"VLOOKUP(A281:A695,'[2]ABRIL 2020'!$B$3:$M$584,12,0)","v":"2020-04-22"},"https://www.contratos.gov.co/consultas/detalleProceso.do?numConstancia=20-4-10700192"]
[1042418352,"MERJORIE CABEZA CASTILLO",1602,"1602-2020","AUXILIAR DE ENFERMERIA P Y P ","01 de Abril de 2020","  30 de Abril de  2020",1166000,1166000,"LUIS GRANADOS GOMEZ","COORD CENTRO DE SALUD",1878,2799,{"$f":"VLOOKUP(A282:A696,'[2]ABRIL 2020'!$B$3:$M$584,12,0)","v":"2020-04-22"},"https://www.contratos.gov.co/consultas/detalleProceso.do?numConstancia=20-4-10700205"]
[22468835,"MILAGROS GUZMAN FERNANDEZ ",1603,"1603-2020","ODONTOLOGO","01 de Abril de 2020","  30 de Abril de  2020",1900000,1900000,"LUIS GRANADOS GOMEZ","COORD CENTRO DE SALUD",1879,2800,{"$f":"VLOOKUP(A283:A697,'[2]ABRIL 2020'!$B$3:$M$584,12,0)","v":"2020-04-22"},"https://www.contratos.gov.co/consultas/detalleProceso.do?numConstancia=20-4-10700209"]
[22532699,"MILENA SILVA BARRAZA",1604,"1604-2020","AUXILIAR DE FACTURACION","01 de Abril de 2020","  30 de Abril de  2020",1300000,1300000,"SANDRA SANMARTIN","SUBGENTE ADMINISTRATIVO",1880,2801,{"$f":"VLOOKUP(A284:A698,'[2]ABRIL 2020'!$B$3:$M$584,12,0)","v":"2020-04-22"},"https://www.contratos.gov.co/consultas/detalleProceso.do?numConstancia=20-4-10700218"]
[32822947,"NOHORA ISABEL POLO ORTIZ",1605,"1605-2020","TRABAJADORA SOCIAL ","01 de Abril de 2020","  30 de Abril de  2020",2200000,2200000,"LUIS GRANADOS GOMEZ","COORD CENTRO DE SALUD",1881,2802,{"$f":"VLOOKUP(A285:A699,'[2]ABRIL 2020'!$B$3:$M$584,12,0)","v":"2020-04-22"},"https://www.contratos.gov.co/consultas/detalleProceso.do?numConstancia=20-4-10700246"]
[8770590,"RAFAEL MOVILLA FLOREZ ",1606,"1606-2020","COORDINADOR DE FACTURACION","01 de Abril de 2020","  30 de Abril de  2020",1600000,1600000,"LUIS GRANADOS GOMEZ","COORD CENTRO DE SALUD",1882,2803,{"$f":"VLOOKUP(A286:A700,'[2]ABRIL 2020'!$B$3:$M$584,12,0)","v":"2020-04-22"},"https://www.contratos.gov.co/consultas/detalleProceso.do?numConstancia=20-4-10700267"]
[1140855017,"STEPHANY LORRAINE NIEBLES ZULUAGA ",1607,"1607-2020","ENFERMERA JEFE -SERVICIOS AMIGABLES","01 de Abril de 2020","  30 de Abril de  2020",2300000,2300000,"LUIS GRANADOS GOMEZ","COORD CENTRO DE SALUD",1883,2804,{"$f":"VLOOKUP(A287:A701,'[2]ABRIL 2020'!$B$3:$M$584,12,0)","v":"2020-04-22"},"https://www.contratos.gov.co/consultas/detalleProceso.do?numConstancia=20-4-10700282"]
[56087561,"YAMILZA ESTHER MURGAS ORTIZ",1608,"1608-2020","AUXILIAR DE ENFERMERIA","01 de Abril de 2020","  30 de Abril de  2020",1166000,1166000,"LUIS GRANADOS GOMEZ","COORD CENTRO DE SALUD",1884,2805,{"$f":"VLOOKUP(A288:A702,'[2]ABRIL 2020'!$B$3:$M$584,12,0)","v":"2020-04-22"},"https://www.contratos.gov.co/consultas/detalleProceso.do?numConstancia=20-4-10700292"]
[1042440818,"YISELL PAOLA SANDOVAL BARRETO",1609,"1609-2020","MEDICO CONSULTA EXTERNA","01 de Abril de 2020","  30 de Abril de  2020",2120000,2120000,"LUIS GRANADOS GOMEZ",{"$f":"+K287","v":"COORD CENTRO DE SALUD"},1885,2806,{"$f":"VLOOKUP(A289:A703,'[2]ABRIL 2020'!$B$3:$M$584,12,0)","v":"2020-04-22"},"https://www.contratos.gov.co/consultas/detalleProceso.do?numConstancia=20-4-10700299"]
[1103109488,"ADRIANA MARCELA CASTAÑO RODELO",1610,"1610-2020","MEDICO PROGRAMA CARDIOVASCULAR","01 de Abril de 2020","  30 de Abril de  2020",2300000,2300000,"DIANA MARTINEZ PACHECO","COORD CENTRO DE SALUD",1886,2807,{"$f":"VLOOKUP(A290:A704,'[2]ABRIL 2020'!$B$3:$M$584,12,0)","v":"2020-04-22"},"https://www.contratos.gov.co/consultas/detalleProceso.do?numConstancia=20-4-10700318"]
[1047338042,"AMINTA PARDO GUZMAN",1611,"1611-2020","AUXILIAR DE ENFERMERIA CONSULTA EXTERNA ","01 de Abril de 2020","  30 de Abril de  2020",1166000,1166000,"DIANA MARTINEZ PACHECO","COORD CENTRO DE SALUD",1887,2808,{"$f":"VLOOKUP(A291:A705,'[2]ABRIL 2020'!$B$3:$M$584,12,0)","v":"2020-04-22"},"https://www.contratos.gov.co/consultas/detalleProceso.do?numConstancia=20-4-10700329"]
[1045688469,"AMY MOVILLA COMAS",1612,"1612-2020","ENFERMERA JEFE CONSULTA EXTERNA ","01 de Abril de 2020","  30 de Abril de  2020",2300000,2300000,"DIANA MARTINEZ PACHECO","COORD CENTRO DE SALUD",1888,2809,{"$f":"VLOOKUP(A292:A706,'[2]ABRIL 2020'!$B$3:$M$584,12,0)","v":"2020-04-22"},"https://www.contratos.gov.co/consultas/detalleProceso.do?numConstancia=20-4-10700336"]
[32866058,"CLAUDIA CABARCAS ARROYO",1613,"1613-2020","TRABAJADORA SOCIAL","01 de Abril de 2020","  30 de Abril de  2020",2200000,2200000,"DIANA MARTINEZ PACHECO","COORD CENTRO DE SALUD",1889,2810,{"$f":"VLOOKUP(A293:A707,'[2]ABRIL 2020'!$B$3:$M$584,12,0)","v":"2020-04-22"},"https://www.contratos.gov.co/consultas/detalleProceso.do?numConstancia=20-4-10700343"]
[44156926,"GLADYS CECILIA ESCALANTE FERRER",1614,"1614-2020","ODONTOLOGO","01 de Abril de 2020","  30 de Abril de  2020",1900000,1900000,"DIANA MARTINEZ PACHECO","COORD CENTRO DE SALUD",1890,2811,{"$f":"VLOOKUP(A294:A708,'[2]ABRIL 2020'!$B$3:$M$584,12,0)","v":"2020-04-22"},"https://www.contratos.gov.co/consultas/detalleProceso.do?numConstancia=20-4-10700349"]
[1047358567,"JENNIFER PAULA FRUTO MALDONADO ",1615,"1615-2020","MEDICO CONSULTA  EXTERNA","01 de Abril de 2020","  30 de Abril de  2020",2120000,2120000,"DIANA MARTINEZ PACHECO","COORD CENTRO DE SALUD",1891,2812,{"$f":"VLOOKUP(A295:A709,'[2]ABRIL 2020'!$B$3:$M$584,12,0)","v":"2020-04-22"},"https://www.contratos.gov.co/consultas/detalleProceso.do?numConstancia=20-4-10700701"]
[8754502,"JORGE DE LA HOZ DE LA HOZ",1616,"1616-2020","ORIENTADOR","01 de Abril de 2020","  30 de Abril de  2020",1270000,1270000,"DIANA MARTINEZ PACHECO","COORD CENTRO DE SALUD",1892,2813,{"$f":"VLOOKUP(A296:A710,'[2]ABRIL 2020'!$B$3:$M$584,12,0)","v":"2020-04-22"},"https://www.contratos.gov.co/consultas/detalleProceso.do?numConstancia=20-4-10700705"]
[55220183,"KETTY PILAR INSIGNARES MATOS ",1617,"1617-2020","PSICOLOGA ","01 de Abril de 2020","  30 de Abril de  2020",2800000,2800000,"DIANA MARTINEZ PACHECO","COORD CENTRO DE SALUD",1893,2814,{"$f":"VLOOKUP(A297:A711,'[2]ABRIL 2020'!$B$3:$M$584,12,0)","v":"2020-04-22"},"https://www.contratos.gov.co/consultas/detalleProceso.do?numConstancia=20-4-10700715"]
[32796648,"LILIANA OROZCO ROJAS ",1618,"1618-2020","ODONTOLOGO","01 de Abril de 2020","  30 de Abril de  2020",1900000,1900000,"DIANA MARTINEZ PACHECO","COORD CENTRO DE SALUD",1894,2815,{"$f":"VLOOKUP(A298:A712,'[2]ABRIL 2020'!$B$3:$M$584,12,0)","v":"2020-04-22"},"https://www.contratos.gov.co/consultas/detalleProceso.do?numConstancia=20-4-10700734"]
[22738424,"LINA MARGARITA TORO GARCIA",1619,"1619-2020","MEDICO PROGRAMA CARDIOVASCULAR","01 de Abril de 2020","  30 de Abril de  2020",4600000,4600000,"DIANA MARTINEZ PACHECO","COORD CENTRO DE SALUD",1895,2816,{"$f":"VLOOKUP(A299:A713,'[2]ABRIL 2020'!$B$3:$M$584,12,0)","v":"2020-04-22"},"https://www.contratos.gov.co/consultas/detalleProceso.do?numConstancia=20-4-10700753"]
[32666054,"LUCY CHING ANAYA ",1620,"1620-2020","MEDICO CONSULTA EXTERNA ","01 de Abril de 2020","  30 de Abril de  2020",2120000,2120000,"DIANA MARTINEZ PACHECO","COORD CENTRO DE SALUD",1896,2817,{"$f":"VLOOKUP(A300:A714,'[2]ABRIL 2020'!$B$3:$M$584,12,0)","v":"2020-04-22"},"https://www.contratos.gov.co/consultas/detalleProceso.do?numConstancia=20-4-10700758"]
[22444561,"LUZ MARINA DONADO BARRIOS ",1621,"1621-2020","COORDINADOR DE FACTURACION","01 de Abril de 2020","  30 de Abril de  2020",1600000,1600000,"DIANA MARTINEZ PACHECO","COORD CENTRO DE SALUD",1897,2818,{"$f":"VLOOKUP(A301:A715,'[2]ABRIL 2020'!$B$3:$M$584,12,0)","v":"2020-04-22"},"https://www.contratos.gov.co/consultas/detalleProceso.do?numConstancia=20-4-10700760"]
[22616462,"MAIDELIN CORCHO CAICEDO",1622,"1622-2020","AUXILIAR DE ENFERMERIA","01 de Abril de 2020","  30 de Abril de  2020",1166000,1166000,"DIANA MARTINEZ PACHECO","COORD CENTRO DE SALUD",1898,2819,{"$f":"VLOOKUP(A302:A716,'[2]ABRIL 2020'!$B$3:$M$584,12,0)","v":"2020-04-22"},"https://www.contratos.gov.co/consultas/detalleProceso.do?numConstancia=20-4-10700762"]
[22694593,"MARLENE JUDITH GARIZABALO PERTUZ",1623,"1623-2020","AUXILIAR SERVICIOS GENERALES","01 de Abril de 2020","  30 de Abril de  2020",1215000,1215000,"DIANA MARTINEZ PACHECO","COORD CENTRO DE SALUD",1899,2820,{"$f":"VLOOKUP(A303:A717,'[2]ABRIL 2020'!$B$3:$M$584,12,0)","v":"2020-04-22"},"https://www.contratos.gov.co/consultas/detalleProceso.do?numConstancia=20-4-10700765"]
[32896837,"MARYULIS PATRICIA CRUZ JIMENEZ",1624,"1624-2020","ENFERMERA JEFE P Y P","01 de Abril de 2020","  30 de Abril de  2020",2300000,2300000,"NILSA ARIZA MARQUEZ","COORDINADOR PYP",1900,2821,{"$f":"VLOOKUP(A304:A718,'[2]ABRIL 2020'!$B$3:$M$584,12,0)","v":"2020-04-22"},"https://www.contratos.gov.co/consultas/detalleProceso.do?numConstancia=20-4-10701492"]
[55307582,"PAOLA VALENCIA GUERRERO",1625,"1625-2020","MEDICO PROGRAMA CARDIOVASCULAR","01 de Abril de 2020","  30 de Abril de  2020",2300000,2300000,"DIANA MARTINEZ PACHECO","COORD CENTRO DE SALUD",1901,2822,{"$f":"VLOOKUP(A305:A719,'[2]ABRIL 2020'!$B$3:$M$584,12,0)","v":"2020-04-22"},"https://www.contratos.gov.co/consultas/detalleProceso.do?numConstancia=20-4-10701496"]
[22692801,"SUNILDA ESTHER SAURIT ESCORCIA",1626,"1626-2020","AUXILIAR DE ENFERMERIA","01 de Abril de 2020","  30 de Abril de  2020",1166000,1166000,"DIANA MARTINEZ PACHECO","COORD CENTRO DE SALUD",1902,2823,{"$f":"VLOOKUP(A306:A720,'[2]ABRIL 2020'!$B$3:$M$584,12,0)","v":"2020-04-22"},"https://www.contratos.gov.co/consultas/detalleProceso.do?numConstancia=20-4-10701560"]
[1007908949,"VERONICA POLET TODARO PEDROZO",1627,"1627-2020","MEDICO  CONSULTA EXTERNA","01 de Abril de 2020","  30 de Abril de  2020",2120000,2120000,"DIANA MARTINEZ PACHECO","COORD CENTRO DE SALUD",1903,2824,{"$f":"VLOOKUP(A307:A721,'[2]ABRIL 2020'!$B$3:$M$584,12,0)","v":"2020-04-22"},"https://www.contratos.gov.co/consultas/detalleProceso.do?numConstancia=20-4-10701586"]
[32876060,"YAKELIN BOLAÑO MIRANDA",1628,"1628-2020","AUXILIAR DE ODONTOLOGIA","01 de Abril de 2020","  30 de Abril de  2020",1166000,1166000,"DIANA MARTINEZ PACHECO","COORD CENTRO DE SALUD",1904,2825,{"$f":"VLOOKUP(A308:A722,'[2]ABRIL 2020'!$B$3:$M$584,12,0)","v":"2020-04-22"},"https://www.contratos.gov.co/consultas/detalleProceso.do?numConstancia=20-4-10701598"]
[1045706259,"ANDREA CAROLINA HERRERA ORTEGA",1629,"1629-2020","MEDICO CONSULTA EXTERNA","01 de Abril de 2020","  30 de Abril de  2020",2120000,2120000,"YARELIS GUERRA CORREA","COORD CENTRO DE SALUD",1905,2826,{"$f":"VLOOKUP(A309:A723,'[2]ABRIL 2020'!$B$3:$M$584,12,0)","v":"2020-04-22"},"https://www.contratos.gov.co/consultas/detalleProceso.do?numConstancia=20-4-10701606"]
[7938572,"BRAYNERD ALVAREZ JIMENEZ ",1630,"1630-2020","MEDICO CONSULTA EXTERNA  Y CARDIOVASCULAR","01 de Abril de 2020","  30 de Abril de  2020",4600000,4600000,"YARELIS GUERRA CORREA","COORD CENTRO DE SALUD",1906,2827,{"$f":"VLOOKUP(A310:A724,'[2]ABRIL 2020'!$B$3:$M$584,12,0)","v":"2020-04-22"},"https://www.contratos.gov.co/consultas/detalleProceso.do?numConstancia=20-4-10701618"]
[1046873154,"CARLOS AUGUSTO ANGULO BANDERA",1631,"1631-2020","ORIENTADOR","01 de Abril de 2020","  30 de Abril de  2020",1700000,1700000,"YARELIS GUERRA CORREA","COORD CENTRO DE SALUD",1907,2828,{"$f":"VLOOKUP(A311:A725,'[2]ABRIL 2020'!$B$3:$M$584,12,0)","v":"2020-04-22"},"https://www.contratos.gov.co/consultas/detalleProceso.do?numConstancia=20-4-10701633"]
[22732766,"ESMIRIS MARIA JIMENEZ GOMEZ",1632,"1632-2020","AUXILIAR SERVICIOS GENERALES","01 de Abril de 2020","  30 de Abril de  2020",1215000,1215000,"YARELIS GUERRA CORREA","COORD CENTRO DE SALUD",1908,2829,{"$f":"VLOOKUP(A312:A726,'[2]ABRIL 2020'!$B$3:$M$584,12,0)","v":"2020-04-22"},"https://www.contratos.gov.co/consultas/detalleProceso.do?numConstancia=20-4-10701639"]
[44159527,"FLORINDA DE LA HOZ PACHECO ",1633,"1633-2020","ENFERMERA JEFE P Y P","01 de Abril de 2020","  30 de Abril de  2020",2300000,2300000,"NILSA ARIZA MARQUEZ","COORDINADOR PYP",1909,2830,{"$f":"VLOOKUP(A313:A727,'[2]ABRIL 2020'!$B$3:$M$584,12,0)","v":"2020-04-22"},"https://www.contratos.gov.co/consultas/detalleProceso.do?numConstancia=20-4-10701643"]
[24341220,"GLADYS OTALVARO BOTERO",1634,"1634-2020","AUXILIAR FACTURACION CONSULTA EXTERNA","01 de Abril de 2020","  30 de Abril de  2020",1378000,1378000,"SANDRA SANMARTIN","COORD CENTRO DE SALUD",1910,2831,{"$f":"VLOOKUP(A314:A728,'[2]ABRIL 2020'!$B$3:$M$584,12,0)","v":"2020-04-22"},"https://www.contratos.gov.co/consultas/detalleProceso.do?numConstancia=20-4-10701654"]
[32703101,"JANETH DEL CARMEN GUZMAN CANTILLO",1635,"1635-2020","COORDINADOR DE FACTURACION","01 de Abril de 2020","  30 de Abril de  2020",1600000,1600000,"YARELIS GUERRA CORREA","COORD CENTRO DE SALUD",1911,2832,{"$f":"VLOOKUP(A315:A729,'[2]ABRIL 2020'!$B$3:$M$584,12,0)","v":"2020-04-22"},"https://www.contratos.gov.co/consultas/detalleProceso.do?numConstancia=20-4-10701658"]
[22739758,"LAURA MELENDEZ SALAZAR",1636,"1636-2020","ODONTOLOGO","01 de Abril de 2020","  30 de Abril de  2020",1900000,1900000,"YARELIS GUERRA CORREA","COORD CENTRO DE SALUD",1912,2833,{"$f":"VLOOKUP(A316:A730,'[2]ABRIL 2020'!$B$3:$M$584,12,0)","v":"2020-04-22"},"https://www.contratos.gov.co/consultas/detalleProceso.do?numConstancia=20-4-10701664"]
[32703976,"MARI ENITH PUELLO BELTRAN",1637,"1637-2020","AUXILIAR DE ENFERMERIA CONSULTA EXTERNA ","01 de Abril de 2020","  30 de Abril de  2020",1166000,1166000,"BETTY PERTUZ ","SUBGERENCIA CIENTIFICA",1913,2834,{"$f":"VLOOKUP(A317:A731,'[2]ABRIL 2020'!$B$3:$M$584,12,0)","v":"2020-04-22"},"https://www.contratos.gov.co/consultas/detalleProceso.do?numConstancia=20-4-10701668"]
[26762874,"MARYURIS ALTAHONA  MORENO ",1638,"1638-2020","MEDICO P Y P ","01 de Abril de 2020","  30 de Abril de  2020",2120000,2120000,"YARELIS GUERRA CORREA","COORD CENTRO DE SALUD",1914,2835,{"$f":"VLOOKUP(A318:A732,'[2]ABRIL 2020'!$B$3:$M$584,12,0)","v":"2020-04-22"},"https://www.contratos.gov.co/consultas/detalleProceso.do?numConstancia=20-4-10701678"]
[32729889,"MERLY ISABEL BARRAZA TOLEDO",1639,"1639-2020","AUXILIAR DE ENFERMERIA CONSULTA EXTERNA ","01 de Abril de 2020","  30 de Abril de  2020",1166000,1166000,"YARELIS GUERRA CORREA","COORD CENTRO DE SALUD",1915,2836,{"$f":"VLOOKUP(A319:A733,'[2]ABRIL 2020'!$B$3:$M$584,12,0)","v":"2020-04-22"},"https://www.contratos.gov.co/consultas/detalleProceso.do?numConstancia=20-4-10701681"]
[26910232,"NELCY ALMARALES AYALA",1640,"1640-2020","TRABAJADORA SOCIAL ","01 de Abril de 2020","  30 de Abril de  2020",2200000,2200000,"YARELIS GUERRA CORREA","COORD CENTRO DE SALUD",1916,2837,{"$f":"VLOOKUP(A320:A734,'[2]ABRIL 2020'!$B$3:$M$584,12,0)","v":"2020-04-22"},"https://www.contratos.gov.co/consultas/detalleProceso.do?numConstancia=20-4-10701689"]
[32664177,"ROSIRIS MONTES REDONDO",1641,"1641-2020","AUXILIAR DE ODONTOLOGIA","01 de Abril de 2020","  30 de Abril de  2020",1166000,1166000,"YARELIS GUERRA CORREA","COORD CENTRO DE SALUD",1917,2838,{"$f":"VLOOKUP(A321:A735,'[2]ABRIL 2020'!$B$3:$M$584,12,0)","v":"2020-04-22"},"https://www.contratos.gov.co/consultas/detalleProceso.do?numConstancia=20-4-10701692"]
[1143456204,"SANDRA MARCELA OVIEDO ROCA",1642,"1642-2020","ENFERMERA JEFE ","01 de Abril de 2020","  30 de Abril de  2020",2300000,2300000,"YARELIS GUERRA CORREA","COORD CENTRO DE SALUD",1918,2839,{"$f":"VLOOKUP(A322:A736,'[2]ABRIL 2020'!$B$3:$M$584,12,0)","v":"2020-04-22"},"https://www.contratos.gov.co/consultas/detalleProceso.do?numConstancia=20-4-10701698"]
[1042441044,"SASKIA STEFANIA SOTOMAYOR SOLANO",1643,"1643-2020","AUXILIAR SERVICIOS GENERALES","01 de Abril de 2020","  30 de Abril de  2020",1270000,1270000,"YARELIS GUERRA CORREA","COORD CENTRO DE SALUD",1919,2840,{"$f":"VLOOKUP(A323:A737,'[2]ABRIL 2020'!$B$3:$M$584,12,0)","v":"2020-04-22"},"https://www.contratos.gov.co/consultas/detalleProceso.do?numConstancia=20-4-10701709"]
[22532041,"SORAYA  MARIA BACA RODRIGUEZ",1644,"1644-2020","PSICOLOGA","01 de Abril de 2020","  30 de Abril de  2020",2800000,{"$f":"+H324*1","v":2800000},"YARELIS GUERRA CORREA","COORD CENTRO DE SALUD",1920,2841,{"$f":"VLOOKUP(A324:A738,'[2]ABRIL 2020'!$B$3:$M$584,12,0)","v":"2020-04-22"},"https://www.contratos.gov.co/consultas/detalleProceso.do?numConstancia=20-4-10701716"]
[8771123,"TEDDY VARGAS MONTERO",{"$f":"+C324+1","v":1645},"1645-2020","ODONTOLOGO","01 de Abril de 2020","  30 de Abril de  2020",1900000,1900000,"YARELIS GUERRA CORREA","COORD CENTRO DE SALUD",1921,2842,{"$f":"VLOOKUP(A325:A739,'[2]ABRIL 2020'!$B$3:$M$584,12,0)","v":"2020-04-22"},"https://www.contratos.gov.co/consultas/detalleProceso.do?numConstancia=20-4-10701723"]
[72429429,"YAIR BARRAZA CERVANTES ",1646,"1646-2020","MEDICO PROGRAMA CARDIOVASCULAR","01 de Abril de 2020","  30 de Abril de  2020",2300000,2300000,"YARELIS GUERRA CORREA","COORD CENTRO DE SALUD",1922,2843,{"$f":"VLOOKUP(A326:A740,'[2]ABRIL 2020'!$B$3:$M$584,12,0)","v":"2020-04-22"},"https://www.contratos.gov.co/consultas/detalleProceso.do?numConstancia=20-4-10701742"]
[7455342,"ADOLFO MARIO DE LA HOZ BERNAL",1647,"1647-2020","MEDICO DE URGENCIA","01 de Abril de 2020","  30 de Abril de  2020",3072000,3072000,"WILFRAN JIMENEZ DE LA PEÑA","COORD CENTRO DE SALUD",1923,2844,{"$f":"VLOOKUP(A327:A741,'[2]ABRIL 2020'!$B$3:$M$584,12,0)","v":"2020-04-22"},"https://www.contratos.gov.co/consultas/detalleProceso.do?numConstancia=20-4-10701773"]
[8505956,"ALBERTO NAVARRO MORALES",1648,"1648-2020","AUXILIAR DE FACTURACION URGENCIA","01 de Abril de 2020","  30 de Abril de  2020",1680000,1680000,"SANDRA SANMARTIN","SUBGENTE ADMINISTRATIVO",1924,2845,{"$f":"VLOOKUP(A328:A742,'[2]ABRIL 2020'!$B$3:$M$584,12,0)","v":"2020-04-22"},"https://www.contratos.gov.co/consultas/detalleProceso.do?numConstancia=20-4-10701782"]
[1045716759,"ALFREDO ANGULO JULIAO",1649,"1649-2020","AUXILIAR DE FACTURACION URGENCIA","01 de Abril de 2020","  30 de Abril de  2020",1680000,1680000,"SANDRA SANMARTIN","SUBGENTE ADMINISTRATIVO",1925,2846,{"$f":"VLOOKUP(A329:A743,'[2]ABRIL 2020'!$B$3:$M$584,12,0)","v":"2020-04-22"},"https://www.contratos.gov.co/consultas/detalleProceso.do?numConstancia=20-4-10701793"]
[1001821798,"ANGELA JUDITH BARRIOS MEJIA",1650,"1650-2020","AUXILIAR DE ENFERMERIA URGENCIAS","01 de Abril de 2020","  30 de Abril de  2020",1653600,1653600,"WILFRAN JIMENEZ DE LA PEÑA","COORD CENTRO DE SALUD",1926,2847,{"$f":"VLOOKUP(A330:A744,'[2]ABRIL 2020'!$B$3:$M$584,12,0)","v":"2020-04-22"},"https://www.contratos.gov.co/consultas/detalleProceso.do?numConstancia=20-4-10701805"]
[22641629,"ANGELICA CARCAMO ANAYA",1651,"1651-2020","AGENTE CALL CENTER","01 de Abril de 2020","  30 de Abril de  2020",1378000,1378000,"WILFRAN JIMENEZ DE LA PEÑA","COORD CENTRO DE SALUD",1927,2848,{"$f":"VLOOKUP(A331:A745,'[2]ABRIL 2020'!$B$3:$M$584,12,0)","v":"2020-04-22"},"https://www.contratos.gov.co/consultas/detalleProceso.do?numConstancia=20-4-10701820"]
[32780077,"BELKIS  BOSSIO ESCORCIA",1652,"1652-2020","MEDICO DE URGENCIA","01 de Abril de 2020","  30 de Abril de  2020",3072000,3072000,"WILFRAN JIMENEZ DE LA PEÑA","COORD CENTRO DE SALUD",1928,2849,{"$f":"VLOOKUP(A332:A746,'[2]ABRIL 2020'!$B$3:$M$584,12,0)","v":"2020-04-22"},"https://www.contratos.gov.co/consultas/detalleProceso.do?numConstancia=20-4-10701850"]
[32736237,"BETTY ROMERO RODRIGUEZ ",1653,"1653-2020","AUXILIAR SERVICIOS GENERALES URGENCIA","01 de Abril de 2020","  30 de Abril de  2020",1653600,1653600,"WILFRAN JIMENEZ DE LA PEÑA","COORD CENTRO DE SALUD",1929,2850,{"$f":"VLOOKUP(A333:A747,'[2]ABRIL 2020'!$B$3:$M$584,12,0)","v":"2020-04-22"},"https://www.contratos.gov.co/consultas/detalleProceso.do?numConstancia=20-4-10701856"]
[1042446319,"BRUNYS DEL CARMEN RAMIREZ MUÑOZ",1654,"1654-2020","AUXILIAR DE ENFERMERIA PROMOTORA EN SALUD","01 de Abril de 2020","  30 de Abril de  2020",1458000,1458000,"WILFRAN JIMENEZ DE LA PEÑA","COORD CENTRO DE SALUD",1930,2851,{"$f":"VLOOKUP(A334:A748,'[2]ABRIL 2020'!$B$3:$M$584,12,0)","v":"2020-04-22"},"https://www.contratos.gov.co/consultas/detalleProceso.do?numConstancia=20-4-10701868"]
[32618430,"CARMEN ROBLES DE LASCARRO",1655,"1655-2020","AUXILIAR SERVICIOS GENERALES URGENCIA","01 de Abril de 2020","  30 de Abril de  2020",1653600,1653600,"WILFRAN JIMENEZ DE LA PEÑA","COORD CENTRO DE SALUD",1931,2852,{"$f":"VLOOKUP(A335:A749,'[2]ABRIL 2020'!$B$3:$M$584,12,0)","v":"2020-04-22"},"https://www.contratos.gov.co/consultas/detalleProceso.do?numConstancia=20-4-10701871"]
[1143138226,"CATTERINNE ESTEFANY ESTRADA CARDENAS",1656,"1656-2020","AUXILIAR DE FACTURACION URGENCIA","01 de Abril de 2020","  30 de Abril de  2020",1680000,1680000,"SANDRA SANMARTIN","SUBGENTE ADMINISTRATIVO",1932,2853,{"$f":"VLOOKUP(A336:A750,'[2]ABRIL 2020'!$B$3:$M$584,12,0)","v":"2020-04-22"},"https://www.contratos.gov.co/consultas/detalleProceso.do?numConstancia=20-4-10701875"]
[1042418998,"CLAUDIA AREVALO CERVANTES",1657,"1657-2020","ENFERMERA JEFE P Y P","01 de Abril de 2020","  30 de Abril de  2020",2300000,2300000,"NILSA ARIZA MARQUEZ","COORDINADOR PYP",1933,2854,{"$f":"VLOOKUP(A337:A751,'[2]ABRIL 2020'!$B$3:$M$584,12,0)","v":"2020-04-22"},"https://www.contratos.gov.co/consultas/detalleProceso.do?numConstancia=20-4-10701879"]
[32749353,"CLAUDIA VALENCIA AGUDELO ",1658,"1658-2020","AUXILIAR DE ENFERMERIA MATERNIDAD SEGURA ","01 de Abril de 2020","  30 de Abril de  2020",1399200,1399200,"WILFRAN JIMENEZ DE LA PEÑA","COORD CENTRO DE SALUD",1934,2855,{"$f":"VLOOKUP(A338:A752,'[2]ABRIL 2020'!$B$3:$M$584,12,0)","v":"2020-04-22"},"https://www.contratos.gov.co/consultas/detalleProceso.do?numConstancia=20-4-10701883"]
[32818534,"CONSUELO MENDOZA CASTRO ",1659,"1659-2020","AUXILIAR DE ENFERMERIA MATERNIDAD SEGURA ","01 de Abril de 2020","  30 de Abril de  2020",1166000,1166000,"WILFRAN JIMENEZ DE LA PEÑA","COORD CENTRO DE SALUD",1935,2856,{"$f":"VLOOKUP(A339:A753,'[2]ABRIL 2020'!$B$3:$M$584,12,0)","v":"2020-04-22"},"https://www.contratos.gov.co/consultas/detalleProceso.do?numConstancia=20-4-10701887"]
[72436677,"DANILO ENRIQUE GRAVINI DE LA HOZ",1660,"1660-2020","AUXILIAR DE ENFERMERIA URGENCIAS","01 de Abril de 2020","  30 de Abril de  2020",1653600,1653600,"WILFRAN JIMENEZ DE LA PEÑA","COORD CENTRO DE SALUD",1936,2857,{"$f":"VLOOKUP(A340:A754,'[2]ABRIL 2020'!$B$3:$M$584,12,0)","v":"2020-04-22"},"https://www.contratos.gov.co/consultas/detalleProceso.do?numConstancia=20-4-10701900"]
[1042436934,"DAYANA PAOLA TORRES SOLANO",1661,"1661-2020","MEDICO DE URGENCIA","01 de Abril de 2020","  30 de Abril de  2020",4132000,4132000,"WILFRAN JIMENEZ DE LA PEÑA","COORD CENTRO DE SALUD",1937,2858,{"$f":"VLOOKUP(A341:A755,'[2]ABRIL 2020'!$B$3:$M$584,12,0)","v":"2020-04-22"},"https://www.contratos.gov.co/consultas/detalleProceso.do?numConstancia=20-4-10701910"]
[1042436213,"DESIRET PAOLA PINTO NARVAEZ",1662,"1662-2020","ENFERMERA JEFE URGENCIAS ","01 de Abril de 2020","  30 de Abril de  2020",2280000,2280000,"WILFRAN JIMENEZ DE LA PEÑA","COORD CENTRO DE SALUD",1938,2859,{"$f":"VLOOKUP(A342:A756,'[2]ABRIL 2020'!$B$3:$M$584,12,0)","v":"2020-04-22"},"https://www.contratos.gov.co/consultas/detalleProceso.do?numConstancia=20-4-10701914"]
[1052949649,"DILIANA GARCIA JIMENEZ",1663,"1663-2020","ENFERMERA JEFE URGENCIAS ","01 de Abril de 2020","  30 de Abril de  2020",2280000,2280000,"WILFRAN JIMENEZ DE LA PEÑA","COORD CENTRO DE SALUD",1939,2860,{"$f":"VLOOKUP(A343:A757,'[2]ABRIL 2020'!$B$3:$M$584,12,0)","v":"2020-04-22"},"https://www.contratos.gov.co/consultas/detalleProceso.do?numConstancia=20-4-10701918"]
[1042420928,"DINA DEL CARMEN  CUELLO DONADO",1664,"1664-2020","AUXILIAR DE FACTURACION URGENCIA","01 de Abril de 2020","  30 de Abril de  2020",1680000,1680000,"WILFRAN JIMENEZ DE LA PEÑA","COORD CENTRO DE SALUD",1940,2861,{"$f":"VLOOKUP(A344:A758,'[2]ABRIL 2020'!$B$3:$M$584,12,0)","v":"2020-04-22"},"https://www.contratos.gov.co/consultas/detalleProceso.do?numConstancia=20-4-10701921"]
[32769312,"DORIS PADILLA MOLINA ",1665,"1665-2020","AUXILIAR DE ODONTOLOGIA","01 de Abril de 2020","  30 de Abril de  2020",1166000,1166000,"CARLOS VISBAL JIMENEZ","COORD CENTRO DE SALUD",1941,2862,{"$f":"VLOOKUP(A345:A759,'[2]ABRIL 2020'!$B$3:$M$584,12,0)","v":"2020-04-22"},"https://www.contratos.gov.co/consultas/detalleProceso.do?numConstancia=20-4-10701927"]
[72432974,"EDER JOSE CASTRO PINTO",1666,"1666-2020","ORIENTADOR","01 de Abril de 2020","  30 de Abril de  2020",1524000,1524000,"WILFRAN JIMENEZ DE LA PEÑA","COORD CENTRO DE SALUD",1942,2863,{"$f":"VLOOKUP(A346:A760,'[2]ABRIL 2020'!$B$3:$M$584,12,0)","v":"2020-04-22"},"https://www.contratos.gov.co/consultas/detalleProceso.do?numConstancia=20-4-10701931"]
[8735248,"EDGAR CERVANTES MELGAREJO",1667,"1667-2020","MEDICO P Y P ","01 de Abril de 2020","  30 de Abril de  2020",2120000,2120000,"WILFRAN JIMENEZ DE LA PEÑA","COORD CENTRO DE SALUD",1943,2864,{"$f":"VLOOKUP(A347:A761,'[2]ABRIL 2020'!$B$3:$M$584,12,0)","v":"2020-04-22"},"https://www.contratos.gov.co/consultas/detalleProceso.do?numConstancia=20-4-10701937"]
[72181563,"EDGARDO THORNE GLENN",1668,"1668-2020","ODONTOLOGO","01 de Abril de 2020","  30 de Abril de  2020",1900000,1900000,"WILFRAN JIMENEZ DE LA PEÑA","COORD CENTRO DE SALUD",1944,2865,{"$f":"VLOOKUP(A348:A762,'[2]ABRIL 2020'!$B$3:$M$584,12,0)","v":"2020-04-22"},"https://www.contratos.gov.co/consultas/detalleProceso.do?numConstancia=20-4-10701942"]
[78302933,"EDIE JAIR GIL",1669,"1669-2020","TECNOLOGO EN RADIOLOGIA","01 de Abril de 2020","  30 de Abril de  2020",1800000,1800000,"WILFRAN JIMENEZ DE LA PEÑA","COORD CENTRO DE SALUD",1945,2866,{"$f":"VLOOKUP(A349:A763,'[2]ABRIL 2020'!$B$3:$M$584,12,0)","v":"2020-04-22"},"https://www.contratos.gov.co/consultas/detalleProceso.do?numConstancia=20-4-10701945"]
[1045675420,"EIBANIA MOLINA VENERA",1670,"1670-2020","AUXILIAR DE ENFERMERIA URGENCIAS","01 de Abril de 2020","  30 de Abril de  2020",1653600,1653600,"WILFRAN JIMENEZ DE LA PEÑA","COORD CENTRO DE SALUD",1946,2867,{"$f":"VLOOKUP(A350:A764,'[2]ABRIL 2020'!$B$3:$M$584,12,0)","v":"2020-04-22"},"https://www.contratos.gov.co/consultas/detalleProceso.do?numConstancia=20-4-10701953"]
[22570149,"ELENA BAENA PEÑA",1671,"1671-2020","AUXILIAR DE FACTURACION URGENCIA","01 de Abril de 2020","  30 de Abril de  2020",1680000,1680000,"SANDRA SANMARTIN","SUBGENTE ADMINISTRATIVO",1947,2868,{"$f":"VLOOKUP(A351:A765,'[2]ABRIL 2020'!$B$3:$M$584,12,0)","v":"2020-04-22"},"https://www.contratos.gov.co/consultas/detalleProceso.do?numConstancia=20-4-10701959"]
[32871139,"ELLA VIZCAINO SENIOR",1672,"1672-2020","ENFERMERA JEFE ","01 de Abril de 2020","  30 de Abril de  2020",2760000,2760000,"NILSA ARIZA MARQUEZ","COORDINADOR PYP",1948,2869,{"$f":"VLOOKUP(A352:A766,'[2]ABRIL 2020'!$B$3:$M$584,12,0)","v":"2020-04-22"},"https://www.contratos.gov.co/consultas/detalleProceso.do?numConstancia=20-4-10701962"]
[1143147791,"ERNESTO JUNIOR ROJANO MEZA",1673,"1673-2020","TECNOLOGO EN RADIOLOGIA","01 de Abril de 2020","  30 de Abril de  2020",1800000,1800000,"WILFRAN JIMENEZ DE LA PEÑA","COORD CENTRO DE SALUD",1949,2870,{"$f":"VLOOKUP(A353:A767,'[2]ABRIL 2020'!$B$3:$M$584,12,0)","v":"2020-04-22"},"https://www.contratos.gov.co/consultas/detalleProceso.do?numConstancia=20-4-10701966"]
[44157204,"ESTHER CECILIA SOLANO BARROS",1674,"1674-2020","MEDICO DE URGENCIA","01 de Abril de 2020","  30 de Abril de  2020",3072000,3072000,"WILFRAN JIMENEZ DE LA PEÑA","COORD CENTRO DE SALUD",1950,2871,{"$f":"VLOOKUP(A354:A768,'[2]ABRIL 2020'!$B$3:$M$584,12,0)","v":"2020-04-22"},"https://www.contratos.gov.co/consultas/detalleProceso.do?numConstancia=20-4-10701968"]
[8705578,"FERMIN NAVARRO STEFANELL",1675,"1675-2020","GINECOLOGO","01 de Abril de 2020","  30 de Abril de  2020",9600000,9600000,"NILSA ARIZA MARQUEZ","COORDINADOR PYP",1951,2872,{"$f":"VLOOKUP(A355:A769,'[2]ABRIL 2020'!$B$3:$M$584,12,0)","v":"2020-04-22"},"https://www.contratos.gov.co/consultas/detalleProceso.do?numConstancia=20-4-10701979"]
[1129520650,"FERNANDO LUIS CERA DIAZ",1676,"1676-2020","MEDICO DE URGENCIA","01 de Abril de 2020","  30 de Abril de  2020",3072000,3072000,"WILFRAN JIMENEZ DE LA PEÑA","COORD CENTRO DE SALUD",1952,2873,{"$f":"VLOOKUP(A356:A770,'[2]ABRIL 2020'!$B$3:$M$584,12,0)","v":"2020-04-22"},"https://www.contratos.gov.co/consultas/detalleProceso.do?numConstancia=20-4-10701981"]
[55305321,"GELMIS SARAY MARTINEZ DIPPE",1677,"1677-2020","AGENTE CALL CENTER","01 de Abril de 2020","  30 de Abril de  2020",1378000,1378000,"WILFRAN JIMENEZ DE LA PEÑA","COORD CENTRO DE SALUD",1953,2874,{"$f":"VLOOKUP(A357:A771,'[2]ABRIL 2020'!$B$3:$M$584,12,0)","v":"2020-04-22"},"https://www.contratos.gov.co/consultas/detalleProceso.do?numConstancia=20-4-10701984"]
[32756610,"GENNY GUZMAN NAVARRO",1678,"1678-2020","MEDICO DE URGENCIA","01 de Abril de 2020","  30 de Abril de  2020",3072000,3072000,"WILFRAN JIMENEZ DE LA PEÑA","COORD CENTRO DE SALUD",1954,2875,{"$f":"VLOOKUP(A358:A772,'[2]ABRIL 2020'!$B$3:$M$584,12,0)","v":"2020-04-22"},"https://www.contratos.gov.co/consultas/detalleProceso.do?numConstancia=20-4-10701995"]
[1143166347,"GERALDINE DAYANA AMARIS MILLAN",1679,"1679-2020","AGENTE CALL CENTER","01 de Abril de 2020","  30 de Abril de  2020",1378000,1378000,"WILFRAN JIMENEZ DE LA PEÑA","COORD CENTRO DE SALUD",1955,2876,{"$f":"VLOOKUP(A359:A773,'[2]ABRIL 2020'!$B$3:$M$584,12,0)","v":"2020-04-22"},"https://www.contratos.gov.co/consultas/detalleProceso.do?numConstancia=20-4-10702002"]
[32825276,"GIOVANNA  ESTHER AFRICANO NAVARRO",1680,"1680-2020","NUTRICIONISTA","01 de Abril de 2020","  30 de Abril de  2020",2760000,2760000,"WILFRAN JIMENEZ DE LA PEÑA","COORD CENTRO DE SALUD",1956,2877,{"$f":"VLOOKUP(A360:A774,'[2]ABRIL 2020'!$B$3:$M$584,12,0)","v":"2020-04-22"},"https://www.contratos.gov.co/consultas/detalleProceso.do?numConstancia=20-4-10702004"]
[30568187,"HAIDE MEJIA PRADO",1681,"1681-2020","AUXILIAR SERVICIOS GENERALES URGENCIA","01 de Abril de 2020","  30 de Abril de  2020",1653600,1653600,"WILFRAN JIMENEZ DE LA PEÑA","COORD CENTRO DE SALUD",1957,2878,{"$f":"VLOOKUP(A361:A775,'[2]ABRIL 2020'!$B$3:$M$584,12,0)","v":"2020-04-22"},"https://www.contratos.gov.co/consultas/detalleProceso.do?numConstancia=20-4-10702021"]
[33005079,"IDALMIS NAVARRO ARROYO",1682,"1682-2020","AUXILIAR SERVICIOS GENERALES URGENCIA","01 de Abril de 2020","  30 de Abril de  2020",1653600,1653600,"WILFRAN JIMENEZ DE LA PEÑA","COORD CENTRO DE SALUD",1958,2879,{"$f":"VLOOKUP(A362:A776,'[2]ABRIL 2020'!$B$3:$M$584,12,0)","v":"2020-04-22"},"https://www.contratos.gov.co/consultas/detalleProceso.do?numConstancia=20-4-10702028"]
[72428579,"IVAN ANDRES DOMINGUEZ SAGBINI",1683,"1683-2020","GINECOLOGO ","01 de Abril de 2020","  30 de Abril de  2020",9600000,9600000,"NILSA ARIZA MARQUEZ","COORDINADOR PYP",1959,2880,{"$f":"VLOOKUP(A363:A777,'[2]ABRIL 2020'!$B$3:$M$584,12,0)","v":"2020-04-22"},"https://www.contratos.gov.co/consultas/detalleProceso.do?numConstancia=20-4-10702030"]
[72072808,"JARID BERDUGO COBO ",1684,"1684-2020","REFERENCIA Y CONTRAREFERENCIA","01 de Abril de 2020","  30 de Abril de  2020",1776000,1776000,"WILFRAN JIMENEZ DE LA PEÑA","COORD CENTRO DE SALUD",1960,2881,{"$f":"VLOOKUP(A364:A778,'[2]ABRIL 2020'!$B$3:$M$584,12,0)","v":"2020-04-22"},"https://www.contratos.gov.co/consultas/detalleProceso.do?numConstancia=20-4-10702036"]
[1143453456,"JEAN DAVID MONTALVO ZULETA",1685,"1685-2020","AGENTE CALL CENTER","01 de Abril de 2020","  30 de Abril de  2020",1378000,1378000,"WILFRAN JIMENEZ DE LA PEÑA","COORD CENTRO DE SALUD",1961,2882,{"$f":"VLOOKUP(A365:A779,'[2]ABRIL 2020'!$B$3:$M$584,12,0)","v":"2020-04-22"},"https://www.contratos.gov.co/consultas/detalleProceso.do?numConstancia=20-4-10702037"]
[8740611,"JESUS RECUERO LAMADRID",1686,"1686-2020","ORIENTADOR","01 de Abril de 2020","  30 de Abril de  2020",1524000,1524000,"WILFRAN JIMENEZ DE LA PEÑA","COORD CENTRO DE SALUD",1962,2883,{"$f":"VLOOKUP(A366:A780,'[2]ABRIL 2020'!$B$3:$M$584,12,0)","v":"2020-04-22"},"https://www.contratos.gov.co/consultas/detalleProceso.do?numConstancia=20-4-10702041"]
[1045706679,"JONATHAN ACOSTA MORENO",1687,"1687-2020","MEDICO DE URGENCIA","01 de Abril de 2020","  30 de Abril de  2020",3072000,3072000,"WILFRAN JIMENEZ DE LA PEÑA","COORD CENTRO DE SALUD",1963,2884,{"$f":"VLOOKUP(A367:A781,'[2]ABRIL 2020'!$B$3:$M$584,12,0)","v":"2020-04-22"},"https://www.contratos.gov.co/consultas/detalleProceso.do?numConstancia=20-4-10702048"]
[8532785,"JOSE GUERRERO ORTIZ",1688,"1688-2020","AGENTE CALL CENTER","01 de Abril de 2020","  30 de Abril de  2020",1378000,1378000,"WILFRAN JIMENEZ DE LA PEÑA","COORD CENTRO DE SALUD",1964,2885,{"$f":"VLOOKUP(A368:A782,'[2]ABRIL 2020'!$B$3:$M$584,12,0)","v":"2020-04-22"},"https://www.contratos.gov.co/consultas/detalleProceso.do?numConstancia=20-4-10702053"]
[72165796,"JOSE SALVADOR FERNANDEZ RODELO",1689,"1689-2020","ORIENTADOR","01 de Abril de 2020","  30 de Abril de  2020",1524000,1524000,"WILFRAN JIMENEZ DE LA PEÑA","COORD CENTRO DE SALUD",1965,2886,{"$f":"VLOOKUP(A369:A783,'[2]ABRIL 2020'!$B$3:$M$584,12,0)","v":"2020-04-22"},"https://www.contratos.gov.co/consultas/detalleProceso.do?numConstancia=20-4-10702061"]
[26853643,"JUDITH CHARRIS MACHADO ",1690,"1690-2020","ENFERMERA JEFE URGENCIAS ","01 de Abril de 2020","  30 de Abril de  2020",2280000,2280000,"WILFRAN JIMENEZ DE LA PEÑA","COORD CENTRO DE SALUD",1966,2887,{"$f":"VLOOKUP(A370:A784,'[2]ABRIL 2020'!$B$3:$M$584,12,0)","v":"2020-04-22"},"https://www.contratos.gov.co/consultas/detalleProceso.do?numConstancia=20-4-10702061"]
[32712489,"JULIA ESTELLA RIVERA TREJOS",1691,"1691-2020","MEDICO DE URGENCIA","01 de Abril de 2020","  30 de Abril de  2020",3072000,3072000,"WILFRAN JIMENEZ DE LA PEÑA","COORD CENTRO DE SALUD",1967,2888,{"$f":"VLOOKUP(A371:A785,'[2]ABRIL 2020'!$B$3:$M$584,12,0)","v":"2020-04-22"},"https://www.contratos.gov.co/consultas/detalleProceso.do?numConstancia=20-4-10702065"]
[1129513283,"KARINE MILENA LEONES MARQUEZ",1692,"1692-2020","AUXILIAR DE FARMACIA ","01 de Abril de 2020","  30 de Abril de  2020",1524000,1524000,"BETTY PERTUZ ","SUBGERENCIA CIENTIFICA",1968,2889,{"$f":"VLOOKUP(A372:A786,'[2]ABRIL 2020'!$B$3:$M$584,12,0)","v":"2020-04-22"},"https://www.contratos.gov.co/consultas/detalleProceso.do?numConstancia=20-4-10702068"]
[1083433669,"KARLA MARIA SUAREZ MUÑOZ",1693,"1693-2020","AUXILIAR DE ENFERMERIA URGENCIAS","01 de Abril de 2020","  30 de Abril de  2020",1653600,1653600,"WILFRAN JIMENEZ DE LA PEÑA","COORD CENTRO DE SALUD",1969,2890,{"$f":"VLOOKUP(A373:A787,'[2]ABRIL 2020'!$B$3:$M$584,12,0)","v":"2020-04-22"},"https://www.contratos.gov.co/consultas/detalleProceso.do?numConstancia=20-4-10702071"]
[32894662,"KATTY MACIAS PONTON ",1694,"1694-2020","MEDICO DE URGENCIA","01 de Abril de 2020","  30 de Abril de  2020",3072000,3072000,"WILFRAN JIMENEZ DE LA PEÑA","COORD CENTRO DE SALUD",1970,2891,{"$f":"VLOOKUP(A374:A788,'[2]ABRIL 2020'!$B$3:$M$584,12,0)","v":"2020-04-22"},"https://www.contratos.gov.co/consultas/detalleProceso.do?numConstancia=20-4-10702073"]
[22642874,"KELLYS JOHANA URUETA SUAREZ",1695,"1695-2020","AUXILIAR SERVICIOS GENERALES URGENCIA","01 de Abril de 2020","  30 de Abril de  2020",1653600,1653600,"WILFRAN JIMENEZ DE LA PEÑA","COORD CENTRO DE SALUD",1971,2892,{"$f":"VLOOKUP(A375:A789,'[2]ABRIL 2020'!$B$3:$M$584,12,0)","v":"2020-04-22"},"https://www.contratos.gov.co/consultas/detalleProceso.do?numConstancia=20-4-10702078"]
[1129581013,"KERLY JHOVELIS PITRE MORENO",1696,"1696-2020","ENFERMERA JEFE P Y P","01 de Abril de 2020","  30 de Abril de  2020",2300000,2300000,"NILSA ARIZA MARQUEZ","COORDINADOR PYP",1972,2893,{"$f":"VLOOKUP(A376:A790,'[2]ABRIL 2020'!$B$3:$M$584,12,0)","v":"2020-04-22"},"https://www.contratos.gov.co/consultas/detalleProceso.do?numConstancia=20-4-10702083"]
[32879736,"LEISYS MARIA CASTRO OLARTE",1697,"1697-2020","AUXILIAR DE FACTURACION URGENCIA","01 de Abril de 2020","  30 de Abril de  2020",1680000,1680000,"SANDRA SANMARTIN","SUBGENTE ADMINISTRATIVO",1973,2894,{"$f":"VLOOKUP(A377:A791,'[2]ABRIL 2020'!$B$3:$M$584,12,0)","v":"2020-04-22"},"https://www.contratos.gov.co/consultas/detalleProceso.do?numConstancia=20-4-10702088"]
[1002157167,"LEODALIZ SALGADO GUERRERO",1698,"1698-2020","AGENTE CALL CENTER","01 de Abril de 2020","  30 de Abril de  2020",1400000,1400000,"WILFRAN JIMENEZ DE LA PEÑA","COORD CENTRO DE SALUD",1974,2895,{"$f":"VLOOKUP(A378:A792,'[2]ABRIL 2020'!$B$3:$M$584,12,0)","v":"2020-04-22"},"https://www.contratos.gov.co/consultas/detalleProceso.do?numConstancia=20-4-10702091"]
[1090415871,"LEONARDO BELLO PUENTES",1699,"1699-2020","ODONTOLOGO","01 de Abril de 2020","  30 de Abril de  2020",1900000,1900000,"WILFRAN JIMENEZ DE LA PEÑA","COORD CENTRO DE SALUD",1975,2896,{"$f":"VLOOKUP(A379:A793,'[2]ABRIL 2020'!$B$3:$M$584,12,0)","v":"2020-04-22"},"https://www.contratos.gov.co/consultas/detalleProceso.do?numConstancia=20-4-10702094"]
[42205053,"LIBIA ELENA BELEÑO MENDOZA",1700,"1700-2020","TRABAJADORA SOCIAL","01 de Abril de 2020","  30 de Abril de  2020",2760000,2760000,"WILFRAN JIMENEZ DE LA PEÑA","COORD CENTRO DE SALUD",1976,2897,{"$f":"VLOOKUP(A380:A794,'[2]ABRIL 2020'!$B$3:$M$584,12,0)","v":"2020-04-22"},"https://www.contratos.gov.co/consultas/detalleProceso.do?numConstancia=20-4-10702097"]
[32772357,"LIDYS ESTHER REALES CASTRO ",1701,"1701-2020","AUXILIAR DE ENFERMERIA URGENCIAS","01 de Abril de 2020","  30 de Abril de  2020",1653600,1653600,"WILFRAN JIMENEZ DE LA PEÑA","COORD CENTRO DE SALUD",1977,2898,{"$f":"VLOOKUP(A381:A795,'[2]ABRIL 2020'!$B$3:$M$584,12,0)","v":"2020-04-22"},"https://www.contratos.gov.co/consultas/detalleProceso.do?numConstancia=20-4-10702100"]
[1042453991,"LILIANA JUDITH MORENO GUTIERREZ",1702,"1702-2020","AGENTE CALL CENTER","01 de Abril de 2020","  30 de Abril de  2020",1378000,1378000,"WILFRAN JIMENEZ DE LA PEÑA","COORD CENTRO DE SALUD",1978,2899,{"$f":"VLOOKUP(A382:A796,'[2]ABRIL 2020'!$B$3:$M$584,12,0)","v":"2020-04-22"},"https://www.contratos.gov.co/consultas/detalleProceso.do?numConstancia=20-4-10702104"]
[1042436897,"LIZETH PATRICIA BLANQUICETT FERRER",1703,"1703-2020","AGENTE CALL CENTER","01 de Abril de 2020","  30 de Abril de  2020",1378000,1378000,"WILFRAN JIMENEZ DE LA PEÑA","COORD CENTRO DE SALUD",1979,2900,{"$f":"VLOOKUP(A383:A797,'[2]ABRIL 2020'!$B$3:$M$584,12,0)","v":"2020-04-22"},"https://www.contratos.gov.co/consultas/detalleProceso.do?numConstancia=20-4-10702112"]
[32761353,"LORENZA BARRIOS ESTRADA",1704,"1704-2020","AUXILIAR DE ENFERMERIA URGENCIAS","01 de Abril de 2020","  30 de Abril de  2020",1653600,1653600,"WILFRAN JIMENEZ DE LA PEÑA","COORD CENTRO DE SALUD",1980,2901,{"$f":"VLOOKUP(A384:A798,'[2]ABRIL 2020'!$B$3:$M$584,12,0)","v":"2020-04-22"},"https://www.contratos.gov.co/consultas/detalleProceso.do?numConstancia=20-4-10702117"]
[72346265,"LUIS VASQUEZ BALLESTAS",1705,"1705-2020","COORDINADOR DE FACTURACION","01 de Abril de 2020","  30 de Abril de  2020",2160000,2160000,"WILFRAN JIMENEZ DE LA PEÑA","COORD CENTRO DE SALUD",1981,2902,{"$f":"VLOOKUP(A385:A799,'[2]ABRIL 2020'!$B$3:$M$584,12,0)","v":"2020-04-22"},"https://www.contratos.gov.co/consultas/detalleProceso.do?numConstancia=20-4-10702123"]
[51977895,"LUZ HELENA MORALES MARTINEZ",1706,"1706-2020","AUXILIAR DE ARCHIVO ","01 de Abril de 2020","  30 de Abril de  2020",1800000,1800000,"SANDRA SANMARTIN","SUBGENTE ADMINISTRATIVO",1982,2903,{"$f":"VLOOKUP(A386:A800,'[2]ABRIL 2020'!$B$3:$M$584,12,0)","v":"2020-04-22"},"https://www.contratos.gov.co/consultas/detalleProceso.do?numConstancia=20-4-10702127"]
[32623541,"MAGALYS ESPITIA RAMOS",1707,"1707-2020","AUXILIAR SERVICIOS GENERALES URGENCIA","01 de Abril de 2020","  30 de Abril de  2020",1653600,1653600,"WILFRAN JIMENEZ DE LA PEÑA","COORD CENTRO DE SALUD",1983,2904,{"$f":"VLOOKUP(A387:A801,'[2]ABRIL 2020'!$B$3:$M$584,12,0)","v":"2020-04-22"},"https://www.contratos.gov.co/consultas/detalleProceso.do?numConstancia=20-4-10702130"]
[1042447096,"MARBELYS AHELL RANGEL MERCADO ",1708,"1708-2020","AGENTE CALL CENTER","01 de Abril de 2020","  30 de Abril de  2020",1378000,{"$f":"+H388*1","v":1378000},"WILFRAN JIMENEZ DE LA PEÑA","COORD CENTRO DE SALUD",1984,2905,{"$f":"VLOOKUP(A388:A802,'[2]ABRIL 2020'!$B$3:$M$584,12,0)","v":"2020-04-22"},"https://www.contratos.gov.co/consultas/detalleProceso.do?numConstancia=20-4-10702135"]
[22605801,"MARCELA PATRICIA TORRES CARROLL",{"$f":"+C388+1","v":1709},"1709-2020","AUXILIAR DE FACTURACION URGENCIA","01 de Abril de 2020","  30 de Abril de  2020",1680000,1680000,"SANDRA SANMARTIN","SUBGENTE ADMINISTRATIVO",1985,2906,{"$f":"VLOOKUP(A389:A803,'[2]ABRIL 2020'!$B$3:$M$584,12,0)","v":"2020-04-22"},"https://www.contratos.gov.co/consultas/detalleProceso.do?numConstancia=20-4-10702138"]
[1047341586,"MARIA GUADALUPE MUÑOZ MORALES",1710,"1710-2020","ODONTOLOGO","01 de Abril de 2020","  30 de Abril de  2020",1900000,1900000,"WILFRAN JIMENEZ DE LA PEÑA","COORD CENTRO DE SALUD",1986,2907,{"$f":"VLOOKUP(A390:A804,'[2]ABRIL 2020'!$B$3:$M$584,12,0)","v":"2020-04-22"},"https://www.contratos.gov.co/consultas/detalleProceso.do?numConstancia=20-4-10702142"]
[32668810,"MARIA ISABEL ALVARADO LOBOS",1711,"1711-2020","ASISTENTE COORDINADOR MEDICO","01 de Abril de 2020","  30 de Abril de  2020",2400000,2400000,"WILFRAN JIMENEZ DE LA PEÑA","COORD CENTRO DE SALUD",1987,2908,{"$f":"VLOOKUP(A391:A805,'[2]ABRIL 2020'!$B$3:$M$584,12,0)","v":"2020-04-22"},"https://www.contratos.gov.co/consultas/detalleProceso.do?numConstancia=20-4-10702145"]
[72043527,"MARIANO DE JESUS BARRIOS ELLES ",1712,"1712-2020","COORDINADOR CALL CENTER","01 de Abril de 2020","  30 de Abril de  2020",3000000,3000000,"BETTY PERTUZ ","SUBGERENCIA CIENTIFICA",1988,2909,{"$f":"VLOOKUP(A392:A806,'[2]ABRIL 2020'!$B$3:$M$584,12,0)","v":"2020-04-22"},"https://www.contratos.gov.co/consultas/detalleProceso.do?numConstancia=20-4-10702148"]
[1140867598,"MARLA HERRERA MERIÑO",1713,"1713-2020","AUXILIAR DE ENFERMERIA URGENCIAS","01 de Abril de 2020","  30 de Abril de  2020",1653600,1653600,"WILFRAN JIMENEZ DE LA PEÑA","COORD CENTRO DE SALUD",1989,2910,{"$f":"VLOOKUP(A393:A807,'[2]ABRIL 2020'!$B$3:$M$584,12,0)","v":"2020-04-22"},"https://www.contratos.gov.co/consultas/detalleProceso.do?numConstancia=20-4-10702151"]
[55227166,"MARYI PEREZ CASSIANI",1714,"1714-2020","ENFERMERA JEFE URGENCIAS ","01 de Abril de 2020","  30 de Abril de  2020",2280000,2280000,"WILFRAN JIMENEZ DE LA PEÑA","COORD CENTRO DE SALUD",1990,2911,{"$f":"VLOOKUP(A394:A808,'[2]ABRIL 2020'!$B$3:$M$584,12,0)","v":"2020-04-22"},"https://www.contratos.gov.co/consultas/detalleProceso.do?numConstancia=20-4-10702154"]
[32769980,"MARYORIS POLO HERRERA",1715,"1715-2020","AUXILIAR DE ENFERMERIA URGENCIAS","01 de Abril de 2020","  30 de Abril de  2020",1653600,1653600,"WILFRAN JIMENEZ DE LA PEÑA","COORD CENTRO DE SALUD",1991,2912,{"$f":"VLOOKUP(A395:A809,'[2]ABRIL 2020'!$B$3:$M$584,12,0)","v":"2020-04-22"},"https://www.contratos.gov.co/consultas/detalleProceso.do?numConstancia=20-4-10702160"]
[1042452765,"MAYERLINN SANDOVAL BARRIOS",1716,"1716-2020","AGENTE CALL CENTER","01 de Abril de 2020","  30 de Abril de  2020",1378000,1378000,"WILFRAN JIMENEZ DE LA PEÑA","COORD CENTRO DE SALUD",1992,2913,{"$f":"VLOOKUP(A396:A810,'[2]ABRIL 2020'!$B$3:$M$584,12,0)","v":"2020-04-22"},"https://www.contratos.gov.co/consultas/detalleProceso.do?numConstancia=20-4-10702166"]
[8795259,"MIGUEL ANGEL OLMOS DE ALBA",1717,"1717-2020","CONDUCTOR DE AMBULANCIA","01 de Abril de 2020","  30 de Abril de  2020",2160000,2160000,"BETTY PERTUZ ","SUBGERENCIA CIENTIFICA",1993,2914,{"$f":"VLOOKUP(A397:A811,'[2]ABRIL 2020'!$B$3:$M$584,12,0)","v":"2020-04-22"},"https://www.contratos.gov.co/consultas/detalleProceso.do?numConstancia=20-4-10702169"]
[1129519216,"MILAGRO HERRERA MOJICA",1718,"1718-2020","MEDICO DE URGENCIA","01 de Abril de 2020","  30 de Abril de  2020",3072000,3072000,"WILFRAN JIMENEZ DE LA PEÑA","COORD CENTRO DE SALUD",1994,2915,{"$f":"VLOOKUP(A398:A812,'[2]ABRIL 2020'!$B$3:$M$584,12,0)","v":"2020-04-22"},"https://www.contratos.gov.co/consultas/detalleProceso.do?numConstancia=20-4-10702177"]
[32787314,"MILENA HERRERA BENAVIDES",1719,"1719-2020","AUXILIAR DE ENFERMERIA MATERNIDAD SEGURA ","01 de Abril de 2020","  30 de Abril de  2020",1399200,1399200,"WILFRAN JIMENEZ DE LA PEÑA","COORD CENTRO DE SALUD",1995,2916,{"$f":"VLOOKUP(A399:A813,'[2]ABRIL 2020'!$B$3:$M$584,12,0)","v":"2020-04-22"},"https://www.contratos.gov.co/consultas/detalleProceso.do?numConstancia=20-4-10702179"]
[1045689538,"MILLER TEDYS MEDRANO CASTRO",1720,"1720-2020","TECNOLOGO EN RADIOLOGIA","01 de Abril de 2020","  30 de Abril de  2020",1800000,1800000,"BETTY PERTUZ ","SUBGERENCIA CIENTIFICA",1996,2917,{"$f":"VLOOKUP(A400:A814,'[2]ABRIL 2020'!$B$3:$M$584,12,0)","v":"2020-04-22"},"https://www.contratos.gov.co/consultas/detalleProceso.do?numConstancia=20-4-10702182"]
[32814938,"MOIRA SANDOVAL PEDRAZA",1721,"1721-2020","AUXILIAR DE ENFERMERIA PROMOTORA EN SALUD","01 de Abril de 2020","  30 de Abril de  2020",1458000,1458000,"WILFRAN JIMENEZ DE LA PEÑA","COORD CENTRO DE SALUD",1997,2918,{"$f":"VLOOKUP(A401:A815,'[2]ABRIL 2020'!$B$3:$M$584,12,0)","v":"2020-04-22"},"https://www.contratos.gov.co/consultas/detalleProceso.do?numConstancia=20-4-10702187"]
[22443679,"MONICA PEREZ RODRIGUEZ ",1722,"1722-2020","FISIOTERAPEUTA ","01 de Abril de 2020","  30 de Abril de  2020",2520000,2520000,"WILFRAN JIMENEZ DE LA PEÑA","COORD CENTRO DE SALUD",1998,2919,{"$f":"VLOOKUP(A402:A816,'[2]ABRIL 2020'!$B$3:$M$584,12,0)","v":"2020-04-22"},"https://www.contratos.gov.co/consultas/detalleProceso.do?numConstancia=20-4-10702194"]
[32756032,"MONICA RAMIREZ CORREAL",1723,"1723-2020","AUXILIAR DE ENFERMERIA URGENCIAS","01 de Abril de 2020","  30 de Abril de  2020",1653600,1653600,"WILFRAN JIMENEZ DE LA PEÑA","COORD CENTRO DE SALUD",1999,2920,{"$f":"VLOOKUP(A403:A817,'[2]ABRIL 2020'!$B$3:$M$584,12,0)","v":"2020-04-22"},"https://www.contratos.gov.co/consultas/detalleProceso.do?numConstancia=20-4-10702197"]
[1140877960,"NICAULIS RODRIGUEZ GOMEZ",1724,"1724-2020","AUXILIAR DE FACTURACION URGENCIA","01 de Abril de 2020","  30 de Abril de  2020",1680000,1680000,"SANDRA SANMARTIN","SUBGENTE ADMINISTRATIVO",2000,2921,{"$f":"VLOOKUP(A404:A818,'[2]ABRIL 2020'!$B$3:$M$584,12,0)","v":"2020-04-22"},"https://www.contratos.gov.co/consultas/detalleProceso.do?numConstancia=20-4-10702201"]
[32637709,"NIDIA ELENA ORTEGA CARO",1725,"1725-2020","TRABAJADORA SOCIAL","01 de Abril de 2020","  30 de Abril de  2020",2640000,2640000,"WILFRAN JIMENEZ DE LA PEÑA","COORD CENTRO DE SALUD",2001,2922,{"$f":"VLOOKUP(A405:A819,'[2]ABRIL 2020'!$B$3:$M$584,12,0)","v":"2020-04-22"},"https://www.contratos.gov.co/consultas/detalleProceso.do?numConstancia=20-4-10702203"]
[1048267612,"OLGA DE AVILA ARRIETA",1726,"1726-2020","MEDICO MATERNIDAD SEGURA","01 de Abril de 2020","  30 de Abril de  2020",5088000,5088000,"WILFRAN JIMENEZ DE LA PEÑA","COORD CENTRO DE SALUD",2002,2923,{"$f":"VLOOKUP(A406:A820,'[2]ABRIL 2020'!$B$3:$M$584,12,0)","v":"2020-04-22"},"https://www.contratos.gov.co/consultas/detalleProceso.do?numConstancia=20-4-10702205"]
[32693760,"OMAIRA PLATA VESGA ",1727,"1727-2020","ODONTOLOGO","01 de Abril de 2020","  30 de Abril de  2020",1900000,1900000,"WILFRAN JIMENEZ DE LA PEÑA","COORD CENTRO DE SALUD",2003,2924,{"$f":"VLOOKUP(A407:A821,'[2]ABRIL 2020'!$B$3:$M$584,12,0)","v":"2020-04-22"},"https://www.contratos.gov.co/consultas/detalleProceso.do?numConstancia=20-4-10702208"]
[1001870758,"PATRICIA MERCEDES NAVARRO VALENCIA",1728,"1728-2020","AGENTE CALL CENTER","01 de Abril de 2020","  30 de Abril de  2020",2400000,2400000,"WILFRAN JIMENEZ DE LA PEÑA","COORD CENTRO DE SALUD",2004,2925,{"$f":"VLOOKUP(A408:A822,'[2]ABRIL 2020'!$B$3:$M$584,12,0)","v":"2020-04-22"},"https://www.contratos.gov.co/consultas/detalleProceso.do?numConstancia=20-4-10702212"]
[1081799915,"PAULA ANDREA PIMIENTA ANDRADES",1729,"1729-2020","AUXILIAR DE ENFERMERIA URGENCIAS","01 de Abril de 2020","  30 de Abril de  2020",1653600,1653600,"WILFRAN JIMENEZ DE LA PEÑA","COORD CENTRO DE SALUD",2005,2926,{"$f":"VLOOKUP(A409:A823,'[2]ABRIL 2020'!$B$3:$M$584,12,0)","v":"2020-04-22"},"https://www.contratos.gov.co/consultas/detalleProceso.do?numConstancia=20-4-10702215"]
[72231273,"PEDRO RAFAEL PEREZ HERNANDEZ",1730,"1730-2020","AGENTE CALL CENTER","01 de Abril de 2020","  30 de Abril de  2020",1378000,1378000,"WILFRAN JIMENEZ DE LA PEÑA","COORD CENTRO DE SALUD",2006,2927,{"$f":"VLOOKUP(A410:A824,'[2]ABRIL 2020'!$B$3:$M$584,12,0)","v":"2020-04-22"},"https://www.contratos.gov.co/consultas/detalleProceso.do?numConstancia=20-4-10702219"]
[15074329,"RAFAEL ANTONIO RICO",1731,"1731-2020","ORIENTADOR","01 de Abril de 2020","  30 de Abril de  2020",1524000,1524000,"WILFRAN JIMENEZ DE LA PEÑA","COORD CENTRO DE SALUD",2007,2928,{"$f":"VLOOKUP(A411:A825,'[2]ABRIL 2020'!$B$3:$M$584,12,0)","v":"2020-04-22"},"https://www.contratos.gov.co/consultas/detalleProceso.do?numConstancia=20-4-10702221"]
[9191876,"RAFAEL MOLINA CASTILLO",1732,"1732-2020","AUXILIAR DE FACTURACION URGENCIA","01 de Abril de 2020","  30 de Abril de  2020",1680000,1680000,"SANDRA SANMARTIN","COORD CENTRO DE SALUD",2008,2929,{"$f":"VLOOKUP(A412:A826,'[2]ABRIL 2020'!$B$3:$M$584,12,0)","v":"2020-04-22"},"https://www.contratos.gov.co/consultas/detalleProceso.do?numConstancia=20-4-10702223"]
[72147873,"RAMIRO ANTONIO SALAS LARA ",1733,"1733-2020","REGENTE DE FARMACIA ","01 de Abril de 2020","  30 de Abril de  2020",2280000,2280000,"BETTY PERTUZ ","SUBGERENCIA CIENTIFICA",2009,2930,{"$f":"VLOOKUP(A413:A827,'[2]ABRIL 2020'!$B$3:$M$584,12,0)","v":"2020-04-22"},"https://www.contratos.gov.co/consultas/detalleProceso.do?numConstancia=20-4-10702226"]
[32613493,"ROSA ESCOBAR FANDIÑO",1734,"1734-2020","AUXILIAR DE ENFERMERIA URGENCIAS","01 de Abril de 2020","  30 de Abril de  2020",1653600,1653600,"WILFRAN JIMENEZ DE LA PEÑA","COORD CENTRO DE SALUD",2010,2931,{"$f":"VLOOKUP(A414:A828,'[2]ABRIL 2020'!$B$3:$M$584,12,0)","v":"2020-04-22"},"https://www.contratos.gov.co/consultas/detalleProceso.do?numConstancia=20-4-10702227"]
[1042435408,"SANDY PATRICIA BRUJES GUERRERO",1735,"1735-2020","AGENTE CALL CENTER","01 de Abril de 2020","  30 de Abril de  2020",1378000,1378000,"WILFRAN JIMENEZ DE LA PEÑA","COORD CENTRO DE SALUD",2011,2932,{"$f":"VLOOKUP(A415:A829,'[2]ABRIL 2020'!$B$3:$M$584,12,0)","v":"2020-04-22"},"https://www.contratos.gov.co/consultas/detalleProceso.do?numConstancia=20-4-10702229"]
[1045724863,"SERGIO ANDRES SALAS SALAS  ",1736,"1736-2020","MEDICO DE URGENCIA","01 de Abril de 2020","  30 de Abril de  2020",3072000,3072000,"WILFRAN JIMENEZ DE LA PEÑA","COORD CENTRO DE SALUD",2012,2933,{"$f":"VLOOKUP(A416:A830,'[2]ABRIL 2020'!$B$3:$M$584,12,0)","v":"2020-04-22"},"https://www.contratos.gov.co/consultas/detalleProceso.do?numConstancia=20-4-10702230"]
[1129577912,"SOLANGI PAOLA FONTALVO JIMENEZ",1737,"1737-2020","AGENTE CALL CENTER","01 de Abril de 2020","  30 de Abril de  2020",4000000,4000000,"WILFRAN JIMENEZ DE LA PEÑA","COORD CENTRO DE SALUD",2013,2934,{"$f":"VLOOKUP(A417:A831,'[2]ABRIL 2020'!$B$3:$M$584,12,0)","v":"2020-04-22"},"https://www.contratos.gov.co/consultas/detalleProceso.do?numConstancia=20-4-10702233"]
[1143143512,"TAIDETH ALEXANDRA BRACHO DAVILA",1738,"1738-2020","AUXILIAR DE ENFERMERIA URGENCIAS","01 de Abril de 2020","  30 de Abril de  2020",1653600,1653600,"WILFRAN JIMENEZ DE LA PEÑA","COORD CENTRO DE SALUD",2014,2935,{"$f":"VLOOKUP(A418:A832,'[2]ABRIL 2020'!$B$3:$M$584,12,0)","v":"2020-04-22"},"https://www.contratos.gov.co/consultas/detalleProceso.do?numConstancia=20-4-10702237"]
[1042447004,"TATIANA MARGARITA NIEBLES PADILLA",1739,"1739-2020","MEDICO DE URGENCIA","01 de Abril de 2020","  30 de Abril de  2020",3072000,3072000,"WILFRAN JIMENEZ DE LA PEÑA","COORD CENTRO DE SALUD",2015,2936,{"$f":"VLOOKUP(A419:A833,'[2]ABRIL 2020'!$B$3:$M$584,12,0)","v":"2020-04-22"},"https://www.contratos.gov.co/consultas/detalleProceso.do?numConstancia=20-4-10702238"]
[1045692313,"VANESSA CASSIANI PEREZ",1740,"1740-2020","DIGITADORA 4725","01 de Abril de 2020","  30 de Abril de  2020",1653600,1653600,"NILSA ARIZA MARQUEZ","COORDINADOR PYP",2016,2937,{"$f":"VLOOKUP(A420:A834,'[2]ABRIL 2020'!$B$3:$M$584,12,0)","v":"2020-04-22"},"https://www.contratos.gov.co/consultas/detalleProceso.do?numConstancia=20-4-10702240"]
[52703063,"XIOMARA  BELLO ORTEGA",1741,"1741-2020","AUXILIAR DE ENFERMERIA URGENCIAS","01 de Abril de 2020","  30 de Abril de  2020",1653600,1653600,"WILFRAN JIMENEZ DE LA PEÑA","COORD CENTRO DE SALUD",2017,2938,{"$f":"VLOOKUP(A421:A835,'[2]ABRIL 2020'!$B$3:$M$584,12,0)","v":"2020-04-22"},"https://www.contratos.gov.co/consultas/detalleProceso.do?numConstancia=20-4-10702241"]
[32816824,"YANETH CARO VITOLA",1742,"1742-2020","AUXILIAR DE ENFERMERIA P Y P ","01 de Abril de 2020","  30 de Abril de  2020",1166000,1166000,"WILFRAN JIMENEZ DE LA PEÑA","COORD CENTRO DE SALUD",2018,2939,{"$f":"VLOOKUP(A422:A836,'[2]ABRIL 2020'!$B$3:$M$584,12,0)","v":"2020-04-22"},"https://www.contratos.gov.co/consultas/detalleProceso.do?numConstancia=20-4-10702242"]
[44159754,"YANIRE CARLINA CASTRO ESCALANTE",1743,"1743-2020","GINECOLOGO ","01 de Abril de 2020","  30 de Abril de  2020",9600000,9600000,"NILSA ARIZA MARQUEZ","COORDINADOR PYP",2019,2940,{"$f":"VLOOKUP(A423:A837,'[2]ABRIL 2020'!$B$3:$M$584,12,0)","v":"2020-04-22"},"https://www.contratos.gov.co/consultas/detalleProceso.do?numConstancia=20-4-10702246"]
[1129516318,"YEIMIS PATRICIA GONZALEZ ARAGON ",1744,"1744-2020","AGENTE CALL CENTER","01 de Abril de 2020","  30 de Abril de  2020",1378000,1378000,"WILFRAN JIMENEZ DE LA PEÑA","COORD CENTRO DE SALUD",2020,2941,{"$f":"VLOOKUP(A424:A838,'[2]ABRIL 2020'!$B$3:$M$584,12,0)","v":"2020-04-22"},"https://www.contratos.gov.co/consultas/detalleProceso.do?numConstancia=20-4-10702247"]
[1143452684,"YEISON MISAEL DUARTE CALDERON",1745,"1745-2020","CONDUCTOR DE AMBULANCIA ","01 de Abril de 2020","  30 de Abril de  2020",2160000,2160000,"BETTY PERTUZ ","SUBGERENCIA CIENTIFICA",2021,2942,{"$f":"VLOOKUP(A425:A839,'[2]ABRIL 2020'!$B$3:$M$584,12,0)","v":"2020-04-22"},"https://www.contratos.gov.co/consultas/detalleProceso.do?numConstancia=20-4-10702250"]
[55246222,"YESIKA ANGULO MADRID",1746,"1746-2020","FISIOTERAPEUTA ","01 de Abril de 2020","  30 de Abril de  2020",2280000,2280000,"WILFRAN JIMENEZ DE LA PEÑA","COORD CENTRO DE SALUD",2022,2943,{"$f":"VLOOKUP(A426:A840,'[2]ABRIL 2020'!$B$3:$M$584,12,0)","v":"2020-04-22"},{"$error":"#N/A"}]
[1140864808,"YONELIS MARGARITA VILLALVA LUQUE",1747,"1747-2020","AGENTE CALL CENTER","01 de Abril de 2020","  30 de Abril de  2020",1378000,1378000,"SANDRA SANMARTIN","SUBGENTE ADMINISTRATIVO",2023,2944,{"$f":"VLOOKUP(A427:A841,'[2]ABRIL 2020'!$B$3:$M$584,12,0)","v":"2020-04-22"},"https://www.contratos.gov.co/consultas/detalleProceso.do?numConstancia=20-4-10702253"]
[1042436116,"YURANIS SOTO OSORIO",1748,"1748-2020","AUXILIAR DE ENFERMERIA URGENCIAS","01 de Abril de 2020","  30 de Abril de  2020",1653600,1653600,"WILFRAN JIMENEZ DE LA PEÑA","COORD CENTRO DE SALUD",2024,2945,{"$f":"VLOOKUP(A428:A842,'[2]ABRIL 2020'!$B$3:$M$584,12,0)","v":"2020-04-22"},"https://www.contratos.gov.co/consultas/detalleProceso.do?numConstancia=20-4-10702254"]
[1045226744,"YURISABEL CERVANTES VESGA ",1749,"1749-2020","MEDICO DE URGENCIA","01 de Abril de 2020","  30 de Abril de  2020",3072000,3072000,"WILFRAN JIMENEZ DE LA PEÑA","COORD CENTRO DE SALUD",2025,2946,{"$f":"VLOOKUP(A429:A843,'[2]ABRIL 2020'!$B$3:$M$584,12,0)","v":"2020-04-22"},"https://www.contratos.gov.co/consultas/detalleProceso.do?numConstancia=20-4-10702256"]
[9143862,"JOSE LUIS LEAL CORREA",1750,"1750-2020","AUXILIAR DE FARMACIA ","01 de Abril de 2020","  30 de Abril de  2020",1270000,1270000,"BETTY PERTUZ ","SUBGERENCIA CIENTIFICA",2026,2947,{"$f":"VLOOKUP(A430:A844,'[2]ABRIL 2020'!$B$3:$M$584,12,0)","v":"2020-04-22"},"https://www.contratos.gov.co/consultas/detalleProceso.do?numConstancia=20-4-10702259"]
[72303740,"ANDRES JOSE NAVARRO CARBONELL",1751,"1751-2020","AUXILIAR  ADMINISTRATIVO  DE FARMACIA ","01 de Abril de 2020","  30 de Abril de  2020",1900000,1900000,"BETTY PERTUZ ","SUBGERENCIA CIENTIFICA",2027,2948,{"$f":"VLOOKUP(A431:A845,'[2]ABRIL 2020'!$B$3:$M$584,12,0)","v":"2020-04-22"},"https://www.contratos.gov.co/consultas/detalleProceso.do?numConstancia=20-4-10702263"]
[9132998,"GABRIEL ARIAS RAMIREZ",1752,"1752-2020","QUIMICO FARMACEUTICO","01 de Abril de 2020","  30 de Abril de  2020",3600000,3600000,"BETTY PERTUZ ","SUBGERENCIA CIENTIFICA",2028,2949,{"$f":"VLOOKUP(A432:A846,'[2]ABRIL 2020'!$B$3:$M$584,12,0)","v":"2020-04-22"},"https://www.contratos.gov.co/consultas/detalleProceso.do?numConstancia=20-4-10702265"]
[22515180,"YEIMY JHOANA SALTARIN ACUÑA",1753,"1753-2020","AUXILIAR  ADMINISTRATIVO  DE FARMACIA ","01 de Abril de 2020","  30 de Abril de  2020",1900000,1900000,"BETTY PERTUZ ","SUBGERENCIA CIENTIFICA",2029,2950,{"$f":"VLOOKUP(A433:A847,'[2]ABRIL 2020'!$B$3:$M$584,12,0)","v":"2020-04-22"},"https://www.contratos.gov.co/consultas/detalleProceso.do?numConstancia=20-4-10702266"]
[55225095,"YURAIMA GUTIERREZ HERNANDEZ",1754,"1754-2020","REGENTE DE FARMACIA ","01 de Abril de 2020","  30 de Abril de  2020",2280000,2280000,"BETTY PERTUZ ","SUBGERENCIA CIENTIFICA",2030,2951,{"$f":"VLOOKUP(A434:A848,'[2]ABRIL 2020'!$B$3:$M$584,12,0)","v":"2020-04-22"},"https://www.contratos.gov.co/consultas/detalleProceso.do?numConstancia=20-4-10702267"]
[37577926,"ALCIRA CAMPO ALCOZER",1755,"1755-2020","AUXILIAR SERVICIOS GENERALES","01 de Abril de 2020","  30 de Abril de  2020",1215000,1215000,"SANDRA SANMARTIN","SUBGENTE ADMINISTRATIVO",2031,2952,{"$f":"VLOOKUP(A435:A849,'[2]ABRIL 2020'!$B$3:$M$584,12,0)","v":"2020-04-22"},"https://www.contratos.gov.co/consultas/detalleProceso.do?numConstancia=20-4-10702268"]
[1045700355,"EDUARDO LUIS PAUTH HERNANDEZ",1756,"1756-2020","MEDICO CONSULTA EXTERNA ","01 de Abril de 2020","  30 de Abril de  2020",5600000,5600000,"BETTY PERTUZ ","SUBGERENCIA CIENTIFICA",2032,2953,{"$f":"VLOOKUP(A436:A850,'[2]ABRIL 2020'!$B$3:$M$584,12,0)","v":"2020-04-22"},"https://www.contratos.gov.co/consultas/detalleProceso.do?numConstancia=20-4-10702271"]
[22694020,"LEDIS DEL SOCORRO BACA ORTIZ",1757,"1757-2020","AUXILIAR DE ENFERMERIA","01 de Abril de 2020","  30 de Abril de  2020",1166000,1166000,"BETTY PERTUZ ","SUBGERENCIA CIENTIFICA",2033,2954,{"$f":"VLOOKUP(A437:A851,'[2]ABRIL 2020'!$B$3:$M$584,12,0)","v":"2020-04-22"},"https://www.contratos.gov.co/consultas/detalleProceso.do?numConstancia=20-4-10702272"]
[7469739,"LEOVALDO MENDOZA PAREJO",1758,"1758-2020","ORIENTADOR","01 de Abril de 2020","  30 de Abril de  2020",1524000,1524000,"SANDRA SANMARTIN","SUBGENTE ADMINISTRATIVO",2034,2955,{"$f":"VLOOKUP(A438:A852,'[2]ABRIL 2020'!$B$3:$M$584,12,0)","v":"2020-04-22"},"https://www.contratos.gov.co/consultas/detalleProceso.do?numConstancia=20-4-10702275"]
[7438585,"NESTOR CHARRIS MARIN",1759,"1759-2020","ORIENTADOR","01 de Abril de 2020","  30 de Abril de  2020",1270000,1270000,"SANDRA SANMARTIN","SUBGENTE ADMINISTRATIVO",2035,2956,{"$f":"VLOOKUP(A439:A853,'[2]ABRIL 2020'!$B$3:$M$584,12,0)","v":"2020-04-22"},"https://www.contratos.gov.co/consultas/detalleProceso.do?numConstancia=20-4-10702276"]
[1140857232,"JESUS DAVID CANTILLO GUERRERO",1760,"1760-2020","ABOGADO EXTERO","01 de Abril de 2020","  30 de Abril de  2020",5800000,5800000,"ORNELLA FIORENTINO","JEFE JURIDICA",2102,3023,null,"https://www.contratos.gov.co/consultas/detalleProceso.do?numConstancia=20-4-10726662"]
[1042347383,"WILFRIDO JUNIOR LLORENTE CERVANTES",1761,"1761-2020","AUXLIAR CONTABLE","01 de Abril de 2020","  30 de Abril de  2020",3000000,3000000,"ALFONSO  NICOLAS OQUENDO","DIRECTOR FINANCIERO",2104,3028]
[1140864973,"SERGIO JAVIER MARTINEZ GUERRA",1762,"1762-2020","ASESOR DE GERENCIA","01 de Abril de 2020","  30 de Abril de  2020",5000000,5000000,"ROSA MADERA","GERENCIA",2110,3032,null,"https://www.contratos.gov.co/consultas/detalleProceso.do?numConstancia=20-4-10716193"]
[1085110564,"LISBETH JOHANA VIVIC GARCIA",1763,"1763-2020","AUXILIAR DE ODONTOLOGIA","01 de Abril de 2020","  30 de Abril de  2020",{"$f":"1166000+621867","v":1787867},{"$f":"+H443*1","v":1787867},"WILFRAN JIMENEZ DE LA PEÑA","COORD CENTRO DE SALUD",2112,3043]
[19535725,"RAFAEL  ALFONSO PALACIO BLANCO",1764,"1764-2020","MEDICO DE URGENCIA","01 de Abril de 2020","  30 de Abril de  2020",3072000,3072000,"wILFRAN JIMENEZ DE LA PEÑAc","COORD CENTRO DE SALUD",2113,3044,null,"https://www.contratos.gov.co/consultas/detalleProceso.do?numConstancia=20-4-10716211"]
[72132608,"MARCO AURELIO CASTRO CAICEDO",1765,"1765-2020","AUXILIAR DE FACTURACION URGENCIA","01 de Abril de 2020","  30 de Abril de  2020",1400000,1400000,"wILFRAN JIMENEZ DE LA PEÑAc","COORD CENTRO DE SALUD",2114,3045]
[55245774,"KARELY SUGEY SANDOVAL HERRERA","1766-A","1766-A-2020 ","ASESOR FINANCIERO","01 de Abril de 2020","  30 de Abril de  2020",8000000,8000000,"ALFONSO NICOLASOQUENDO","DIRECTOR FINANCIERO",2105,2509,null,"https://www.contratos.gov.co/consultas/detalleProceso.do?numConstancia=20-4-10726732"]

{"sheet":"PIC ABRIL ","index":1,"n_rows":64,"n_cols":15,"rows_kept":64,"cut":false,"hidden":false,"merged":[[0,0,1,3]]}
["LISTADO DE CONTRATACION  PIC -MES DE ABRIL 2020"]
[]
["CEDULA","NOMBRE Y APELLIDO","#OPS","FECHA INICIO","FECHA TERMINACION ","OBJETO DEL CONTRATO","VALOR MENSUAL","VALOR TOTAL ","VALOR LETRAS total","SUPERVISOR ","CARGO","CDP","RP","FECHA  SECOP ","LINK SECOOP"]
[55236945,"ADRIANA PATRICIA MARQUEZ CANTILLO","0070-2020-PIC ","01 de Abril de 2020","30 de Abril de  2020","VACUNADORA",1400000,{"$f":"G4*1","v":1400000},{"$f":"[1]!PesosMN(H4)","v":{"$error":"#NAME?"}},"NILSA ARIZA MARQUEZ","COORDINADOR P Y P",2038,2959,"2020-04-20",{"$f":"VLOOKUP(A4:A64,'[3]PIC ABRIL '!$B$4:$AM$70,38,0)","v":"https://www.contratos.gov.co/consultas/detalleProceso.do?numConstancia=20-4-10716385"}]
[22643912,"ANGELA ROSA MORALES SANMARTIN","0071-2020-PIC ","01 de Abril de 2020","30 de Abril de  2020","VACUNADORA",1400000,1400000,{"$error":"#NAME?"},"NILSA ARIZA MARQUEZ","COORDINADOR P Y P",2039,2960,"2020-04-20",{"$f":"VLOOKUP(A5:A64,'[3]PIC ABRIL '!$B$4:$AM$70,38,0)","v":"https://www.contratos.gov.co/consultas/detalleProceso.do?numConstancia=20-4-10716395"}]
[32826839,"BEATRIZ ISABEL SANMARTIN ESCORCIA","0072-2020-PIC ","01 de Abril de 2020","30 de Abril de  2020","VACUNADORA",1400000,1400000,{"$error":"#NAME?"},"NILSA ARIZA MARQUEZ","COORDINADOR P Y P",2040,2961,"2020-04-20",{"$f":"VLOOKUP(A6:A64,'[3]PIC ABRIL '!$B$4:$AM$70,38,0)","v":"https://www.contratos.gov.co/consultas/detalleProceso.do?numConstancia=20-4-10716401"}]
[1047337919,"CANDY ISABEL ROJAS SARMIENTO","0073-2020-PIC ","01 de Abril de 2020","30 de Abril de  2020","APOYO A LA GESTION DIMENSIÓN_DE_SALUD_AMBIENTAL: Zoonosis",1400000,1400000,{"$error":"#NAME?"},"NILSA ARIZA MARQUEZ","COORDINADOR PYP",2041,2962,"2020-04-20",{"$f":"VLOOKUP(A7:A64,'[3]PIC ABRIL '!$B$4:$AM$70,38,0)","v":"https://www.contratos.gov.co/consultas/detalleProceso.do?numConstancia=20-4-10716406"}]
[32744712,"CARMEN MARIA CORONADO ESCORCIA","0074-2020-PIC ","01 de Abril de 2020","30 de Abril de  2020","ENFERMERA JEFE -PIC",2500000,2500000,{"$error":"#NAME?"},"BETTY PERTUZ","SUBGERENTE CIENTIFICO",2042,2963,"2020-04-20",{"$f":"VLOOKUP(A8:A64,'[3]PIC ABRIL '!$B$4:$AM$70,38,0)","v":"https://www.contratos.gov.co/consultas/detalleProceso.do?numConstancia=20-4-10716409"}]
[32876278,"CLAUDIA MARTINEZ RIVAS ","0075-2020-PIC ","01 de Abril de 2020","30 de Abril de  2020","AGENTE EN ATENCION PRIMARIA EN SALUD",1400000,1400000,{"$error":"#NAME?"},"NILSA ARIZA MARQUEZ","COORDINADOR PYP",2043,2964,"2020-04-20",{"$f":"VLOOKUP(A9:A64,'[3]PIC ABRIL '!$B$4:$AM$70,38,0)","v":"https://www.contratos.gov.co/consultas/detalleProceso.do?numConstancia=20-4-10716413"}]
[8784783,"DAIRO MANRIQUEZ MORALES BOVEA","0076-2020-PIC ","01 de Abril de 2020","30 de Abril de  2020","APOYO A LA GESTION DIMENSIÓN_DE_SALUD_AMBIENTAL: Zoonosis",1400000,1400000,{"$error":"#NAME?"},"NILSA ARIZA MARQUEZ","COORDINADOR PYP",2044,2965,"2020-04-20",{"$f":"VLOOKUP(A10:A64,'[3]PIC ABRIL '!$B$4:$AM$70,38,0)","v":"https://www.contratos.gov.co/consultas/detalleProceso.do?numConstancia=20-4-10716417"}]
[1046814365,"DESIRETH DEL CARMEN DE LEON ATENCIA","0077-2020-PIC ","01 de Abril de 2020","30 de Abril de  2020","VACUNADORA",1400000,1400000,{"$error":"#NAME?"},"NILSA ARIZA MARQUEZ","COORDINADOR P Y P",2045,2966,"2020-04-20",{"$f":"VLOOKUP(A11:A64,'[3]PIC ABRIL '!$B$4:$AM$70,38,0)","v":"https://www.contratos.gov.co/consultas/detalleProceso.do?numConstancia=20-4-10716421"}]
[32824393,"ELIZABETH RODRIGUEZ BARRIOS","0078-2020-PIC ","01 de Abril de 2020","30 de Abril de  2020","VACUNADORA",1400000,1400000,{"$error":"#NAME?"},"NILSA ARIZA MARQUEZ","COORDINADOR P Y P",2046,2967,"2020-04-20",{"$f":"VLOOKUP(A12:A64,'[3]PIC ABRIL '!$B$4:$AM$70,38,0)","v":"https://www.contratos.gov.co/consultas/detalleProceso.do?numConstancia=20-4-10716425"}]
[22467133,"ESMERALDA COTE BORNACELY ","0079-2020-PIC ","01 de Abril de 2020","30 de Abril de  2020","VACUNADORA",1400000,1400000,{"$error":"#NAME?"},"NILSA ARIZA MARQUEZ","COORDINADOR P Y P",2047,2968,"2020-04-20",{"$f":"VLOOKUP(A13:A64,'[3]PIC ABRIL '!$B$4:$AM$70,38,0)","v":"https://www.contratos.gov.co/consultas/detalleProceso.do?numConstancia=20-4-10716429"}]
[22446125,"GENOVEVA MARIA LLANES JEREZ","0080-2020-PIC ","01 de Abril de 2020","30 de Abril de  2020","VACUNADORA",1400000,1400000,{"$error":"#NAME?"},"NILSA ARIZA MARQUEZ","COORDINADOR P Y P",2048,2969,"2020-04-20",{"$f":"VLOOKUP(A14:A64,'[3]PIC ABRIL '!$B$4:$AM$70,38,0)","v":"https://www.contratos.gov.co/consultas/detalleProceso.do?numConstancia=20-4-10716431"}]
[49775980,"GLORIA HERNANDEZ CENTENO","0081-2020-PIC ","01 de Abril de 2020","30 de Abril de  2020","VACUNADORA",1400000,1400000,{"$error":"#NAME?"},"NILSA ARIZA MARQUEZ","COORDINADOR P Y P",2049,2970,"2020-04-20",{"$f":"VLOOKUP(A15:A64,'[3]PIC ABRIL '!$B$4:$AM$70,38,0)","v":"https://www.contratos.gov.co/consultas/detalleProceso.do?numConstancia=20-4-10716436"}]
[8767993,"HAROLD MANUEL CABARCAS GONZALEZ","0082-2020-PIC ","01 de Abril de 2020","30 de Abril de  2020","VACUNADORA",1400000,1400000,{"$error":"#NAME?"},"NILSA ARIZA MARQUEZ","COORDINADOR P Y P",2050,2971,"2020-04-20",{"$f":"VLOOKUP(A16:A64,'[3]PIC ABRIL '!$B$4:$AM$70,38,0)","v":"https://www.contratos.gov.co/consultas/detalleProceso.do?numConstancia=20-4-10716440"}]
[64578458,"ILDA DEL PILAR PACHECO AGUIRRE","0083-2020-PIC ","01 de Abril de 2020","30 de Abril de  2020","VACUNADORA ",1400000,1400000,{"$error":"#NAME?"},"NILSA ARIZA MARQUEZ","COORDINADOR P Y P",2051,2972,"2020-04-20",{"$f":"VLOOKUP(A17:A64,'[3]PIC ABRIL '!$B$4:$AM$70,38,0)","v":"https://www.contratos.gov.co/consultas/detalleProceso.do?numConstancia=20-4-10716444"}]
[32619158,"ISABEL HERRERA PACHECO","0084-2020-PIC ","01 de Abril de 2020","30 de Abril de  2020","VACUNADORA- CUARTO FRIO",1600000,1600000,{"$error":"#NAME?"},"NILSA ARIZA MARQUEZ","COORDINADOR P Y P",2052,2973,"2020-04-20",{"$f":"VLOOKUP(A18:A64,'[3]PIC ABRIL '!$B$4:$AM$70,38,0)","v":"https://www.contratos.gov.co/consultas/detalleProceso.do?numConstancia=20-4-10716449"}]
[32816898,"ISABEL OSORIO BARRIOS","0085-2020-PIC ","01 de Abril de 2020","30 de Abril de  2020","VACUNADORA",1400000,1400000,{"$error":"#NAME?"},"NILSA ARIZA MARQUEZ","COORDINADOR P Y P",2053,2974,"2020-04-20",{"$f":"VLOOKUP(A19:A64,'[3]PIC ABRIL '!$B$4:$AM$70,38,0)","v":"https://www.contratos.gov.co/consultas/detalleProceso.do?numConstancia=20-4-10716453"}]
[1045675584,"ISOREIDA PEREZ PALMEIRA","0086-2020-PIC ","01 de Abril de 2020","30 de Abril de  2020","ENFERMERA JEFE APS -PIC",2500000,2500000,{"$error":"#NAME?"},"BETTY PERTUZ","SUBGERENTE CIENTIFICO",2054,2975,"2020-04-20",{"$f":"VLOOKUP(A20:A64,'[3]PIC ABRIL '!$B$4:$AM$70,38,0)","v":"https://www.contratos.gov.co/consultas/detalleProceso.do?numConstancia=20-4-10716454"}]
[22431886,"IVIS GONZALEZ AYARZA","0087-2020-PIC ","01 de Abril de 2020","30 de Abril de  2020","VACUNADORA",1400000,1400000,{"$error":"#NAME?"},"NILSA ARIZA MARQUEZ","COORDINADOR P Y P",2055,2976,"2020-04-20",{"$f":"VLOOKUP(A21:A64,'[3]PIC ABRIL '!$B$4:$AM$70,38,0)","v":"https://www.contratos.gov.co/consultas/detalleProceso.do?numConstancia=20-4-10716459"}]
[3779189,"JAIME ENRIQUE MARQUEZ VILLAFAÑE","0088-2020-PIC ","01 de Abril de 2020","30 de Abril de  2020","APOYO A LA GESTION DIMENSIÓN_DE_SALUD_AMBIENTAL: Zoonosis",1400000,1400000,{"$error":"#NAME?"},"NILSA ARIZA MARQUEZ","COORDINADOR PYP",2056,2977,"2020-04-20",{"$f":"VLOOKUP(A22:A64,'[3]PIC ABRIL '!$B$4:$AM$70,38,0)","v":"https://www.contratos.gov.co/consultas/detalleProceso.do?numConstancia=20-4-10716461"}]
[32829868,"JUDITH ISABEL ARCON MEDINA","0089-2020-PIC ","01 de Abril de 2020","30 de Abril de  2020","APOYO A LA GESTION DIMENSIÓN_DE_SALUD_AMBIENTAL: Zoonosis",1400000,1400000,{"$error":"#NAME?"},"NILSA ARIZA MARQUEZ","COORDINADOR PYP",2057,2978,"2020-04-20",{"$f":"VLOOKUP(A23:A64,'[3]PIC ABRIL '!$B$4:$AM$70,38,0)","v":"https://www.contratos.gov.co/consultas/detalleProceso.do?numConstancia=20-4-10716465"}]
[32865375,"LEDIA DEL CARMEN MARTINEZ DE MOYA","0090-2020-PIC ","01 de Abril de 2020","30 de Abril de  2020","VACUNADORA",1400000,1400000,{"$error":"#NAME?"},"NILSA ARIZA MARQUEZ","COORDINADOR P Y P",2058,2979,"2020-04-20",{"$f":"VLOOKUP(A24:A64,'[3]PIC ABRIL '!$B$4:$AM$70,38,0)","v":"https://www.contratos.gov.co/consultas/detalleProceso.do?numConstancia=20-4-10716470"}]
[44159904,"LIZLEIDYS OSORIO DOMINGUEZ","0091-2020-PIC ","01 de Abril de 2020","30 de Abril de  2020","ENFERMERA-JEFE TERRENO PAI",2120000,2120000,{"$error":"#NAME?"},"BETTY PERTUZ","SUBGERENTE CIENTIFICO",2059,2980,"2020-04-20",{"$f":"VLOOKUP(A25:A64,'[3]PIC ABRIL '!$B$4:$AM$70,38,0)","v":"https://www.contratos.gov.co/consultas/detalleProceso.do?numConstancia=20-4-10716475"}]
[1046698080,"LUIS ALFREDO CANTILLO CABALLERO","0092-2020-PIC ","01 de Abril de 2020","30 de Abril de  2020","APOYO A LA GESTION DIMENSIÓN_DE_SALUD_AMBIENTAL: Zoonosis",1400000,1400000,{"$error":"#NAME?"},"NILSA ARIZA MARQUEZ","COORDINADOR PYP",2060,2981,"2020-04-20",{"$f":"VLOOKUP(A26:A64,'[3]PIC ABRIL '!$B$4:$AM$70,38,0)","v":"https://www.contratos.gov.co/consultas/detalleProceso.do?numConstancia=20-4-10716479"}]
[1043185696,"MANUEL ZULBARAN ","0093-2020-PIC ","01 de Abril de 2020","30 de Abril de  2020","APOYO A LA GESTION DIMENSIÓN_DE_SALUD_AMBIENTAL: Zoonosis",1400000,1400000,{"$error":"#NAME?"},"NILSA ARIZA MARQUEZ","COORDINADOR PYP",2061,2982,"2020-04-20",{"$f":"VLOOKUP(A27:A64,'[3]PIC ABRIL '!$B$4:$AM$70,38,0)","v":"https://www.contratos.gov.co/consultas/detalleProceso.do?numConstancia=20-4-10716485"}]
[30895455,"MARIA CONCEPCION ESPRIELLA BUELVAS","0094-2020-PIC ","01 de Abril de 2020","30 de Abril de  2020","APOYO A LA GESTION DIMENSIÓN_DE_SALUD_AMBIENTAL: Zoonosis",1400000,1400000,{"$error":"#NAME?"},"NILSA ARIZA MARQUEZ","COORDINADOR PYP",2062,2983,"2020-04-20",{"$f":"VLOOKUP(A28:A64,'[3]PIC ABRIL '!$B$4:$AM$70,38,0)","v":"https://www.contratos.gov.co/consultas/detalleProceso.do?numConstancia=20-4-10716489"}]
[22430756,"MARITZA MARINO OSORIO","0095-2020-PIC ","01 de Abril de 2020","30 de Abril de  2020","VACUNADORA ",1400000,1400000,{"$error":"#NAME?"},"NILSA ARIZA MARQUEZ","COORDINADOR P Y P",2063,2984,"2020-04-20",{"$f":"VLOOKUP(A29:A64,'[3]PIC ABRIL '!$B$4:$AM$70,38,0)","v":"https://www.contratos.gov.co/consultas/detalleProceso.do?numConstancia=20-4-10716498"}]
[1143136225,"MARTA CECILIA MARIN ZAPATA","0096-2020-PIC ","01 de Abril de 2020","30 de Abril de  2020","AGENTE EN ATENCION PRIMARIA EN SALUD",1400000,1400000,{"$error":"#NAME?"},"NILSA ARIZA MARQUEZ","COORDINADOR PYP",2064,2985,"2020-04-20",{"$f":"VLOOKUP(A30:A64,'[3]PIC ABRIL '!$B$4:$AM$70,38,0)","v":"https://www.contratos.gov.co/consultas/detalleProceso.do?numConstancia=20-4-10716503"}]
[22506781,"MILDRED TATIANA GOENAGA ALVARADO","0097-2020-PIC ","01 de Abril de 2020","30 de Abril de  2020","ENFERMERA-JEFE TERRENO PAI",2120000,2120000,{"$error":"#NAME?"},"BETTY PERTUZ","SUBGERENTE CIENTIFICO",2065,2986,"2020-04-20",{"$f":"VLOOKUP(A31:A64,'[3]PIC ABRIL '!$B$4:$AM$70,38,0)","v":"https://www.contratos.gov.co/consultas/detalleProceso.do?numConstancia=20-4-10716506"}]
[32829531,"MILENA DONADO OCHOA","0098-2020-PIC ","01 de Abril de 2020","30 de Abril de  2020","APOYO COORDINACION PIC",4000000,4000000,{"$error":"#NAME?"},"BETTY PERTUZ","SUBGERENTE CIENTIFICO",2066,2987,"2020-04-20",{"$f":"VLOOKUP(A32:A64,'[3]PIC ABRIL '!$B$4:$AM$70,38,0)","v":"https://www.contratos.gov.co/consultas/detalleProceso.do?numConstancia=20-4-10716510"}]
[32812585,"NESLIE OSORIO PARODIS","0099-2020-PIC ","01 de Abril de 2020","30 de Abril de  2020","VACUNADORA",1400000,1400000,{"$error":"#NAME?"},"NILSA ARIZA MARQUEZ","COORDINADOR P Y P",2067,2988,"2020-04-20",{"$f":"VLOOKUP(A33:A64,'[3]PIC ABRIL '!$B$4:$AM$70,38,0)","v":"https://www.contratos.gov.co/consultas/detalleProceso.do?numConstancia=20-4-10716516"}]
[32863854,"OLGA BARRIOS BACCA","0100-2020-PIC ","01 de Abril de 2020","30 de Abril de  2020","VACUNADORA",1400000,1400000,{"$error":"#NAME?"},"NILSA ARIZA MARQUEZ","COORDINADOR P Y P",2068,2989,"2020-04-20",{"$f":"VLOOKUP(A34:A64,'[3]PIC ABRIL '!$B$4:$AM$70,38,0)","v":"https://www.contratos.gov.co/consultas/detalleProceso.do?numConstancia=20-4-10716518"}]
[22387913,"OMEIRA CECILIA BARRIOS DE ESTREN ","0102-2020-PIC ","01 de Abril de 2020","30 de Abril de  2020","VACUNADORA",1400000,{"$f":"G35*1","v":1400000},{"$f":"[1]!PesosMN(H35)","v":{"$error":"#NAME?"}},"NILSA ARIZA MARQUEZ","COORDINADOR P Y P",2070,2991,"2020-04-20",{"$f":"VLOOKUP(A35:A64,'[3]PIC ABRIL '!$B$4:$AM$70,38,0)","v":"https://www.contratos.gov.co/consultas/detalleProceso.do?numConstancia=20-4-10716526"}]
[32867404,"PATRICIA DEL CARMEN IBAÑEZ OSORIO","0103-2020-PIC ","01 de Abril de 2020","30 de Abril de  2020","AGENTE EN ATENCION PRIMARIA EN SALUD",1400000,1400000,{"$error":"#NAME?"},"NILSA ARIZA MARQUEZ","COORDINADOR PYP",2071,2992,"2020-04-20",{"$f":"VLOOKUP(A36:A64,'[3]PIC ABRIL '!$B$4:$AM$70,38,0)","v":"https://www.contratos.gov.co/consultas/detalleProceso.do?numConstancia=20-4-10716528"}]
[22528921,"ROSARIO DEL CARMEN CAMARGO GOMEZ","0104-2020-PIC ","01 de Abril de 2020","30 de Abril de  2020","VACUNADORA",1400000,1400000,{"$error":"#NAME?"},"NILSA ARIZA MARQUEZ","COORDINADOR P Y P",2072,2993,"2020-04-20",{"$f":"VLOOKUP(A37:A64,'[3]PIC ABRIL '!$B$4:$AM$70,38,0)","v":"https://www.contratos.gov.co/consultas/detalleProceso.do?numConstancia=20-4-10716538"}]
[1143442239,"SAYURIS OCAMPO GARCIA","0105-2020-PIC ","01 de Abril de 2020","30 de Abril de  2020",{"$f":"+F39","v":"VACUNADORA"},1400000,1400000,{"$error":"#NAME?"},"NILSA ARIZA MARQUEZ","COORDINADOR PYP",2073,2994,"2020-04-20",{"$f":"VLOOKUP(A38:A64,'[3]PIC ABRIL '!$B$4:$AM$70,38,0)","v":"https://www.contratos.gov.co/consultas/detalleProceso.do?numConstancia=20-4-10716543"}]
[32684298,"XIOMARA RODRIGUEZ CANTILLO","0106-2020-PIC ","01 de Abril de 2020","30 de Abril de  2020","VACUNADORA",1400000,1400000,{"$error":"#NAME?"},"NILSA ARIZA MARQUEZ","COORDINADOR P Y P",2074,2995,"2020-04-20",{"$f":"VLOOKUP(A39:A64,'[3]PIC ABRIL '!$B$4:$AM$70,38,0)","v":"https://www.contratos.gov.co/consultas/detalleProceso.do?numConstancia=20-4-10716549"}]
[32820220,"YARLENE DE AVILA DE ALBA","0108-2020-PIC ","01 de Abril de 2020","30 de Abril de  2020","VACUNADORA",1400000,1400000,{"$error":"#NAME?"},"NILSA ARIZA MARQUEZ","COORDINADOR P Y P",2076,2997,"2020-04-20",{"$f":"VLOOKUP(A40:A64,'[3]PIC ABRIL '!$B$4:$AM$70,38,0)","v":"https://www.contratos.gov.co/consultas/detalleProceso.do?numConstancia=20-4-10716553"}]
[60355382,"YEIGNE CONTRERAS BAYONA","0109-2020-PIC ","01 de Abril de 2020","30 de Abril de  2020","VACUNADORA",1400000,1400000,{"$error":"#NAME?"},"NILSA ARIZA MARQUEZ","COORDINADOR P Y P",2077,2998,"2020-04-20",{"$f":"VLOOKUP(A41:A64,'[3]PIC ABRIL '!$B$4:$AM$70,38,0)","v":"https://www.contratos.gov.co/consultas/detalleProceso.do?numConstancia=20-4-10716558"}]
[32811232,"YOLANDA SOFIA MORALES BERMUDEZ","0110-2020-PIC ","01 de Abril de 2020","30 de Abril de  2020","VACUNADORA- CUARTO FRIO",1600000,1600000,{"$error":"#NAME?"},"NILSA ARIZA MARQUEZ","COORDINADOR P Y P",2078,2999,"2020-04-20",{"$f":"VLOOKUP(A42:A64,'[3]PIC ABRIL '!$B$4:$AM$70,38,0)","v":"https://www.contratos.gov.co/consultas/detalleProceso.do?numConstancia=20-4-10716561"}]
[32864918,"YOSMARY MARIA BENAVIDES TORRES ","0111-2020-PIC ","01 de Abril de 2020","30 de Abril de  2020","VACUNADORA",1400000,1400000,{"$error":"#NAME?"},"NILSA ARIZA MARQUEZ","COORDINADOR P Y P",2079,3000,"2020-04-20",{"$f":"VLOOKUP(A43:A64,'[3]PIC ABRIL '!$B$4:$AM$70,38,0)","v":"https://www.contratos.gov.co/consultas/detalleProceso.do?numConstancia=20-4-10716565"}]
[1042428053,"YURANIS DEL CARMEN BLANQUICETT MORENO","0112-2020-PIC ","01 de Abril de 2020","30 de Abril de  2020","VACUNADORA",1400000,1400000,{"$error":"#NAME?"},"NILSA ARIZA MARQUEZ","COORDINADOR P Y P",2080,3001,"2020-04-20",{"$f":"VLOOKUP(A44:A64,'[3]PIC ABRIL '!$B$4:$AM$70,38,0)","v":"https://www.contratos.gov.co/consultas/detalleProceso.do?numConstancia=20-4-10716569"}]
[22645320,"ADRIANA CRISTINA GARCIA CARRILLO","0113-2020-PIC ","01 de Abril de 2020","30 de Abril de  2020","FISIOTERAPEUTA",2500000,2500000,{"$error":"#NAME?"},"BETTY PERTUZ","SUBGERENTE CIENTIFICO",2081,3002,"2020-04-20",{"$f":"VLOOKUP(A45:A64,'[3]PIC ABRIL '!$B$4:$AM$70,38,0)","v":"https://www.contratos.gov.co/consultas/detalleProceso.do?numConstancia=20-4-10716574"}]
[22668428,"ANABELL VELASQUEZ FERNANDEZ ","0114-2020-PIC ","01 de Abril de 2020","30 de Abril de  2020","COORDINACION PIC",5800000,5800000,{"$error":"#NAME?"},"BETTY PERTUZ","SUBGERENTE CIENTIFICO",2082,3003,"2020-04-20",{"$f":"VLOOKUP(A46:A64,'[3]PIC ABRIL '!$B$4:$AM$70,38,0)","v":"https://www.contratos.gov.co/consultas/detalleProceso.do?numConstancia=20-4-10716578"}]
[1065575009,"ANDREA TATIANA SERRANO MOLINA ","0115-2020-PIC ","01 de Abril de 2020","30 de Abril de  2020","PSICOLOGO ",2500000,2500000,{"$error":"#NAME?"},"BETTY PERTUZ","SUBGERENTE CIENTIFICO",2083,3004,"2020-04-20",{"$f":"VLOOKUP(A47:A64,'[3]PIC ABRIL '!$B$4:$AM$70,38,0)","v":"https://www.contratos.gov.co/consultas/detalleProceso.do?numConstancia=20-4-10716580"}]
[1043931882,"AREIDIS MEDINA SANJUAN ","0116-2020-PIC ","01 de Abril de 2020","30 de Abril de  2020","AGENTE EN ATENCION PRIMARIA EN SALUD",1400000,1400000,{"$error":"#NAME?"},"NILSA ARIZA MARQUEZ","COORDINADOR PYP",2084,3005,"2020-04-20",{"$f":"VLOOKUP(A48:A64,'[3]PIC ABRIL '!$B$4:$AM$70,38,0)","v":"https://www.contratos.gov.co/consultas/detalleProceso.do?numConstancia=20-4-10716599"}]
[22543666,"DENNYS MARIELA ARZUZAR GALVIS","0117-2020-PIC ","01 de Abril de 2020","30 de Abril de  2020","AGENTE EN ATENCION PRIMARIA EN SALUD",1400000,1400000,{"$error":"#NAME?"},"NILSA ARIZA MARQUEZ","COORDINADOR PYP",2085,3006,"2020-04-20",{"$f":"VLOOKUP(A49:A64,'[3]PIC ABRIL '!$B$4:$AM$70,38,0)","v":"https://www.contratos.gov.co/consultas/detalleProceso.do?numConstancia=20-4-10716602"}]
[72429089,"EDER DE JESUS SEGURA BRAVO","0118-2020-PIC ","01 de Abril de 2020","30 de Abril de  2020","HIGIENISTA ORAL",1900000,1900000,{"$error":"#NAME?"},"NILSA ARIZA MARQUEZ","COORDINADOR PYP",2086,3007,"2020-04-20",{"$f":"VLOOKUP(A50:A64,'[3]PIC ABRIL '!$B$4:$AM$70,38,0)","v":"https://www.contratos.gov.co/consultas/detalleProceso.do?numConstancia=20-4-10716604"}]
[22617307,"ETILVIA TERESA DONADO CABALLERO ","0119-2020-PIC ","01 de Abril de 2020","30 de Abril de  2020","PSICOLOGO ",2500000,2500000,{"$error":"#NAME?"},"BETTY PERTUZ","SUBGERENTE CIENTIFICO",2087,3008,"2020-04-20",{"$f":"VLOOKUP(A51:A64,'[3]PIC ABRIL '!$B$4:$AM$70,38,0)","v":"https://www.contratos.gov.co/consultas/detalleProceso.do?numConstancia=20-4-10716608"}]
[44160070,"GLORIA ZAPATA REZA","0120-2020-PIC ","01 de Abril de 2020","30 de Abril de  2020","AGENTE EN ATENCION PRIMARIA EN SALUD",1400000,1400000,{"$error":"#NAME?"},"NILSA ARIZA MARQUEZ","COORDINADOR PYP",2088,3009,"2020-04-20",{"$f":"VLOOKUP(A52:A64,'[3]PIC ABRIL '!$B$4:$AM$70,38,0)","v":"https://www.contratos.gov.co/consultas/detalleProceso.do?numConstancia=20-4-10716610"}]
[1042431836,"JULIETH PAOLA HERRERA ORTEGA","0121-2020-PIC ","01 de Abril de 2020","30 de Abril de  2020","PSICOLOGO ",3000000,3000000,{"$error":"#NAME?"},"BETTY PERTUZ","SUBGERENTE CIENTIFICO",2089,3010,"2020-04-20",{"$f":"VLOOKUP(A53:A64,'[3]PIC ABRIL '!$B$4:$AM$70,38,0)","v":"https://www.contratos.gov.co/consultas/detalleProceso.do?numConstancia=20-4-10716614"}]
[44152281,"KAREN JOHANA JIMENEZ RAMOS","0122-2020-PIC ","01 de Abril de 2020","30 de Abril de  2020","APOYO A LA GESTION DIMENSIÓN_DE_SALUD_AMBIENTAL: Zoonosis",1900000,1900000,{"$error":"#NAME?"},"NILSA ARIZA MARQUEZ","COORDINADOR P Y P",2090,3011,"2020-04-20",{"$f":"VLOOKUP(A54:A64,'[3]PIC ABRIL '!$B$4:$AM$70,38,0)","v":"https://www.contratos.gov.co/consultas/detalleProceso.do?numConstancia=20-4-10716617"}]
[1046872703,"LUCELIS DE LA HOZ ESCORCIA","0123-2020-PIC ","01 de Abril de 2020","30 de Abril de  2020","AUXILIAR ADMINISTRATIVO-PIC",1900000,1900000,{"$error":"#NAME?"},"BETTY PERTUZ","SUBGERENTE CIENTIFICO",2091,3012,"2020-04-20",{"$f":"VLOOKUP(A55:A64,'[3]PIC ABRIL '!$B$4:$AM$70,38,0)","v":"https://www.contratos.gov.co/consultas/detalleProceso.do?numConstancia=20-4-10716623"}]
[32872420,"LUZ MARINA GARIZAO TAPIA","0124-2020-PIC ","01 de Abril de 2020","30 de Abril de  2020","AGENTE EN ATENCION PRIMARIA EN SALUD",1400000,1400000,{"$error":"#NAME?"},"NILSA ARIZA MARQUEZ","COORDINADOR PYP",2092,3013,"2020-04-20",{"$f":"VLOOKUP(A56:A64,'[3]PIC ABRIL '!$B$4:$AM$70,38,0)","v":"https://www.contratos.gov.co/consultas/detalleProceso.do?numConstancia=20-4-10716625"}]
[45687350,"MARICELA CARRILLO AGUILAR ","0125-2020-PIC ","01 de Abril de 2020","30 de Abril de  2020","APOYO GESTION PIC",2500000,2500000,{"$error":"#NAME?"},"BETTY PERTUZ","SUBGERENTE CIENTIFICO",2093,3014,"2020-04-20",{"$f":"VLOOKUP(A57:A64,'[3]PIC ABRIL '!$B$4:$AM$70,38,0)","v":"https://www.contratos.gov.co/consultas/detalleProceso.do?numConstancia=20-4-10716628"}]
[44150081,"MARY LUZ GUERRERO CERVANTES ","0126-2020-PIC ","01 de Abril de 2020","30 de Abril de  2020","AGENTE EN ATENCION PRIMARIA EN SALUD",1400000,1400000,{"$error":"#NAME?"},"NILSA ARIZA MARQUEZ","COORDINADOR PYP",2094,3015,"2020-04-20",{"$f":"VLOOKUP(A58:A64,'[3]PIC ABRIL '!$B$4:$AM$70,38,0)","v":"https://www.contratos.gov.co/consultas/detalleProceso.do?numConstancia=20-4-10716632"}]
[32862578,"MILDRIS PATRICIA QUIJANO VILORIA","0127-2020-PIC ","01 de Abril de 2020","30 de Abril de  2020","HIGIENISTA ORAL",1900000,1900000,{"$error":"#NAME?"},"NILSA ARIZA MARQUEZ","COORDINADOR P Y P",2095,3016,"2020-04-20",{"$f":"VLOOKUP(A59:A64,'[3]PIC ABRIL '!$B$4:$AM$70,38,0)","v":"https://www.contratos.gov.co/consultas/detalleProceso.do?numConstancia=20-4-10716634"}]
[1002162856,"NICOLL PATRICIA NIEBLES RIVERA","0128-2020-PIC ","01 de Abril de 2020","30 de Abril de  2020","AGENTE EN ATENCION PRIMARIA EN SALUD",1400000,1400000,{"$error":"#NAME?"},"NILSA ARIZA MARQUEZ","COORDINADOR PYP",2096,3017,"2020-04-20",{"$f":"VLOOKUP(A60:A64,'[3]PIC ABRIL '!$B$4:$AM$70,38,0)","v":"https://www.contratos.gov.co/consultas/detalleProceso.do?numConstancia=20-4-10716638"}]
[32758730,"NUBIA ESTELA CANO GUILLEN","0129-2020-PIC ","01 de Abril de 2020","30 de Abril de  2020","AGENTE EN ATENCION PRIMARIA EN SALUD",1400000,1400000,{"$error":"#NAME?"},"NILSA ARIZA MARQUEZ","COORDINADOR PYP",2097,3018,"2020-04-20",{"$f":"VLOOKUP(A61:A64,'[3]PIC ABRIL '!$B$4:$AM$70,38,0)","v":"https://www.contratos.gov.co/consultas/detalleProceso.do?numConstancia=20-4-10716640"}]
[1140873504,"OLMAN JOSHUA BULA TORRES","0130-2020-PIC ","01 de Abril de 2020","30 de Abril de  2020","PSICOLOGO ",2500000,2500000,{"$error":"#NAME?"},"BETTY PERTUZ","SUBGERENTE CIENTIFICO",2098,3019,"2020-04-20",{"$f":"VLOOKUP(A62:A64,'[3]PIC ABRIL '!$B$4:$AM$70,38,0)","v":"https://www.contratos.gov.co/consultas/detalleProceso.do?numConstancia=20-4-10716644"}]
[32777087,"ROSA MARGARITA SEVILLA","0131-2020-PIC ","01 de Abril de 2020","30 de Abril de  2020","NUTRICIONISTA ",2500000,2500000,{"$error":"#NAME?"},"BETTY PERTUZ","SUBGERENTE CIENTIFICO",2099,3020,"2020-04-20",{"$f":"VLOOKUP(A63:A64,'[3]PIC ABRIL '!$B$4:$AM$70,38,0)","v":"https://www.contratos.gov.co/consultas/detalleProceso.do?numConstancia=20-4-10716646"}]
[1042449446,"SAILIS MARIA FRIA VEGA","0132-2020-PIC ","01 de Abril de 2020","30 de Abril de  2020","AGENTE EN ATENCION PRIMARIA EN SALUD",1400000,1400000,{"$error":"#NAME?"},"NILSA ARIZA MARQUEZ","COORDINADOR PYP",2100,3021,"2020-04-20",{"$f":"VLOOKUP(A64:A64,'[3]PIC ABRIL '!$B$4:$AM$70,38,0)","v":"https://www.contratos.gov.co/consultas/detalleProceso.do?numConstancia=20-4-10716649"}]

{"sheet":"Hoja1","index":2,"n_rows":0,"n_cols":0,"rows_kept":0,"cut":false,"hidden":false,"merged":[]}